Workbook

Sheet DATOS
B2: DATOS PERSONALES Y LABORALES | G2: RESULTADOS COMPLEMENTO JUBILACIÓN | Q2: DATOS SELECCIONABLES | V2: VALOR ACTUAL ACTUARIAL | AY2: Sexo (V=1, M=2) | BA2: =IF($R$4=TRUE,1,2) -> 1
AA3: RESUMEN DE DATOS PARA EL PERIODO TRANSITORIO | AY3: Año (2018-2067) | BA3: =YEAR($AC$60) -> 2040
B4: Sexo | G4: Información del primer año tras la jubilación | Q4: Sexo | R4: TRUE | S4: FALSE | V4: Edad | W4: Factor | AJ4: Actualizaciones | AL4: Año validez | AM4: 2024 | AR4: Opción 1 | AS4: Opción 2 | AU4: Suma bases actualizadas
C5: =IF(S4=TRUE,"Número de hijos a efectos del complemento por brecha de género:","") ->  | D5: Dos | I5: Mensual | J5: =IFERROR(CONCATENATE("% salario neto previo a la jubilación (",ROUND(W79,0)," €)"),"") -> % salario neto previo a la jubilación (32015 €) | Q5: CCAA | R5: Comunitat Valenciana | U5: =V5-60 -> 1 | V5: 61 | W5: =VAACF($C$65,$C$70,$AY8:$AY$47) -> 24.88613808 | AA5: Año | AB5: Años B.Reg. | AC5: Edad Jub. normal | AD5: Años cot. Jub. 65 | AE5: Límite 1 meses cot. | AF5: % | AG5: Límite 2 meses cot. | AH5: % | AJ5: Quitar una fila al rango Transitorio | AN5: Hecho | AQ5: Año | AR5: Últimos | AS5: Mejores | AT5: De | AU5: Opción 1 | AV5: Opción 2 | AY5: Actualizado para 2023 | BB5: Probabilidades de supervivencia con promedio de años vividos (proviene de Datos para el simulador - Probabilidades)
G6: Datos en € actuales | H6: Anual | I6: (14 pagas) | Q6: Régimen | R6: TRUE | S6: FALSE | U6: =V6-60 -> 2 | V6: 62 | W6: =VAACF($C$65,$C$70,$AY9:$AY$47) -> 24.01978439 | AA6: 2024 | AB6: 25 | AC6: =66+(6/12) -> 66.5 | AD6: =38+(0/12) -> 38 | AE6: 49 | AF6: 0.0021 | AG6: 258 | AH6: 0.0019 | AJ6: Actualizar el año validez | AN6: Hecho | AQ6: 2023 | AR6: 300 | AS6: 300 | AT6: 300 | AU6: =SUM(INDIRECT(ADDRESS(99,41)&":"&ADDRESS(98+AR6,41))) -> 1290338.975 | AV6: =AU6 -> 1290338.975 | AY6: Columna | AZ6: Hombre | BA6: Años
B7: Fecha de nacimiento (día / mes / año) | C7: 5 | D7: 12 | E7: 1975 | G7: GASTOS PREVISTOS EN LA JUBILACIÓN | H7: =IF(C36=0,"",C36*12) -> 32400 | I7: =IFERROR(H7/14,"") -> 2314.285714 | J7: =IFERROR(H7/$W$79,"") -> 1.012021576 | Q7: Ahorro actual | R7: 0 | U7: 3 | V7: 63 | W7: =VAACF($C$65,$C$70,$AY10:$AY$47) -> 23.16044101 | AA7: 2025 | AB7: 25 | AC7: =66+(8/12) -> 66.66666667 | AD7: =38+(3/12) -> 38.25 | AE7: 49 | AF7: 0.0021 | AG7: 258 | AH7: 0.0019 | AJ7: Nuevas probabilidades supervivencia (cada dos años) | AN7: Hecho | AQ7: 2024 | AR7: 300 | AS7: 300 | AT7: 300 | AU7: 1290338.975 | AV7: 1290338.975 | AY7: aplicable | AZ7: Edades | BA7: 2022 | BB7: 2023 | BC7: 2024 | BD7: 2025 | BE7: 2026 | BF7: 2027 | BG7: 2028 | BH7: 2029 | BI7: 2030 | BJ7: 2031 | BK7: 2032 | BL7: 2033 | BM7: 2034 | BN7: 2035 | BO7: 2036 | BP7: 2037 | BQ7: 2038 | BR7: 2039 | BS7: 2040 | BT7: 2041 | BU7: 2042 | BV7: 2043 | BW7: 2044 | BX7: 2045 | BY7: 2046 | BZ7: 2047 | CA7: 2048 | CB7: 2049 | CC7: 2050 | CD7: 2051 | CE7: 2052 | CF7: 2053 | CG7: 2054 | CH7: 2055 | CI7: 2056 | CJ7: 2057 | CK7: 2058 | CL7: 2059 | CM7: 2060 | CN7: 2061 | CO7: 2062 | CP7: 2063 | CQ7: 2064 | CR7: 2065 | CS7: 2066 | CT7: 2067 | CU7: 2068 | CV7: 2069 | CW7: 2070 | CX7: 2071
G8: INGRESOS NETOS PREVISTOS EN LA JUBILACIÓN | H8: =IFERROR(V92,"") -> 23860.54776 | I8: =IFERROR(H8/14,"") -> 1704.32484 | J8: =IFERROR(H8/$W$79,"") -> 0.7452897881 | Q8: Perfil de riesgo | R8: Conservador | U8: 4 | V8: 64 | W8: =VAACF($C$65,$C$70,$AY11:$AY$47) -> 22.30828325 | AA8: 2026 | AB8: 25 | AC8: =66+(10/12) -> 66.83333333 | AD8: =38+(3/12) -> 38.25 | AE8: 49 | AF8: 0.0021 | AG8: 258 | AH8: 0.0019 | AJ8: Nuevas bases de cotización (también validación de datos) | AN8: Hecho | AQ8: 2025 | AR8: 300 | AS8: 300 | AT8: 300 | AU8: 1290338.975 | AV8: =AU8 -> 1290338.975 | AY8: =IF($BA$2=1,HLOOKUP($BA$3,$BA$7:$CX$47,AZ8-59),HLOOKUP($BA$3,$BA$50:$CX$90,AZ8-59)) -> 0.9949889519 | AZ8: 61 | BA8: 0.9916813731 | BB8: 0.9925408809 | BC8: 0.9927243269 | BD8: 0.9929025005 | BE8: 0.993075449 | BF8: 0.9932432249 | BG8: 0.9934058904 | BH8: 0.993563513 | BI8: 0.993716167 | BJ8: 0.9938639314 | BK8: 0.9940068919 | BL8: 0.994145136 | BM8: 0.9942787571 | BN8: 0.9944078516 | BO8: 0.9945325184 | BP8: 0.9946528578 | BQ8: 0.9947689734 | BR8: 0.9948809694 | BS8: 0.9949889519 | BT8: 0.9950930267 | BU8: 0.9951932998 | BV8: 0.995289878 | BW8: 0.9953828689 | BX8: 0.9954723769 | BY8: 0.9955585069 | BZ8: 0.9956413638 | CA8: 0.9957210506 | CB8: 0.9957976678 | CC8: 0.9958713162 | CD8: 0.9959420934 | CE8: 0.9960100968 | CF8: 0.9960754214 | CG8: 0.9961381581 | CH8: 0.9961983993 | CI8: 0.9962562337 | CJ8: 0.9963117465 | CK8: 0.9963650229 | CL8: 0.9964161442 | CM8: 0.9964651909 | CN8: 0.9965122411 | CO8: 0.9965566652 | CP8: 0.9965992413 | CQ8: 0.9966400391 | CR8: 0.9966791278 | CS8: 0.9967165743 | CT8: 0.9967524421 | CU8: 0.9967867941 | CV8: 0.9968196894 | CW8: 0.9968511875 | CX8: 0.9968813443
B9: Salario anual bruto (€) | C9: 37300 | G9: Pensión pública probable neta | H9: =IFERROR(V83,"") -> 23860.54776 | I9: =IFERROR(H9/14,"") -> 1704.32484 | J9: =IFERROR(H9/$W$79,"") -> 0.7452897881 | Q9: Edad de jubilación | R9: 780 | U9: 5 | V9: 65 | W9: =VAACF($C$65,$C$70,$AY12:$AY$47) -> 21.46503822 | AA9: 2027 | AB9: 25 | AC9: 67 | AD9: =38+(6/12) -> 38.5 | AE9: 248 | AF9: 0.0019 | AG9: 264 | AH9: 0.0018 | AJ9: Nuevos límites de pensiones | AN9: Hecho | AQ9: 2026 | AR9: 300 | AS9: 302 | AT9: 304 | AU9: =SUM(INDIRECT(ADDRESS(99,41)&":"&ADDRESS(98+AR9,41))) -> 1290338.975 | AV9: =SUMIF(INDIRECT(ADDRESS(99,41)&":"&ADDRESS(98+AT9,41)),">"&SMALL(INDIRECT(ADDRESS(99,41)&":"&ADDRESS(98+AT9,41)),(AT9-AS9))) -> 1297908.042 | AY9: =IF($BA$2=1,HLOOKUP($BA$3,$BA$7:$CX$47,AZ9-59),HLOOKUP($BA$3,$BA$50:$CX$90,AZ9-59)) -> 0.9945112898 | AZ9: 62 | BA9: 0.9908630989 | BB9: 0.991874476 | BC9: 0.9920720677 | BD9: 0.9922639806 | BE9: 0.992450264 | BF9: 0.9926309769 | BG9: 0.9928061846 | BH9: 0.99297596 | BI9: 0.9931403836 | BJ9: 0.9932995406 | BK9: 0.9934535226 | BL9: 0.9936024245 | BM9: 0.9937463471 | BN9: 0.9938853938 | BO9: 0.9940196712 | BP9: 0.9941492875 | BQ9: 0.9942743538 | BR9: 0.9943949834 | BS9: 0.9945112898 | BT9: 0.9946233864 | BU9: 0.9947313886 | BV9: 0.994835412 | BW9: 0.9949355699 | BX9: 0.9950319772 | BY9: 0.995124746 | BZ9: 0.9952139897 | CA9: 0.9952998181 | CB9: 0.9953823404 | CC9: 0.9954616654 | CD9: 0.9955378976 | CE9: 0.995611142 | CF9: 0.995681501 | CG9: 0.9957490731 | CH9: 0.9958139573 | CI9: 0.9958762484 | CJ9: 0.9959360396 | CK9: 0.9959934218 | CL9: 0.9960484834 | CM9: 0.9961013099 | CN9: 0.9961519859 | CO9: 0.9961998338 | CP9: 0.9962456911 | CQ9: 0.9962896327 | CR9: 0.9963317336 | CS9: 0.9963720659 | CT9: 0.9964106974 | CU9: 0.9964476967 | CV9: 0.9964831278 | CW9: 0.9965170531 | CX9: 0.9965495337
G10: Importe del Pago único bruto | H10: =IF(AND(AD43=2,R12=TRUE),IF(BC97=5,880,800)*(H9/500)^(1/1.65),0) -> 0 | Q10: Pensión estimada por la SS | R10: FALSE | S10: TRUE | U10: 6 | V10: 66 | W10: =VAACF($C$65,$C$70,$AY13:$AY$47) -> 20.63017878 | AJ10: Nueva distribución de gastos | AN10: Hecho | AQ10: 2027 | AR10: 300 | AS10: 304 | AT10: 308 | AU10: =SUM(INDIRECT(ADDRESS(99,41)&":"&ADDRESS(98+AR10,41))) -> 1290338.975 | AV10: =SUMIF(INDIRECT(ADDRESS(99,41)&":"&ADDRESS(98+AT10,41)),">"&SMALL(INDIRECT(ADDRESS(99,41)&":"&ADDRESS(98+AT10,41)),(AT10-AS10))) -> 1305552.095 | AY10: 0.9939918848 | AZ10: 63 | BA10: 0.9899490201 | BB10: 0.991184447 | BC10: 0.9913948233 | BD10: 0.9915991538 | BE10: 0.9917974905 | BF10: 0.9919898966 | BG10: 0.9921764411 | BH10: 0.9923572023 | BI10: 0.9925322651 | BJ10: 0.9927017215 | BK10: 0.9928656671 | BL10: 0.9930242046 | BM10: 0.9931774407 | BN10: 0.9933254853 | BO10: 0.9934684519 | BP10: 0.9936064558 | BQ10: 0.993739616 | BR10: 0.9938680518 | BS10: 0.9939918848 | BT10: 0.9941112357 | BU10: 0.9942262275 | BV10: 0.9943369827 | BW10: 0.9944436221 | BX10: 0.9945462688 | BY10: 0.9946450416 | BZ10: 0.9947400604 | CA10: 0.9948314433 | CB10: 0.9949193067 | CC10: 0.9950037654 | CD10: 0.9950849316 | CE10: 0.995162916 | CF10: 0.9952378282 | CG10: 0.9953097742 | CH10: 0.9953788579 | CI10: 0.9954451802 | CJ10: 0.9955088411 | CK10: 0.9955699371 | CL10: 0.9956285627 | CM10: 0.9956848083 | CN10: 0.9957387639 | CO10: 0.9957897086 | CP10: 0.9958385337 | CQ10: 0.9958853193 | CR10: 0.9959301453 | CS10: 0.9959730876 | CT10: 0.9960142198 | CU10: 0.9960536133 | CV10: 0.9960913382 | CW10: 0.9961274593 | CX10: 0.9961620418
C11: Años | D11: Meses | G11: Rentas del ahorro privado netas | H11: =IFERROR(V90,"") -> 0 | I11: =IFERROR(H11/14,"") -> 0 | J11: =IFERROR(H11/$W$79,"") -> 0 | Q11: Complemento brecha género | R11: 33.2 | U11: 7 | V11: 67 | W11: =VAACF($C$65,$C$70,$AY14:$AY$47) -> 19.80372556 | AJ11: Nuevo factor de sostenibilidad | AN11: Hecho | AQ11: 2028 | AR11: 300 | AS11: 306 | AT11: 312 | AU11: =SUM(INDIRECT(ADDRESS(99,41)&":"&ADDRESS(98+AR11,41))) -> 1290338.975 | AV11: =SUMIF(INDIRECT(ADDRESS(99,41)&":"&ADDRESS(98+AT11,41)),">"&SMALL(INDIRECT(ADDRESS(99,41)&":"&ADDRESS(98+AT11,41)),(AT11-AS11))) -> 1313171.456 | AY11: 0.9933563604 | AZ11: 64 | BA11: 0.9890122436 | BB11: 0.9903011603 | BC11: 0.9905300959 | BD11: 0.9907524536 | BE11: 0.9909682902 | BF11: 0.9911776734 | BG11: 0.9913806786 | BH11: 0.9915773909 | BI11: 0.9917679027 | BJ11: 0.9919523137 | BK11: 0.9921307288 | BL11: 0.9923032592 | BM11: 0.9924700207 | BN11: 0.9926311327 | BO11: 0.992786719 | BP11: 0.9929369053 | BQ11: 0.9930818206 | BR11: 0.9932215952 | BS11: 0.9933563604 | BT11: 0.9934862486 | BU11: 0.9936113932 | BV11: 0.993731927 | BW11: 0.9938479823 | BX11: 0.9939596922 | BY11: 0.9940671864 | BZ11: 0.9941705958 | CA11: 0.994270048 | CB11: 0.9943656707 | CC11: 0.9944575874 | CD11: 0.9945459215 | CE11: 0.9946307934 | CF11: 0.9947123215 | CG11: 0.9947906214 | CH11: 0.9948658063 | CI11: 0.9949379858 | CJ11: 0.9950072697 | CK11: 0.9950737616 | CL11: 0.9951375654 | CM11: 0.9951987789 | CN11: 0.9952574998 | CO11: 0.9953129446 | CP11: 0.9953660821 | CQ11: 0.9954170008 | CR11: 0.9954657861 | CS11: 0.9955125214 | CT11: 0.9955572873 | CU11: 0.9956001607 | CV11: 0.9956412176 | CW11: 0.9956805295 | CX11: 0.9957181668
B12: =CONCATENATE("Tiempo cotizado hasta ",Día,"-",MONTH(TODAY()),"-",YEAR(TODAY())) -> Tiempo cotizado hasta 5-1-2024 | C12: 19 | D12: 6 | G12: Necesidad de ingresos adicionales | H12: =IFERROR(V93,"") -> 8539.452244 | I12: =IFERROR(H12/14,"") -> 609.9608746 | J12: =IFERROR(H12/$W$79,"") -> 0.2667317875 | Q12: Pago único | R12: FALSE | S12: TRUE | U12: 8 | V12: 68 | W12: =VAACF($C$65,$C$70,$AY15:$AY$47) -> 18.98688173 | AQ12: 2029 | AR12: 300 | AS12: 308 | AT12: 316 | AU12: 1290338.975 | AV12: 1320690.887 | AY12: 0.9926979819 | AZ12: 65 | BA12: 0.9880012932 | BB12: 0.9894418407 | BC12: 0.9896858455 | BD12: 0.9899228378 | BE12: 0.9901528779 | BF12: 0.9903760383 | BG12: 0.9905923989 | BH12: 0.9908020521 | BI12: 0.9910050949 | BJ12: 0.9912016341 | BK12: 0.9913917822 | BL12: 0.9915756576 | BM12: 0.9917533833 | BN12: 0.9919250876 | BO12: 0.9920909015 | BP12: 0.99225096 | BQ12: 0.9924053999 | BR12: 0.9925543602 | BS12: 0.9926979819 | BT12: 0.9928364048 | BU12: 0.9929697725 | BV12: 0.9930982254 | BW12: 0.9932219054 | BX12: 0.9933409534 | BY12: 0.9934555085 | BZ12: 0.9935657106 | CA12: 0.9936716951 | CB12: 0.9937735975 | CC12: 0.9938715507 | CD12: 0.9939656858 | CE12: 0.9940561311 | CF12: 0.9941430132 | CG12: 0.9942264539 | CH12: 0.9943065754 | CI12: 0.994383494 | CJ12: 0.9944573267 | CK12: 0.9945281835 | CL12: 0.9945961758 | CM12: 0.9946614077 | CN12: 0.9947239831 | CO12: 0.9947830676 | CP12: 0.9948396926 | CQ12: 0.994893954 | CR12: 0.9949459413 | CS12: 0.9949957441 | CT12: 0.9950434477 | CU12: 0.9950891352 | CV12: 0.9951328865 | CW12: 0.9951747781 | CX12: 0.9952148856
G13: Ahorro necesario | H13: =T96 -> 14438.27148 | I13: =H13*NOMINAL(C65,12)/C65/12 -> 1192.29896 | J13: =H13/Ingresos -> 0.3870850263 | U13: 9 | V13: 69 | W13: =VAACF($C$65,$C$70,$AY16:$AY$47) -> 18.179099 | AQ13: 2030 | AR13: 300 | AS13: 310 | AT13: 320 | AU13: 1290338.975 | AV13: 1328211.411 | AY13: 0.9919878192 | AZ13: 66 | BA13: 0.9869840436 | BB13: 0.9885618302 | BC13: 0.9888185535 | BD13: 0.9890679001 | BE13: 0.9893099331 | BF13: 0.9895447293 | BG13: 0.9897723725 | BH13: 0.9899929601 | BI13: 0.9902065932 | BJ13: 0.9904133847 | BK13: 0.9906134524 | BL13: 0.990806921 | BM13: 0.99099392 | BN13: 0.9911745846 | BO13: 0.9913490516 | BP13: 0.9915174633 | BQ13: 0.9916799647 | BR13: 0.9918367 | BS13: 0.9919878192 | BT13: 0.992133469 | BU13: 0.9922737998 | BV13: 0.9924089595 | BW13: 0.992539098 | BX13: 0.9926643626 | BY13: 0.9927849003 | BZ13: 0.9929008574 | CA13: 0.9930123773 | CB13: 0.9931196025 | CC13: 0.9932226723 | CD13: 0.9933217247 | CE13: 0.9934168945 | CF13: 0.9935083153 | CG13: 0.9935961154 | CH13: 0.9936804227 | CI13: 0.9937613607 | CJ13: 0.9938390509 | CK13: 0.9939136101 | CL13: 0.9939851548 | CM13: 0.9940537954 | CN13: 0.994119641 | CO13: 0.9941818132 | CP13: 0.9942413972 | CQ13: 0.9942984945 | CR13: 0.994353199 | CS13: 0.9944056047 | CT13: 0.9944558015 | CU13: 0.9945038765 | CV13: 0.9945499145 | CW13: 0.9945939962 | CX13: 0.9946361998
B14: DATOS PERFIL DE AHORRO | G14: =IFERROR(IF(OR(Año=0,Años_cotizados=0,Años_edad_jubilación=0)=TRUE,"",IF(AA30<=YEAR(S74),"El año de jubilación debe ser "&YEAR(S74)+1&" o superior: aumente el año de nacimiento o la edad de jubilación para una simulación válida",IF(Años_cotizados>YEAR(S74)-Año-16,"Los años cotizados no pueden dar lugar a cotizaciones antes de los 16 años: disminuya su valor para una simulación válida",IF(Años_edad_jubilación+Meses_edad_jubilación/12<C25+D25/12,"Edad de jubilación incoherente","")))),"") ->  | U14: 10 | V14: 70 | W14: =VAACF($C$65,$C$70,$AY17:$AY$47) -> 17.38176398 | AQ14: 2031 | AR14: 300 | AS14: 312 | AT14: 324 | AU14: 1290338.975 | AV14: 1335756.797 | AY14: 0.9911601651 | AZ14: 67 | BA14: 0.9858522326 | BB14: 0.987539131 | BC14: 0.9878104766 | BD14: 0.9880740244 | BE14: 0.9883298415 | BF14: 0.988578008 | BG14: 0.9888186146 | BH14: 0.9890517612 | BI14: 0.9892775577 | BJ14: 0.9894961219 | BK14: 0.9897075787 | BL14: 0.9899120601 | BM14: 0.9901097038 | BN14: 0.9903006508 | BO14: 0.9904850474 | BP14: 0.9906630436 | BQ14: 0.9908347926 | BR14: 0.9910004475 | BS14: 0.9911601651 | BT14: 0.9913141028 | BU14: 0.9914624175 | BV14: 0.9916052676 | BW14: 0.9917428101 | BX14: 0.9918752009 | BY14: 0.9920025963 | BZ14: 0.9921251498 | CA14: 0.9922430134 | CB14: 0.9923563379 | CC14: 0.9924652703 | CD14: 0.9925699565 | CE14: 0.9926705395 | CF14: 0.9927671596 | CG14: 0.9928599535 | CH14: 0.9929490554 | CI14: 0.9930345964 | CJ14: 0.9931167048 | CK14: 0.9931955042 | CL14: 0.9932711175 | CM14: 0.9933436617 | CN14: 0.9934132517 | CO14: 0.9934789587 | CP14: 0.9935419314 | CQ14: 0.9936022749 | CR14: 0.99366009 | CS14: 0.9937154753 | CT14: 0.9937685267 | CU14: 0.9938193351 | CV14: 0.9938679902 | CW14: 0.9939145782 | CX14: 0.9939591813
U15: 11 | V15: 71 | W15: =VAACF($C$65,$C$70,$AY18:$AY$47) -> 16.59640395 | AQ15: 2032 | AR15: 300 | AS15: 314 | AT15: 328 | AU15: 1290338.975 | AV15: 1343258.182 | AY15: 0.9902942303 | AZ15: 68 | BA15: 0.9847626833 | BB15: 0.9865829345 | BC15: 0.9868610494 | BD15: 0.9871311714 | BE15: 0.9873933696 | BF15: 0.9876477243 | BG15: 0.9878943305 | BH15: 0.9881332896 | BI15: 0.9883647156 | BJ15: 0.9885887274 | BK15: 0.9888054549 | BL15: 0.989015032 | BM15: 0.9892176008 | BN15: 0.9894133056 | BO15: 0.9896022963 | BP15: 0.9897847265 | BQ15: 0.9899607535 | BR15: 0.9901305348 | BS15: 0.9902942303 | BT15: 0.9904520015 | BU15: 0.9906040092 | BV15: 0.9907504166 | BW15: 0.9908913834 | BX15: 0.9910270701 | BY15: 0.9911576372 | BZ15: 0.9912832412 | CA15: 0.9914040389 | CB15: 0.9915201834 | CC15: 0.9916318271 | CD15: 0.9917391189 | CE15: 0.9918422048 | CF15: 0.9919412292 | CG15: 0.9920363322 | CH15: 0.9921276511 | CI15: 0.9922153205 | CJ15: 0.9922994717 | CK15: 0.9923802318 | CL15: 0.9924577263 | CM15: 0.992532075 | CN15: 0.9926033965 | CO15: 0.9926707379 | CP15: 0.9927352771 | CQ15: 0.9927971214 | CR15: 0.9928563743 | CS15: 0.9929131374 | CT15: 0.992967508 | CU15: 0.9930195808 | CV15: 0.9930694455 | CW15: 0.9931171923 | CX15: 0.993162905
B16: Importe que tiene previsto ahorrar anualmente | C16: 0 | D16: =IFERROR(IF(Ahorro_máximo_anual=0,"",ROUND(Ahorro_máximo_anual/Ingresos,3)*100&"% "&"salario bruto"),"") ->  | U16: 12 | V16: 72 | W16: =VAACF($C$65,$C$70,$AY19:$AY$47) -> 15.82528572 | AA16: TASA DE SUSTITUCIÓN ETAPA TRANSICIÓN Y FINAL | AQ16: 2033 | AR16: 300 | AS16: 316 | AT16: 332 | AU16: 1290338.975 | AV16: 1350747.197 | AY16: 0.9892789535 | AZ16: 69 | BA16: 0.9836748911 | BB16: 0.9854598097 | BC16: 0.9857459982 | BD16: 0.9860239629 | BE16: 0.9862937751 | BF16: 0.9865555172 | BG16: 0.9868092864 | BH16: 0.987055188 | BI16: 0.987293338 | BJ16: 0.9875238596 | BK16: 0.9877468861 | BL16: 0.9879625553 | BM16: 0.9881710126 | BN16: 0.9883724074 | BO16: 0.9885668939 | BP16: 0.9887546295 | BQ16: 0.9889357761 | BR16: 0.9891104954 | BS16: 0.9892789535 | BT16: 0.9894413145 | BU16: 0.989597745 | BV16: 0.9897484122 | BW16: 0.9898934811 | BX16: 0.9900331175 | BY16: 0.9901674844 | BZ16: 0.9902967445 | CA16: 0.9904210583 | CB16: 0.9905405843 | CC16: 0.9906554783 | CD16: 0.9907658941 | CE16: 0.9908719818 | CF16: 0.9909738898 | CG16: 0.9910717619 | CH16: 0.9911657406 | CI16: 0.9912559634 | CJ16: 0.9913425656 | CK16: 0.9914256781 | CL16: 0.9915054295 | CM16: 0.9915819436 | CN16: 0.991655343 | CO16: 0.9917246468 | CP16: 0.9917910657 | CQ16: 0.9918547117 | CR16: 0.9919156911 | CS16: 0.991974108 | CT16: 0.9920300628 | CU16: 0.992083653 | CV16: 0.992134971 | CW16: 0.9921841092 | CX16: 0.9922311542
B17: Incremento previsto del ahorro anual | C17: 0.03 | U17: 13 | V17: 73 | W17: =VAACF($C$65,$C$70,$AY20:$AY$47) -> 15.0680344 | AQ17: 2034 | AR17: 300 | AS17: 318 | AT17: 336 | AU17: 1290338.975 | AV17: 1358224.95 | AY17: 0.9880881828 | AZ17: 70 | BA17: 0.9822360201 | BB17: 0.9841244538 | BC17: 0.9844214805 | BD17: 0.9847099714 | BE17: 0.9849900003 | BF17: 0.985261654 | BG17: 0.9855250314 | BH17: 0.9857802434 | BI17: 0.9860274092 | BJ17: 0.9862666579 | BK17: 0.9864981271 | BL17: 0.9867219608 | BM17: 0.9869383089 | BN17: 0.9871473261 | BO17: 0.9873491744 | BP17: 0.9875440157 | BQ17: 0.9877320183 | BR17: 0.98791335 | BS17: 0.9880881828 | BT17: 0.988256688 | BU17: 0.9884190386 | BV17: 0.9885754069 | BW17: 0.9887259657 | BX17: 0.9888708856 | BY17: 0.9890103364 | BZ17: 0.9891444879 | CA17: 0.9892735052 | CB17: 0.9893975536 | CC17: 0.9895167945 | CD17: 0.9896313879 | CE17: 0.9897414891 | CF17: 0.9898472525 | CG17: 0.9899488272 | CH17: 0.9900463615 | CI17: 0.9901399974 | CJ17: 0.9902298753 | CK17: 0.9903161321 | CL17: 0.9903989002 | CM17: 0.9904783092 | CN17: 0.9905544844 | CO17: 0.9906264098 | CP17: 0.9906953417 | CQ17: 0.9907613948 | CR17: 0.9908246809 | CS17: 0.9908853075 | CT17: 0.990943379 | CU17: 0.9909989955 | CV17: 0.9910522548 | CW17: 0.9911032515 | CX17: 0.9911520759
B18: Ahorro acumulado actual en productos para la jubilación | C18: 0 | Q18: DATOS A ACTUALIZAR CADA AÑO | U18: 14 | V18: 74 | W18: =VAACF($C$65,$C$70,$AY21:$AY$47) -> 14.32391972 | AQ18: 2035 | AR18: 300 | AS18: 320 | AT18: 340 | AU18: 1290338.975 | AV18: 1365690.372 | AY18: 0.9866558791 | AZ18: 71 | BA18: 0.9807368004 | BB18: 0.9824290792 | BC18: 0.9827457992 | BD18: 0.9830534198 | BE18: 0.9833520207 | BF18: 0.9836416938 | BG18: 0.9839225443 | BH18: 0.9841946901 | BI18: 0.9844582583 | BJ18: 0.9847133865 | BK18: 0.9849602203 | BL18: 0.9851989142 | BM18: 0.9854296268 | BN18: 0.9856525243 | BO18: 0.9858677778 | BP18: 0.9860755605 | BQ18: 0.9862760514 | BR18: 0.9864694302 | BS18: 0.9866558791 | BT18: 0.9868355814 | BU18: 0.9870087211 | BV18: 0.9871754816 | BW18: 0.9873360475 | BX18: 0.9874906001 | BY18: 0.9876393211 | BZ18: 0.9877823914 | CA18: 0.9879199871 | CB18: 0.9880522835 | CC18: 0.9881794535 | CD18: 0.9883016673 | CE18: 0.9884190907 | CF18: 0.9885318882 | CG18: 0.9886402194 | CH18: 0.9887442413 | CI18: 0.9888441062 | CJ18: 0.9889399629 | CK18: 0.9890319582 | CL18: 0.9891202327 | CM18: 0.9892049256 | CN18: 0.9892861688 | CO18: 0.9893628799 | CP18: 0.9894363991 | CQ18: 0.9895068478 | CR18: 0.9895743449 | CS18: 0.9896390068 | CT18: 0.9897009428 | CU18: 0.9897602605 | CV18: 0.9898170648 | CW18: 0.9898714555 | CX18: 0.9899235296
B19: Perfil de riesgo inversor | R19: RG | U19: 15 | V19: 75 | W19: =VAACF($C$65,$C$70,$AY22:$AY$47) -> 13.59439897 | AF19: Año de jubilación según datos introducidos por el usuario | AG19: =YEAR(AC60) -> 2040 | AQ19: 2036 | AR19: 300 | AS19: 322 | AT19: 344 | AU19: 1290338.975 | AV19: 1373143.485 | AY19: 0.9851191381 | AZ19: 72 | BA19: 0.9787637077 | BB19: 0.980685014 | BC19: 0.9810173001 | BD19: 0.9813400347 | BE19: 0.9816533014 | BF19: 0.981957198 | BG19: 0.9822518346 | BH19: 0.9825373355 | BI19: 0.9828138347 | BJ19: 0.9830814768 | BK19: 0.983340414 | BL19: 0.9835908089 | BM19: 0.9838328289 | BN19: 0.984066649 | BO19: 0.9842924474 | BP19: 0.9845104068 | BQ19: 0.9847207155 | BR19: 0.984923562 | BS19: 0.9851191381 | BT19: 0.9853076349 | BU19: 0.9854892466 | BV19: 0.9856641659 | BW19: 0.9858325855 | BX19: 0.985994697 | BY19: 0.9861506907 | BZ19: 0.9863007556 | CA19: 0.9864450781 | CB19: 0.9865838411 | CC19: 0.9867172262 | CD19: 0.9868454121 | CE19: 0.9869685734 | CF19: 0.9870868815 | CG19: 0.9872005043 | CH19: 0.9873096073 | CI19: 0.9874143493 | CJ19: 0.9875148874 | CK19: 0.9876113745 | CL19: 0.9877039595 | CM19: 0.9877927865 | CN19: 0.9878779962 | CO19: 0.9879584517 | CP19: 0.9880355594 | CQ19: 0.9881094463 | CR19: 0.9881802378 | CS19: 0.988248055 | CT19: 0.9883130131 | CU19: 0.9883752253 | CV19: 0.988434801 | CW19: 0.988491845 | CX19: 0.9885464595
Q20: Base mínima | R20: 1323 | U20: 16 | V20: 76 | W20: =VAACF($C$65,$C$70,$AY23:$AY$47) -> 12.8786613 | AQ20: 2037 | AR20: 300 | AS20: 324 | AT20: 348 | AU20: 1290338.975 | AV20: 1380584.308 | AY20: 0.9834893993 | AZ20: 73 | BA20: 0.9764830693 | BB20: 0.9789254208 | BC20: 0.9792674172 | BD20: 0.9795995862 | BE20: 0.9799220136 | BF20: 0.9802347994 | BG20: 0.9805380573 | BH20: 0.980831915 | BI20: 0.9811165096 | BJ20: 0.9813919898 | BK20: 0.9816585132 | BL20: 0.981916245 | BM20: 0.9821653588 | BN20: 0.9824060335 | BO20: 0.9826384536 | BP20: 0.9828628059 | BQ20: 0.983079285 | BR20: 0.9832880837 | BS20: 0.9834893993 | BT20: 0.9836834299 | BU20: 0.9838703738 | BV20: 0.9840504303 | BW20: 0.9842237965 | BX20: 0.9843906704 | BY20: 0.9845512481 | BZ20: 0.9847057229 | CA20: 0.9848542868 | CB20: 0.9849971288 | CC20: 0.9851344359 | CD20: 0.9852663909 | CE20: 0.9853931741 | CF20: 0.9855149619 | CG20: 0.9856319265 | CH20: 0.9857442389 | CI20: 0.9858520629 | CJ20: 0.9859555593 | CK20: 0.9860548855 | CL20: 0.9861501959 | CM20: 0.9862416369 | CN20: 0.9863293553 | CO20: 0.9864121793 | CP20: 0.9864915566 | CQ20: 0.9865676189 | CR20: 0.9866404953 | CS20: 0.9867103092 | CT20: 0.9867771809 | CU20: 0.9868412253 | CV20: 0.9869025554 | CW20: 0.9869612802 | CX20: 0.9870175029
B21: DATOS PREVISTOS EN LA JUBILACIÓN | U21: 17 | V21: 77 | W21: =VAACF($C$65,$C$70,$AY24:$AY$47) -> 12.17755391 | AF21: Edad jubilación según datos introducidos por el usuario | AG21: =C24+D24/12 -> 65 | AQ21: 2038 | AR21: 300 | AS21: 324 | AT21: 348 | AU21: 1290338.975 | AV21: 1380584.308 | AY21: 0.9816035288 | AZ21: 74 | BA21: 0.9744416764 | BB21: 0.9767842825 | BC21: 0.9771454083 | BD21: 0.977496157 | BE21: 0.9778366193 | BF21: 0.9781668997 | BG21: 0.9784871199 | BH21: 0.9787974136 | BI21: 0.9790979259 | BJ21: 0.979388814 | BK21: 0.9796702439 | BL21: 0.979942391 | BM21: 0.9802054377 | BN21: 0.9804595729 | BO21: 0.9807049916 | BP21: 0.9809418921 | BQ21: 0.9811704781 | BR21: 0.9813909548 | BS21: 0.9816035288 | BT21: 0.9818084114 | BU21: 0.9820058099 | BV21: 0.9821959365 | BW21: 0.9823789984 | BX21: 0.9825552048 | BY21: 0.9827247626 | BZ21: 0.9828878765 | CA21: 0.9830447484 | CB21: 0.9831955789 | CC21: 0.9833405649 | CD21: 0.9834798991 | CE21: 0.9836137725 | CF21: 0.9837423714 | CG21: 0.9838658774 | CH21: 0.9839844701 | CI21: 0.9840983237 | CJ21: 0.9842076081 | CK21: 0.9843124891 | CL21: 0.9844131291 | CM21: 0.9845096839 | CN21: 0.9846023076 | CO21: 0.9846897632 | CP21: 0.9847735792 | CQ21: 0.9848538952 | CR21: 0.9849308469 | CS21: 0.9850045648 | CT21: 0.9850751758 | CU21: 0.9851428018 | CV21: 0.9852075616 | CW21: 0.9852695703 | CX21: 0.9853289372
Q22: Actualizado para 2023 | U22: 18 | V22: 78 | W22: =VAACF($C$65,$C$70,$AY25:$AY$47) -> 11.49237783 | AF22: Años enteros de prolongación de la vida laboral para el cálculo de los incentivos | AG22: =IF(AD43=2,AD49,0) -> 0 | AQ22: 2039 | AR22: 300 | AS22: 324 | AT22: 348 | AU22: 1290338.975 | AV22: 1380584.308 | AY22: 0.9795937812 | AZ22: 75 | BA22: 0.9720193247 | BB22: 0.9746025701 | BC22: 0.9749765944 | BD22: 0.9753398696 | BE22: 0.9756924882 | BF22: 0.9760345609 | BG22: 0.9763662116 | BH22: 0.97668758 | BI22: 0.976998817 | BJ22: 0.9773000843 | BK22: 0.9775915549 | BL22: 0.9778734103 | BM22: 0.9781458395 | BN22: 0.9784090388 | BO22: 0.9786632089 | BP22: 0.9789085571 | BQ22: 0.9791452923 | BR22: 0.9793736292 | BS22: 0.9795937812 | BT22: 0.9798059661 | BU22: 0.9800104002 | BV22: 0.9802073018 | BW22: 0.9803968872 | BX22: 0.9805793723 | BY22: 0.9807549708 | BZ22: 0.9809238957 | CA22: 0.9810863563 | CB22: 0.9812425593 | CC22: 0.9813927092 | CD22: 0.9815370064 | CE22: 0.9816756475 | CF22: 0.9818088257 | CG22: 0.9819367301 | CH22: 0.9820595457 | CI22: 0.9821774528 | CJ22: 0.9822906283 | CK22: 0.9823992437 | CL22: 0.9825034662 | CM22: 0.9826034588 | CN22: 0.9826993794 | CO22: 0.9827899481 | CP22: 0.9828767482 | CQ22: 0.9829599229 | CR22: 0.9830396133 | CS22: 0.9831159551 | CT22: 0.9831890788 | CU22: 0.9832591114 | CV22: 0.9833261763 | CW22: 0.9833903913 | CX22: 0.9834518714
C23: Años | D23: Meses | U23: 19 | V23: 79 | W23: =VAACF($C$65,$C$70,$AY26:$AY$47) -> 10.82716687 | AF23: Meses enteros de anticipación para el cálculo del coeficiente reductor | AG23: =IF(AD43=1,AD47,0) -> 24 | AQ23: 2040 | AR23: 300 | AS23: 324 | AT23: 348 | AU23: 1290338.975 | AV23: 1380584.308 | AY23: 0.977316801 | AZ23: 76 | BA23: 0.9691977853 | BB23: 0.9721436673 | BC23: 0.9725313087 | BD23: 0.9729078117 | BE23: 0.9732732726 | BF23: 0.9736278061 | BG23: 0.9739715393 | BH23: 0.9743046182 | BI23: 0.9746271973 | BJ23: 0.9749394458 | BK23: 0.9752415422 | BL23: 0.975533674 | BM23: 0.9758160374 | BN23: 0.9760888354 | BO23: 0.9763522766 | BP23: 0.9766065747 | BQ23: 0.9768519472 | BR23: 0.9770886153 | BS23: 0.977316801 | BT23: 0.9775367296 | BU23: 0.9777486257 | BV23: 0.9779527144 | BW23: 0.978149221 | BX23: 0.9783383686 | BY23: 0.9785203788 | BZ23: 0.9786954725 | CA23: 0.9788638658 | CB23: 0.9790257739 | CC23: 0.9791814081 | CD23: 0.9793309762 | CE23: 0.9794746818 | CF23: 0.9796127248 | CG23: 0.9797453023 | CH23: 0.9798726053 | CI23: 0.9799948204 | CJ23: 0.9801121316 | CK23: 0.9802247165 | CL23: 0.9803327475 | CM23: 0.9804363949 | CN23: 0.9805358211 | CO23: 0.9806297006 | CP23: 0.9807196731 | CQ23: 0.9808058883 | CR23: 0.9808884916 | CS23: 0.9809676239 | CT23: 0.9810434211 | CU23: 0.9811160145 | CV23: 0.9811855311 | CW23: 0.9812520941 | CX23: 0.9813158215
B24: Edad de Jubilación prevista | C24: =MAX(INT(AC68),INT(R9/12)) -> 65 | D24: =MOD(MAX(AC68*12,R9),12) -> 0 | Q24: Año | U24: 20 | V24: 80 | W24: =VAACF($C$65,$C$70,$AY27:$AY$47) -> 10.18438108 | AQ24: 2041 | AR24: 306 | AS24: 324 | AT24: 348 | AU24: 1312971.929 | AV24: 1380584.308 | AY24: 0.9746991357 | AZ24: 77 | BA24: 0.9659348297 | BB24: 0.9693441372 | BC24: 0.9697454231 | BD24: 0.9701351753 | BE24: 0.9705134954 | BF24: 0.9708805004 | BG24: 0.9712363234 | BH24: 0.9715811153 | BI24: 0.9719150367 | BJ24: 0.972238262 | BK24: 0.9725509768 | BL24: 0.9728533755 | BM24: 0.9731456608 | BN24: 0.9734280429 | BO24: 0.9737007391 | BP24: 0.9739639691 | BQ24: 0.9742179592 | BR24: 0.9744629377 | BS24: 0.9746991357 | BT24: 0.9749267855 | BU24: 0.9751461199 | BV24: 0.9753573727 | BW24: 0.9755607761 | BX24: 0.9757565609 | BY24: 0.9759449584 | BZ24: 0.9761261953 | CA24: 0.9763004965 | CB24: 0.9764680848 | CC24: 0.9766291783 | CD24: 0.9767839925 | CE24: 0.9769327381 | CF24: 0.977075623 | CG24: 0.9772128495 | CH24: 0.9773446164 | CI24: 0.977471117 | CJ24: 0.9775925412 | CK24: 0.9777090733 | CL24: 0.9778208916 | CM24: 0.9779281726 | CN24: 0.978031084 | CO24: 0.9781282539 | CP24: 0.97822138 | CQ24: 0.9783106172 | CR24: 0.9783961158 | CS24: 0.9784780212 | CT24: 0.9785564748 | CU24: 0.9786316125 | CV24: 0.9787035646 | CW24: 0.9787724602 | CX24: 0.9788384205
B25: Edad mínima de jubilación | C25: =IF(OR(Año=0,AND(Años_cotizados=0,Meses_cotizados=0)=TRUE)=TRUE,"",IFERROR(INT(AC68),"")) -> 65 | D25: =IF(OR(Año=0,AND(Años_cotizados=0,Meses_cotizados=0)=TRUE)=TRUE,"",IFERROR((AC68-C25)*12,"")) -> 0 | N25: Base máxima | O25: Pensión mínima | P25: Pensión máxima | Q25: 2022 | R25: Base máxima | S25: Pensión mínima | T25: Pensión máxima | U25: Tipo trabajador | AF25: Años cotizados según datos introducidos por el usuario | AG25: =AC61 -> 36.41666667 | AQ25: 2042 | AR25: 312 | AS25: 324 | AT25: 348 | AU25: 1335607.435 | AV25: 1380584.308 | AY25: 0.9714595828 | AZ25: 78 | BA25: 0.961858009 | BB25: 0.9656294326 | BC25: 0.9660662493 | BD25: 0.9664905229 | BE25: 0.966902363 | BF25: 0.9673018952 | BG25: 0.967689265 | BH25: 0.9680646342 | BI25: 0.9684281783 | BJ25: 0.9687800844 | BK25: 0.9691205554 | BL25: 0.9694498019 | BM25: 0.9697680435 | BN25: 0.9700755092 | BO25: 0.9703724332 | BP25: 0.9706590559 | BQ25: 0.9709356226 | BR25: 0.9712023812 | BS25: 0.9714595828 | BT25: 0.9717074802 | BU25: 0.9719463265 | BV25: 0.9721763753 | BW25: 0.9723978797 | BX25: 0.9726110908 | BY25: 0.9728162596 | BZ25: 0.9730136326 | CA25: 0.9732034553 | CB25: 0.9733859686 | CC25: 0.9735614112 | CD25: 0.9737300169 | CE25: 0.9738920151 | CF25: 0.9740476323 | CG25: 0.9741970882 | CH25: 0.9743405988 | CI25: 0.9744783756 | CJ25: 0.9746106246 | CK25: 0.9747375457 | CL25: 0.9748593346 | CM25: 0.9749761817 | CN25: 0.9750882711 | CO25: 0.9751941071 | CP25: 0.9752955397 | CQ25: 0.9753927374 | CR25: 0.9754858628 | CS25: 0.9755750757 | CT25: 0.9756605287 | CU25: 0.9757423705 | CV25: 0.9758207433 | CW25: 0.9758957869 | CX25: 0.9759676339
B26: Edad legal de jubilación | C26: =IF(OR(Año=0,AND(Años_cotizados=0,Meses_cotizados=0)=TRUE)=TRUE,"",IFERROR(INT(AC69),"")) -> 67 | D26: =IF(OR(Año=0,AND(Años_cotizados=0,Meses_cotizados=0)=TRUE)=TRUE,"",IFERROR((AC69-C26)*12,"")) -> 0 | Q26: 2023 | R26: 4495.5 | S26: 743.3 | T26: 3058.81 | U26: 0.0645 | AF26: Meses cotizados por encima 15 años para el cálculo de la tasa de sustitución base | AG26: =(AG25-15)*12 -> 257 | AQ26: 2043 | AR26: 318 | AS26: 324 | AT26: 348 | AU26: 1358020.653 | AV26: 1380584.308 | AY26: 0.9676547382 | AZ26: 79 | BA26: 0.9583010562 | BB26: 0.9611585991 | BC26: 0.9616453571 | BD26: 0.9621181313 | BE26: 0.962577044 | BF26: 0.9630222366 | BG26: 0.9634538713 | BH26: 0.9638721286 | BI26: 0.9642772045 | BJ26: 0.9646693097 | BK26: 0.9650486677 | BL26: 0.9654155157 | BM26: 0.9657700988 | BN26: 0.9661126715 | BO26: 0.9664434951 | BP26: 0.9667628387 | BQ26: 0.9670709755 | BR26: 0.9673681823 | BS26: 0.9676547382 | BT26: 0.9679309264 | BU26: 0.9681970279 | BV26: 0.9684533263 | BW26: 0.9687001035 | BX26: 0.9689376398 | BY26: 0.9691662141 | BZ26: 0.9693861023 | CA26: 0.9695975772 | CB26: 0.9698009078 | CC26: 0.9699963606 | CD26: 0.970184195 | CE26: 0.9703646679 | CF26: 0.9705380305 | CG26: 0.9707045292 | CH26: 0.9708644035 | CI26: 0.9710178896 | CJ26: 0.971165217 | CK26: 0.9713066083 | CL26: 0.9714422817 | CM26: 0.9715724492 | CN26: 0.9716973169 | CO26: 0.9718152177 | CP26: 0.9719282121 | CQ26: 0.9720364887 | CR26: 0.9721402289 | CS26: 0.9722396103 | CT26: 0.9723348026 | CU26: 0.9724259721 | CV26: 0.9725132775 | CW26: 0.9725968736 | CX26: 0.9726769087
B27: Cumple los requisitos para la jubilación anticipada no voluntaria? | C27: No | N27: 0.05 | O27: 0.05382 | P27: 0.038 | Q27: 2024 | R27: =ROUND(R26*(1+N27),2) -> 4720.28 | S27: =ROUND(FVSCHEDULE(S$26,O$27:O27),2) -> 783.3 | T27: =ROUND(FVSCHEDULE(T$26,P$27:P27),2) -> 3175.04 | U27: =6.47% -> 0.0647 | AQ27: 2044 | AR27: 324 | AS27: 324 | AT27: 348 | AU27: 1380436.398 | AV27: 1380584.308 | AY27: 0.9630570359 | AZ27: 80 | BA27: 0.9535395999 | BB27: 0.9560304153 | BC27: 0.9565569019 | BD27: 0.9570682669 | BE27: 0.9575646414 | BF27: 0.9580461787 | BG27: 0.9585130543 | BH27: 0.9589654623 | BI27: 0.9594036149 | BJ27: 0.9598277406 | BK27: 0.9602380797 | BL27: 0.9606348893 | BM27: 0.9610184336 | BN27: 0.9613889882 | BO27: 0.9617468365 | BP27: 0.9620922676 | BQ27: 0.9624255779 | BR27: 0.9627470663 | BS27: 0.9630570359 | BT27: 0.9633557908 | BU27: 0.9636436357 | BV27: 0.9639208783 | BW27: 0.9641878219 | BX27: 0.9644447706 | BY27: 0.9646920248 | BZ27: 0.9649298843 | CA27: 0.9651586435 | CB27: 0.9653785932 | CC27: 0.9655900219 | CD27: 0.9657932099 | CE27: 0.9659884355 | CF27: 0.9661759698 | CG27: 0.9663560791 | CH27: 0.9665290234 | CI27: 0.9666950574 | CJ27: 0.9668544294 | CK27: 0.9670073804 | CL27: 0.9671541463 | CM27: 0.9672949561 | CN27: 0.9674300331 | CO27: 0.9675575738 | CP27: 0.9676798072 | CQ27: 0.967796937 | CR27: 0.96790916 | CS27: 0.968016668 | CT27: 0.9681196445 | CU27: 0.968218269 | CV27: 0.9683127139 | CW27: 0.9684031455 | CX27: 0.9684897257
B28: Pensión pública de jubilación | E28: =IF($R$10=TRUE,"Importe pensión (€ jubilación)","") ->  | N28: =$C$71+1.2% -> 0.032 | O28: 0.079 | P28: =$C$71+0.00115 -> 0.02115 | Q28: 2025 | R28: =ROUND(R27*(1+N28),2) -> 4871.33 | S28: =ROUND(FVSCHEDULE(S$26,O$27:O28),2) -> 845.19 | T28: =ROUND(FVSCHEDULE(T$26,P$27:P28),2) -> 3242.2 | U28: =U27+0.0002 -> 0.0649 | AY28: 0.9579644589 | AZ28: 81 | BA28: 0.9469030142 | BB28: 0.9503393463 | BC28: 0.9509106808 | BD28: 0.951465605 | BE28: 0.9520042609 | BF28: 0.9525268147 | BG28: 0.9530334583 | BH28: 0.953524401 | BI28: 0.9539998737 | BJ28: 0.9544601236 | BK28: 0.9549054133 | BL28: 0.9553360203 | BM28: 0.9557522315 | BN28: 0.9561543463 | BO28: 0.9565426726 | BP28: 0.956917524 | BQ28: 0.9572792218 | BR28: 0.9576280903 | BS28: 0.9579644589 | BT28: 0.9582886573 | BU28: 0.9586010169 | BV28: 0.9589018703 | BW28: 0.9591915477 | BX28: 0.9594703792 | BY28: 0.9597386904 | BZ28: 0.9599968062 | CA28: 0.9602450468 | CB28: 0.9604837278 | CC28: 0.9607131613 | CD28: 0.960933653 | CE28: 0.9611455036 | CF28: 0.9613490084 | CG28: 0.9615444551 | CH28: 0.961732127 | CI28: 0.9619122999 | CJ28: 0.9620852438 | CK28: 0.9622512194 | CL28: 0.9624104837 | CM28: 0.9625632841 | CN28: 0.9627098636 | CO28: 0.9628482645 | CP28: 0.9629809069 | CQ28: 0.9631080109 | CR28: 0.9632297904 | CS28: 0.963346453 | CT28: 0.9634581983 | CU28: 0.9635652209 | CV28: 0.963667708 | CW28: 0.9637658405 | CX28: 0.9638597927
D29: 5000 | N29: 0.032 | O29: 0.1 | P29: 0.02115 | Q29: 2026 | R29: 5027.21 | S29: =ROUND(FVSCHEDULE(S$26,O$27:O29),2) -> 929.7 | T29: =ROUND(FVSCHEDULE(T$26,P$27:P29),2) -> 3310.77 | U29: =U28+0.0002 -> 0.0651 | AA29: Año | AB29: Años BR | AC29: Edad normal | AD29: Años jub. 65 | AE29: Límite 1 | AF29: % | AG29: Límite 2 | AH29: % | AY29: 0.952829991 | AZ29: 82 | BA29: 0.9402903522 | BB29: 0.9445454822 | BC29: 0.9451661981 | BD29: 0.9457690901 | BE29: 0.946354311 | BF29: 0.9469220414 | BG29: 0.9474724894 | BH29: 0.9480058819 | BI29: 0.9485224701 | BJ29: 0.949022521 | BK29: 0.9495063217 | BL29: 0.9499741714 | BM29: 0.9504263826 | BN29: 0.9508632801 | BO29: 0.9512851981 | BP29: 0.9516924779 | BQ29: 0.9520854672 | BR29: 0.9524645194 | BS29: 0.952829991 | BT29: 0.9531822413 | BU29: 0.9535216299 | BV29: 0.9538485173 | BW29: 0.9541632625 | BX29: 0.9544662243 | BY29: 0.9547577567 | BZ29: 0.9550382121 | CA29: 0.9553079381 | CB29: 0.9555672781 | CC29: 0.9558165705 | CD29: 0.9560561481 | CE29: 0.9562863369 | CF29: 0.9565074579 | CG29: 0.956719824 | CH29: 0.956923743 | CI29: 0.9571195138 | CJ29: 0.9573074296 | CK29: 0.9574877751 | CL29: 0.9576608279 | CM29: 0.9578268584 | CN29: 0.9579861287 | CO29: 0.9581365133 | CP29: 0.9582806405 | CQ29: 0.9584187504 | CR29: 0.9585510746 | CS29: 0.9586778385 | CT29: 0.9587992604 | CU29: 0.9589155499 | CV29: 0.9590269119 | CW29: 0.9591335424 | CX29: 0.9592356305
N30: 0.032 | O30: 0.12 | P30: 0.02115 | Q30: 2027 | R30: 5188.08 | S30: =ROUND(FVSCHEDULE(S$26,O$27:O30),2) -> 1041.27 | T30: =ROUND(FVSCHEDULE(T$26,P$27:P30),2) -> 3380.79 | U30: 0.0653 | AA30: =AG19 -> 2040 | AB30: =VLOOKUP($AG$19,$AQ$6:$AR$27,2)/12 -> 25 | AC30: =VLOOKUP($AG$19,Transitorio,3) -> 67 | AD30: =VLOOKUP($AG$19,Transitorio,4) -> 38.5 | AE30: =VLOOKUP($AG$19,Transitorio,5) -> 248 | AF30: =VLOOKUP($AG$19,Transitorio,6) -> 0.0019 | AG30: =VLOOKUP($AG$19,Transitorio,7) -> 264 | AH30: =VLOOKUP($AG$19,Transitorio,8) -> 0.0018 | AY30: 0.9469680799 | AZ30: 83 | BA30: 0.9328629156 | BB30: 0.9377916671 | BC30: 0.9384791598 | BD30: 0.9391469191 | BE30: 0.9397951134 | BF30: 0.9404239423 | BG30: 0.9410336339 | BH30: 0.9416244411 | BI30: 0.9421966406 | BJ30: 0.9427505275 | BK30: 0.9432864194 | BL30: 0.9438046471 | BM30: 0.9443055573 | BN30: 0.9447895084 | BO30: 0.9452568701 | BP30: 0.9457080201 | BQ30: 0.9461433442 | BR30: 0.9465632321 | BS30: 0.9469680799 | BT30: 0.9473582833 | BU30: 0.9477342423 | BV30: 0.948096355 | BW30: 0.9484450195 | BX30: 0.9487806318 | BY30: 0.9491035854 | BZ30: 0.9494142696 | CA30: 0.9497130695 | CB30: 0.9500003649 | CC30: 0.9502765312 | CD30: 0.9505419363 | CE30: 0.9507969417 | CF30: 0.9510419025 | CG30: 0.9512771662 | CH30: 0.951503072 | CI30: 0.9517199521 | CJ30: 0.9519281308 | CK30: 0.9521279239 | CL30: 0.9523196382 | CM30: 0.9525035738 | CN30: 0.95268002 | CO30: 0.952846624 | CP30: 0.9530062952 | CQ30: 0.9531593006 | CR30: 0.9533058965 | CS30: 0.9534463329 | CT30: 0.9535808516 | CU30: 0.9537096844 | CV30: 0.9538330585 | CW30: 0.9539511907 | CX30: 0.9540642914
N31: 0.032 | O31: =$C$71 -> 0.02 | P31: 0.02115 | Q31: 2028 | R31: 5354.1 | S31: =ROUND(FVSCHEDULE(S$26,O$27:O31),2) -> 1062.09 | T31: =ROUND(FVSCHEDULE(T$26,P$27:P31),2) -> 3452.3 | U31: 0.0655 | AY31: 0.9403059481 | AZ31: 84 | BA31: 0.9247831127 | BB31: 0.9299787249 | BC31: 0.9307523949 | BD31: 0.9315038635 | BE31: 0.9322333207 | BF31: 0.9329409909 | BG31: 0.9336271291 | BH31: 0.9342920208 | BI31: 0.9349359756 | BJ31: 0.9355593261 | BK31: 0.9361624285 | BL31: 0.9367456559 | BM31: 0.9373093968 | BN31: 0.9378540549 | BO31: 0.9383800458 | BP31: 0.9388877941 | BQ31: 0.9393777339 | BR31: 0.9398503034 | BS31: 0.9403059481 | BT31: 0.9407451133 | BU31: 0.9411682482 | BV31: 0.9415758014 | BW31: 0.9419682211 | BX31: 0.9423459517 | BY31: 0.9427094366 | BZ31: 0.9430591134 | CA31: 0.9433954157 | CB31: 0.9437187711 | CC31: 0.9440296017 | CD31: 0.9443283206 | CE31: 0.944615336 | CF31: 0.9448910464 | CG31: 0.9451558433 | CH31: 0.9454101082 | CI31: 0.9456542151 | CJ31: 0.9458885296 | CK31: 0.946113405 | CL31: 0.9463291889 | CM31: 0.9465362173 | CN31: 0.9467348173 | CO31: 0.946922339 | CP31: 0.9471020582 | CQ31: 0.9472742742 | CR31: 0.9474392769 | CS31: 0.9475973472 | CT31: 0.9477487565 | CU31: 0.947893767 | CV31: 0.9480326325 | CW31: 0.9481655987 | CX31: 0.9482929018
N32: 0.032 | O32: 0.02 | P32: 0.02115 | Q32: 2029 | R32: 5525.43 | S32: =ROUND(FVSCHEDULE(S$26,O$27:O32),2) -> 1083.34 | T32: =ROUND(FVSCHEDULE(T$26,P$27:P32),2) -> 3525.31 | U32: =U31 -> 0.0655 | AY32: 0.9328383556 | AZ32: 85 | BA32: 0.9162955219 | BB32: 0.9211657303 | BC32: 0.9220401523 | BD32: 0.9228894876 | BE32: 0.9237139504 | BF32: 0.9245137944 | BG32: 0.9252893075 | BH32: 0.926040811 | BI32: 0.9267686548 | BJ32: 0.9274732148 | BK32: 0.9281548926 | BL32: 0.9288141094 | BM32: 0.9294513043 | BN32: 0.9300669332 | BO32: 0.9306614656 | BP32: 0.9312353815 | BQ32: 0.9317891697 | BR32: 0.9323233274 | BS32: 0.9328383556 | BT32: 0.9333347599 | BU32: 0.9338130459 | BV32: 0.9342737216 | BW32: 0.9347172919 | BX32: 0.9351442608 | BY32: 0.9355551276 | BZ32: 0.9359503881 | CA32: 0.9363305323 | CB32: 0.9366960423 | CC32: 0.9370473957 | CD32: 0.9373850598 | CE32: 0.9377094951 | CF32: 0.9380211526 | CG32: 0.9383204744 | CH32: 0.9386078916 | CI32: 0.9388838272 | CJ32: 0.9391486935 | CK32: 0.9394028911 | CL32: 0.9396468119 | CM32: 0.9398808363 | CN32: 0.9401053339 | CO32: 0.9403173079 | CP32: 0.9405204632 | CQ32: 0.9407151368 | CR32: 0.9409016574 | CS32: 0.9410803414 | CT32: 0.9412514961 | CU32: 0.9414154176 | CV32: 0.9415723929 | CW32: 0.9417226996 | CX32: 0.9418666052
N33: 0.032 | O33: 0.02 | P33: 0.02115 | Q33: 2030 | R33: 5702.24 | S33: =ROUND(FVSCHEDULE(S$26,O$27:O33),2) -> 1105 | T33: =ROUND(FVSCHEDULE(T$26,P$27:P33),2) -> 3599.87 | U33: =U32 -> 0.0655 | AY33: 0.924548119 | AZ33: 86 | BA33: 0.9059972598 | BB33: 0.9113856458 | BC33: 0.9123716408 | BD33: 0.9133293533 | BE33: 0.9142590253 | BF33: 0.9151609412 | BG33: 0.9160354261 | BH33: 0.916882841 | BI33: 0.9177035807 | BJ33: 0.9184980693 | BK33: 0.9192667577 | BL33: 0.9200101214 | BM33: 0.9207286554 | BN33: 0.9214228735 | BO33: 0.922093304 | BP33: 0.9227404889 | BQ33: 0.9233649789 | BR33: 0.9239673338 | BS33: 0.924548119 | BT33: 0.9251079043 | BU33: 0.9256472594 | BV33: 0.9261667577 | BW33: 0.9266669673 | BX33: 0.9271484576 | BY33: 0.9276117905 | BZ33: 0.9280575254 | CA33: 0.9284862148 | CB33: 0.9288984023 | CC33: 0.9292946256 | CD33: 0.9296754127 | CE33: 0.9300412821 | CF33: 0.930392743 | CG33: 0.9307302926 | CH33: 0.9310544185 | CI33: 0.931365597 | CJ33: 0.931664292 | CK33: 0.931950957 | CL33: 0.9322260327 | CM33: 0.9324899482 | CN33: 0.9327431205 | CO33: 0.93298217 | CP33: 0.9332112746 | CQ33: 0.9334308149 | CR33: 0.9336411604 | CS33: 0.9338426691 | CT33: 0.9340356866 | CU33: 0.9342205471 | CV33: 0.9343975744 | CW33: 0.9345670811 | CX33: 0.9347293693
N34: 0.032 | O34: 0.02 | P34: 0.02115 | Q34: 2031 | R34: 5884.71 | S34: =ROUND(FVSCHEDULE(S$26,O$27:O34),2) -> 1127.1 | T34: =ROUND(FVSCHEDULE(T$26,P$27:P34),2) -> 3676.01 | U34: 0.0655 | AY34: 0.9154736305 | AZ34: 87 | BA34: 0.894095835 | BB34: 0.9007980998 | BC34: 0.9018974459 | BD34: 0.902965257 | BE34: 0.9040018027 | BF34: 0.9050074001 | BG34: 0.9059824121 | BH34: 0.9069272416 | BI34: 0.9078423276 | BJ34: 0.9087281445 | BK34: 0.9095851945 | BL34: 0.9104140079 | BM34: 0.9112151361 | BN34: 0.9119891532 | BO34: 0.9127366477 | BP34: 0.9134582237 | BQ34: 0.9141544956 | BR34: 0.9148260876 | BS34: 0.9154736305 | BT34: 0.9160977584 | BU34: 0.9166991075 | BV34: 0.9172783172 | BW34: 0.917836021 | BX34: 0.9183728527 | BY34: 0.9188894407 | BZ34: 0.9193864074 | CA34: 0.9198643687 | CB34: 0.920323932 | CC34: 0.9207656953 | CD34: 0.9211902483 | CE34: 0.9215981683 | CF34: 0.9219900239 | CG34: 0.9223663692 | CH34: 0.9227277476 | CI34: 0.9230746908 | CJ34: 0.9234077154 | CK34: 0.9237273272 | CL34: 0.9240340174 | CM34: 0.9243282644 | CN34: 0.9246105337 | CO34: 0.9248770575 | CP34: 0.9251324929 | CQ34: 0.9253772646 | CR34: 0.9256117852 | CS34: 0.9258364525 | CT34: 0.9260516529 | CU34: 0.9262577588 | CV34: 0.9264551316 | CW34: 0.9266441196 | CX34: 0.9268250587
N35: 0.032 | O35: 0.02 | P35: 0.02115 | Q35: 2032 | R35: 6073.02 | S35: =ROUND(FVSCHEDULE(S$26,O$27:O35),2) -> 1149.64 | T35: =ROUND(FVSCHEDULE(T$26,P$27:P35),2) -> 3753.76 | U35: 0.0655 | AY35: 0.9052455858 | AZ35: 88 | BA35: 0.8813743856 | BB35: 0.8886359346 | BC35: 0.8898798701 | BD35: 0.8910881697 | BE35: 0.8922611335 | BF35: 0.8933991172 | BG35: 0.8945025269 | BH35: 0.8955718155 | BI35: 0.8966074765 | BJ35: 0.8976100428 | BK35: 0.8985800804 | BL35: 0.8995181859 | BM35: 0.9004249819 | BN35: 0.9013011142 | BO35: 0.9021472475 | BP35: 0.9029640626 | BQ35: 0.9037522529 | BR35: 0.9045125233 | BS35: 0.9052455858 | BT35: 0.9059521557 | BU35: 0.9066329534 | BV35: 0.9072886988 | BW35: 0.9079201091 | BX35: 0.9085279003 | BY35: 0.9091127823 | BZ35: 0.9096754591 | CA35: 0.9102166262 | CB35: 0.9107369706 | CC35: 0.9112371686 | CD35: 0.9117178871 | CE35: 0.9121797784 | CF35: 0.9126234856 | CG35: 0.9130496362 | CH35: 0.9134588441 | CI35: 0.9138517107 | CJ35: 0.9142288211 | CK35: 0.9145907469 | CL35: 0.9149380441 | CM35: 0.915271254 | CN35: 0.9155909032 | CO35: 0.9158927246 | CP35: 0.9161819915 | CQ35: 0.916459185 | CR35: 0.9167247713 | CS35: 0.9169792013 | CT35: 0.9172229114 | CU35: 0.9174563243 | CV35: 0.9176798487 | CW35: 0.917893879 | CX35: 0.9180987948
B36: Nivel de gastos iniciales en la jubilación (€ actuales al mes) | C36: 2700 | N36: 0.032 | O36: 0.02 | P36: 0.02115 | Q36: 2033 | R36: 6267.36 | S36: =ROUND(FVSCHEDULE(S$26,O$27:O36),2) -> 1172.64 | T36: =ROUND(FVSCHEDULE(T$26,P$27:P36),2) -> 3833.15 | U36: 0.0655 | AY36: 0.8940153666 | AZ36: 89 | BA36: 0.8675705987 | BB36: 0.8752939279 | BC36: 0.8766962305 | BD36: 0.8780583277 | BE36: 0.8793805607 | BF36: 0.8806633327 | BG36: 0.8819071047 | BH36: 0.8831123894 | BI36: 0.884279746 | BJ36: 0.8854097766 | BK36: 0.8865031221 | BL36: 0.887560457 | BM36: 0.8885824844 | BN36: 0.8895699348 | BO36: 0.8905235583 | BP36: 0.8914441239 | BQ36: 0.8923324157 | BR36: 0.8931892287 | BS36: 0.8940153666 | BT36: 0.8948116374 | BU36: 0.895578854 | BV36: 0.8963178278 | BW36: 0.8970293696 | BX36: 0.8977142871 | BY36: 0.8983733802 | BZ36: 0.8990074439 | CA36: 0.8996172616 | CB36: 0.90020361 | CC36: 0.900767251 | CD36: 0.9013089361 | CE36: 0.9018294023 | CF36: 0.9023293736 | CG36: 0.9028095578 | CH36: 0.903270648 | CI36: 0.9037133209 | CJ36: 0.9041382374 | CK36: 0.9045460411 | CL36: 0.9049373594 | CM36: 0.9053128032 | CN36: 0.9056729642 | CO36: 0.9060130359 | CP36: 0.9063389605 | CQ36: 0.9066512796 | CR36: 0.9069505195 | CS36: 0.9072371876 | CT36: 0.9075117769 | CU36: 0.9077747627 | CV36: 0.9080266063 | CW36: 0.9082677512 | CX36: 0.9084986264
N37: 0.032 | O37: 0.02 | P37: 0.02115 | Q37: 2034 | R37: 6467.92 | S37: =ROUND(FVSCHEDULE(S$26,O$27:O37),2) -> 1196.09 | T37: =ROUND(FVSCHEDULE(T$26,P$27:P37),2) -> 3914.22 | U37: 0.0655 | AY37: 0.8818992693 | AZ37: 90 | BA37: 0.8530939351 | BB37: 0.8611233515 | BC37: 0.8626792522 | BD37: 0.8641905894 | BE37: 0.865657737 | BF37: 0.8670811395 | BG37: 0.8684613036 | BH37: 0.8697987945 | BI37: 0.8710942304 | BJ37: 0.8723482759 | BK37: 0.873561639 | BL37: 0.8747350657 | BM37: 0.8758693332 | BN37: 0.876965249 | BO37: 0.8780236449 | BP37: 0.8790453702 | BQ37: 0.8800312947 | BR37: 0.8809822978 | BS37: 0.8818992693 | BT37: 0.8827831056 | BU37: 0.883634706 | BV37: 0.88445497 | BW37: 0.8852447973 | BX37: 0.8860050812 | BY37: 0.8867367096 | BZ37: 0.8874405632 | CA37: 0.8881175112 | CB37: 0.8887684136 | CC37: 0.8893941168 | CD37: 0.889995453 | CE37: 0.8905732401 | CF37: 0.8911282812 | CG37: 0.8916613609 | CH37: 0.892173248 | CI37: 0.8926646937 | CJ37: 0.8931364305 | CK37: 0.8935891727 | CL37: 0.8940236166 | CM37: 0.8944404397 | CN37: 0.8948402985 | CO37: 0.895217857 | CP37: 0.8955797108 | CQ37: 0.895926462 | CR37: 0.8962586936 | CS37: 0.8965769694 | CT37: 0.8968818366 | CU37: 0.8971738224 | CV37: 0.8974534385 | CW37: 0.8977211773 | CX37: 0.8979775154
N38: 0.032 | O38: 0.02 | P38: 0.02115 | Q38: 2035 | R38: 6674.89 | S38: =ROUND(FVSCHEDULE(S$26,O$27:O38),2) -> 1220.01 | T38: =ROUND(FVSCHEDULE(T$26,P$27:P38),2) -> 3997.01 | U38: 0.0655 | W38: =MONTH(TODAY()) -> 1 | AY38: 0.8687962764 | AZ38: 91 | BA38: 0.8377645933 | BB38: 0.8459188698 | BC38: 0.8476324178 | BD38: 0.8492968447 | BE38: 0.8509125673 | BF38: 0.852480078 | BG38: 0.8539999376 | BH38: 0.8554727723 | BI38: 0.8568992661 | BJ38: 0.8582801535 | BK38: 0.8596162166 | BL38: 0.8609082801 | BM38: 0.8621572027 | BN38: 0.8633638744 | BO38: 0.8645292142 | BP38: 0.8656541597 | BQ38: 0.86673967 | BR38: 0.867786715 | BS38: 0.8687962764 | BT38: 0.8697693429 | BU38: 0.8707069063 | BV38: 0.8716099581 | BW38: 0.8724794899 | BX38: 0.8733164866 | BY38: 0.8741219268 | BZ38: 0.8748967811 | CA38: 0.8756420081 | CB38: 0.8763585542 | CC38: 0.8770473531 | CD38: 0.8777093214 | CE38: 0.8783453604 | CF38: 0.8789563538 | CG38: 0.879543168 | CH38: 0.8801066478 | CI38: 0.8806476222 | CJ38: 0.8811668974 | CK38: 0.8816652601 | CL38: 0.8821434779 | CM38: 0.8826022949 | CN38: 0.8830424369 | CO38: 0.8834580294 | CP38: 0.8838563322 | CQ38: 0.8842380099 | CR38: 0.8846037025 | CS38: 0.8849540329 | CT38: 0.885289602 | CU38: 0.8856109914 | CV38: 0.8859187635 | CW38: 0.8862134614 | CX38: 0.8864956095
N39: 0.032 | O39: 0.02 | P39: 0.02115 | Q39: 2036 | R39: 6888.49 | S39: =ROUND(FVSCHEDULE(S$26,O$27:O39),2) -> 1244.41 | T39: =ROUND(FVSCHEDULE(T$26,P$27:P39),2) -> 4081.54 | U39: 0.0655 | AY39: 0.8549282686 | AZ39: 92 | BA39: 0.8199357816 | BB39: 0.8302505198 | BC39: 0.8320987953 | BD39: 0.8338941064 | BE39: 0.8356369013 | BF39: 0.8373277084 | BG39: 0.8389671329 | BH39: 0.8405558482 | BI39: 0.8420945895 | BJ39: 0.8435841487 | BK39: 0.8450253684 | BL39: 0.846419136 | BM39: 0.8477663775 | BN39: 0.8490680519 | BO39: 0.8503251488 | BP39: 0.8515386797 | BQ39: 0.852709677 | BR39: 0.8538391874 | BS39: 0.8549282686 | BT39: 0.8559779864 | BU39: 0.8569894099 | BV39: 0.857963609 | BW39: 0.8589016514 | BX39: 0.8598045998 | BY39: 0.8606735097 | BZ39: 0.8615094272 | CA39: 0.8623133862 | CB39: 0.8630864071 | CC39: 0.863829497 | CD39: 0.8645436441 | CE39: 0.8652298214 | CF39: 0.8658889803 | CG39: 0.8665220559 | CH39: 0.8671299604 | CI39: 0.8677135865 | CJ39: 0.8682738043 | CK39: 0.8688114629 | CL39: 0.869327389 | CM39: 0.8698223858 | CN39: 0.8702972367 | CO39: 0.8707456027 | CP39: 0.8711753169 | CQ39: 0.8715870955 | CR39: 0.8719816295 | CS39: 0.87235959 | CT39: 0.872721626 | CU39: 0.8730683645 | CV39: 0.873400413 | CW39: 0.8737183557 | CX39: 0.8740227596
N40: 0.032 | O40: 0.02 | P40: 0.02115 | Q40: 2037 | R40: 7108.92 | S40: =ROUND(FVSCHEDULE(S$26,O$27:O40),2) -> 1269.3 | T40: =ROUND(FVSCHEDULE(T$26,P$27:P40),2) -> 4167.87 | U40: 0.0655 | AY40: 0.8400684799 | AZ40: 93 | BA40: 0.8019077603 | BB40: 0.8136070736 | BC40: 0.8155890344 | BD40: 0.817514185 | BE40: 0.8193830071 | BF40: 0.8211960689 | BG40: 0.8229540211 | BH40: 0.8246575856 | BI40: 0.8263075527 | BJ40: 0.8279047727 | BK40: 0.8294501493 | BL40: 0.8309446359 | BM40: 0.8323892254 | BN40: 0.8337849481 | BO40: 0.8351328648 | BP40: 0.8364340619 | BQ40: 0.8376896455 | BR40: 0.8389007404 | BS40: 0.8400684799 | BT40: 0.8411940078 | BU40: 0.8422784711 | BV40: 0.843323018 | BW40: 0.844328793 | BX40: 0.845296936 | BY40: 0.8462285798 | BZ40: 0.8471248453 | CA40: 0.8479868426 | CB40: 0.8488156657 | CC40: 0.8496123944 | CD40: 0.8503780893 | CE40: 0.8511137924 | CF40: 0.8518205261 | CG40: 0.852499291 | CH40: 0.8531510676 | CI40: 0.8537768115 | CJ40: 0.8543774561 | CK40: 0.854953913 | CL40: 0.8555070667 | CM40: 0.8560377812 | CN40: 0.8565468947 | CO40: 0.8570276105 | CP40: 0.8574883288 | CQ40: 0.8579298158 | CR40: 0.8583528144 | CS40: 0.8587580426 | CT40: 0.8591461967 | CU40: 0.8595179492 | CV40: 0.8598739514 | CW40: 0.8602148302 | CX40: 0.8605411928
N41: 0.032 | O41: 0.02 | P41: 0.02115 | Q41: 2038 | R41: 7336.41 | S41: =ROUND(FVSCHEDULE(S$26,O$27:O41),2) -> 1294.69 | T41: =ROUND(FVSCHEDULE(T$26,P$27:P41),2) -> 4256.02 | U41: 0.0655 | AA41: DATOS DEL INDIVIDUO Y TASA DE SUSTITUCIÓN CORRESPONDIENTE | AY41: 0.8248905076 | AZ41: 94 | BA41: 0.7853667217 | BB41: 0.7975208574 | BC41: 0.7995717625 | BD41: 0.8015637367 | BE41: 0.8034972922 | BF41: 0.8053730293 | BG41: 0.8071916326 | BH41: 0.80895386 | BI41: 0.8106605406 | BJ41: 0.8123125633 | BK41: 0.8139108733 | BL41: 0.8154564649 | BM41: 0.8169503739 | BN41: 0.8183936743 | BO41: 0.8197874703 | BP41: 0.821132893 | BQ41: 0.8224310924 | BR41: 0.8236832378 | BS41: 0.8248905076 | BT41: 0.826054089 | BU41: 0.8271751744 | BV41: 0.8282549537 | BW41: 0.8292946159 | BX41: 0.8302953439 | BY41: 0.8312583121 | BZ41: 0.832184682 | CA41: 0.8330756056 | CB41: 0.8339322167 | CC41: 0.8347556335 | CD41: 0.8355469556 | CE41: 0.8363072617 | CF41: 0.8370376119 | CG41: 0.8377390417 | CH41: 0.8384125658 | CI41: 0.8390591749 | CJ41: 0.8396798346 | CK41: 0.8402754878 | CL41: 0.8408470513 | CM41: 0.8413954179 | CN41: 0.8419214561 | CO41: 0.8424181434 | CP41: 0.842894162 | CQ41: 0.8433503028 | CR41: 0.8437873349 | CS41: 0.8442060016 | CT41: 0.8446070223 | CU41: 0.8449910932 | CV41: 0.8453588864 | CW41: 0.8457110513 | CX41: 0.8460482156
N42: 0.032 | O42: 0.02 | P42: 0.02115 | Q42: 2039 | R42: 7571.18 | S42: =ROUND(FVSCHEDULE(S$26,O$27:O42),2) -> 1320.58 | T42: =ROUND(FVSCHEDULE(T$26,P$27:P42),2) -> 4346.03 | U42: 0.0655 | AY42: 0.8102523967 | AZ42: 95 | BA42: 0.7701621072 | BB42: 0.7839480255 | BC42: 0.7859205498 | BD42: 0.7878361687 | BE42: 0.7896953948 | BF42: 0.7914988252 | BG42: 0.7932471361 | BH42: 0.7949410752 | BI42: 0.7965814557 | BJ42: 0.798169148 | BK42: 0.7997050765 | BL42: 0.8011902099 | BM42: 0.8026255579 | BN42: 0.8040121648 | BO42: 0.8053511048 | BP42: 0.8066434737 | BQ42: 0.8078903892 | BR42: 0.8090929829 | BS42: 0.8102523967 | BT42: 0.8113697797 | BU42: 0.8124462848 | BV42: 0.8134830619 | BW42: 0.8144812607 | BX42: 0.8154420233 | BY42: 0.8163664832 | BZ42: 0.8172557626 | CA42: 0.8181109707 | CB42: 0.8189332023 | CC42: 0.819723535 | CD42: 0.8204830287 | CE42: 0.8212127224 | CF42: 0.8219136379 | CG42: 0.8225867716 | CH42: 0.8232331007 | CI42: 0.8238535792 | CJ42: 0.8244491358 | CK42: 0.8250206789 | CL42: 0.8255690897 | CM42: 0.8260952268 | CN42: 0.8265999258 | CO42: 0.8270764516 | CP42: 0.8275331352 | CQ42: 0.8279707377 | CR42: 0.828389997 | CS42: 0.8287916291 | CT42: 0.8291763246 | CU42: 0.8295447525 | CV42: 0.829897558 | CW42: 0.8302353655 | CX42: 0.8305587782
N43: 0.032 | O43: 0.02 | P43: 0.02115 | Q43: 2040 | R43: 7813.46 | S43: =ROUND(FVSCHEDULE(S$26,O$27:O43),2) -> 1346.99 | T43: =ROUND(FVSCHEDULE(T$26,P$27:P43),2) -> 4437.95 | U43: 0.0655 | AC43: Situación aplicable | AD43: =IF(AC60<AB69,1,IF(YEARFRAC(AB69,AC60,1)>=1,2,0)) -> 1 | AY43: 0.7950213067 | AZ43: 96 | BA43: 0.7550653135 | BB43: 0.770323771 | BC43: 0.7721747384 | BD43: 0.7739724753 | BE43: 0.7757174459 | BF43: 0.7774101965 | BG43: 0.7790513484 | BH43: 0.7806415898 | BI43: 0.7821816721 | BJ43: 0.7836724008 | BK43: 0.7851146324 | BL43: 0.7865092656 | BM43: 0.7878572388 | BN43: 0.7891595234 | BO43: 0.7904171185 | BP43: 0.7916310462 | BQ43: 0.7928023485 | BR43: 0.7939320797 | BS43: 0.7950213067 | BT43: 0.796071102 | BU43: 0.7970825422 | BV43: 0.7980567034 | BW43: 0.7989946593 | BX43: 0.7998974783 | BY43: 0.8007662214 | BZ43: 0.8016019393 | CA43: 0.8024056692 | CB43: 0.8031784372 | CC43: 0.8039212524 | CD43: 0.8046351076 | CE43: 0.8053209764 | CF43: 0.8059798169 | CG43: 0.8066125627 | CH43: 0.8072201301 | CI43: 0.8078034136 | CJ43: 0.808363285 | CK43: 0.8089005958 | CL43: 0.8094161718 | CM43: 0.8099108209 | CN43: 0.8103853243 | CO43: 0.8108333511 | CP43: 0.8112627308 | CQ43: 0.8116741784 | CR43: 0.8120683871 | CS43: 0.8124460288 | CT43: 0.8128077514 | CU43: 0.8131541831 | CV43: 0.8134859314 | CW43: 0.8138035816 | CX43: 0.8141077003
N44: 0.032 | O44: 0.02 | P44: 0.02115 | Q44: 2041 | R44: 8063.49 | S44: =ROUND(FVSCHEDULE(S$26,O$27:O44),2) -> 1373.93 | T44: =ROUND(FVSCHEDULE(T$26,P$27:P44),2) -> 4531.81 | U44: 0.0655 | AC44: Anticipada | AD44: 1 | AY44: 0.7779892013 | AZ44: 97 | BA44: 0.7382644844 | BB44: 0.7537154601 | BC44: 0.7555344974 | BD44: 0.7573012486 | BE44: 0.7590161681 | BF44: 0.7606797905 | BG44: 0.7622927242 | BH44: 0.7638556429 | BI44: 0.7653692835 | BJ44: 0.7668344359 | BK44: 0.7682519396 | BL44: 0.7696226766 | BM44: 0.7709475683 | BN44: 0.7722275666 | BO44: 0.773463653 | BP44: 0.7746568309 | BQ44: 0.7758081225 | BR44: 0.7769185633 | BS44: 0.7779892013 | BT44: 0.7790210887 | BU44: 0.7800152836 | BV44: 0.7809728429 | BW44: 0.7818948206 | BX44: 0.7827822662 | BY44: 0.7836362229 | BZ44: 0.784457721 | CA44: 0.785247781 | CB44: 0.7860074102 | CC44: 0.7867375998 | CD44: 0.7874393259 | CE44: 0.7881135452 | CF44: 0.788761198 | CG44: 0.7893832026 | CH44: 0.7899804591 | CI44: 0.7905538462 | CJ44: 0.7911042219 | CK44: 0.7916324206 | CL44: 0.7921392558 | CM44: 0.7926255206 | CN44: 0.7930919829 | CO44: 0.7935324186 | CP44: 0.793954525 | CQ44: 0.7943590042 | CR44: 0.7947465378 | CS44: 0.7951177859 | CT44: 0.7954733854 | CU44: 0.7958139536 | CV44: 0.7961400882 | CW44: 0.7964523636 | CX44: 0.7967513371
N45: 0.032 | O45: 0.02 | P45: 0.02115 | Q45: 2042 | R45: 8321.52 | S45: =ROUND(FVSCHEDULE(S$26,O$27:O45),2) -> 1401.41 | T45: =ROUND(FVSCHEDULE(T$26,P$27:P45),2) -> 4627.66 | U45: 0.0655 | AC45: Demorada | AD45: 2 | AY45: 0.7620768389 | AZ45: 98 | BA45: 0.7327696096 | BB45: 0.740654538 | BC45: 0.7422633383 | BD45: 0.7438253536 | BE45: 0.7453410362 | BF45: 0.7468109044 | BG45: 0.7482355403 | BH45: 0.7496155819 | BI45: 0.7509517189 | BJ45: 0.7522446883 | BK45: 0.7534952659 | BL45: 0.7547042654 | BM45: 0.7558725318 | BN45: 0.7570009344 | BO45: 0.7580903683 | BP45: 0.7591417445 | BQ45: 0.7601559892 | BR45: 0.7611340388 | BS45: 0.7620768389 | BT45: 0.7629853372 | BU45: 0.7638604854 | BV45: 0.764703231 | BW45: 0.7655145208 | BX45: 0.7662952928 | BY45: 0.7670464801 | BZ45: 0.7677690033 | CA45: 0.7684637722 | CB45: 0.7691316857 | CC45: 0.7697736257 | CD45: 0.7703904609 | CE45: 0.7709830419 | CF45: 0.7715522037 | CG45: 0.7720987626 | CH45: 0.7726235167 | CI45: 0.7731272447 | CJ45: 0.7736107067 | CK45: 0.7740746428 | CL45: 0.7745197723 | CM45: 0.7749467968 | CN45: 0.7753563964 | CO45: 0.7757431094 | CP45: 0.7761136999 | CQ45: 0.7764687881 | CR45: 0.7768089751 | CS45: 0.7771348433 | CT45: 0.7774469558 | CU45: 0.7777458564 | CV45: 0.7780320713 | CW45: 0.7783061085 | CX45: 0.7785684571
N46: 0.032 | O46: 0.02 | P46: 0.02115 | Q46: 2043 | R46: 8587.81 | S46: =ROUND(FVSCHEDULE(S$26,O$27:O46),2) -> 1429.44 | T46: =ROUND(FVSCHEDULE(T$26,P$27:P46),2) -> 4725.54 | U46: 0.0655 | AY46: 0.7503252182 | AZ46: 99 | BA46: 0.734871644 | BB46: 0.7381134677 | BC46: 0.7390339533 | BD46: 0.7399271416 | BE46: 0.7407933385 | BF46: 0.7416328856 | BG46: 0.7424461579 | BH46: 0.743233562 | BI46: 0.7439955291 | BJ46: 0.7447325181 | BK46: 0.7454450055 | BL46: 0.7461334899 | BM46: 0.7467984834 | BN46: 0.7474405113 | BO46: 0.7480601114 | BP46: 0.7486578281 | BQ46: 0.7492342134 | BR46: 0.7497898237 | BS46: 0.7503252182 | BT46: 0.7508409554 | BU46: 0.7513375959 | BV46: 0.751815695 | BW46: 0.7522758071 | BX46: 0.7527184811 | BY46: 0.7531442595 | BZ46: 0.753553679 | CA46: 0.7539472675 | CB46: 0.7543255469 | CC46: 0.7546890273 | CD46: 0.7550382108 | CE46: 0.755373589 | CF46: 0.7556956431 | CG46: 0.7560048439 | CH46: 0.7563016496 | CI46: 0.7565865092 | CJ46: 0.7568598573 | CK46: 0.7571221196 | CL46: 0.7573737081 | CM46: 0.757615025 | CN46: 0.7578464584 | CO46: 0.7580649281 | CP46: 0.7582742599 | CQ46: 0.7584748086 | CR46: 0.758666916 | CS46: 0.7588509147 | CT46: 0.7590271259 | CU46: 0.7591958581 | CV46: 0.7593574121 | CW46: 0.7595120765 | CX46: 0.7596601287
N47: 0.032 | O47: 0.02 | P47: 0.02115 | Q47: 2044 | R47: 8862.62 | S47: =ROUND(FVSCHEDULE(S$26,O$27:O47),2) -> 1458.03 | T47: =ROUND(FVSCHEDULE(T$26,P$27:P47),2) -> 4825.48 | U47: 0.0655 | AC47: Meses penalización por jubilación anticipada | AD47: =ROUNDUP(YEARFRAC(AC60,AB64)*12,0) -> 24 | AY47: 1.809277548 | AZ47: 100 | BA47: 1.345361471 | BB47: 1.39070813 | BC47: 1.406023469 | BD47: 1.44002093 | BE47: 1.470952925 | BF47: 1.505110317 | BG47: 1.545016616 | BH47: 1.572527653 | BI47: 1.58918056 | BJ47: 1.622374115 | BK47: 1.631008664 | BL47: 1.658660909 | BM47: 1.672827131 | BN47: 1.700195822 | BO47: 1.714492207 | BP47: 1.742656379 | BQ47: 1.776404702 | BR47: 1.794379233 | BS47: 1.809277548 | BT47: 1.855690968 | BU47: 1.901424651 | BV47: 1.942037963 | BW47: 1.800299518 | BX47: 1.912591551 | BY47: 1.898161994 | BZ47: 1.871450836 | CA47: 1.901901009 | CB47: 1.913742507 | CC47: 1.957632064 | CD47: 1.958688712 | CE47: 1.949553235 | CF47: 1.992530133 | CG47: 2.020015793 | CH47: 2.022725984 | CI47: 2.01346244 | CJ47: 2.032907869 | CK47: 2.051034025 | CL47: 2.048177547 | CM47: 2.055757441 | CN47: 2.050486022 | CO47: 2.064730771 | CP47: 2.077287936 | CQ47: 2.087507795 | CR47: 2.10656987 | CS47: 2.113725445 | CT47: 2.116106512 | CU47: 2.11561209 | CV47: 2.137982217 | CW47: 2.146922701 | CX47: 2.15102952
N48: 0.032 | O48: 0.02 | P48: 0.02115 | Q48: 2045 | R48: 9146.22 | S48: =ROUND(FVSCHEDULE(S$26,O$27:O48),2) -> 1487.19 | T48: =ROUND(FVSCHEDULE(T$26,P$27:P48),2) -> 4927.54 | U48: 0.0655 | AC48: Coeficiene reductor | AD48: =IF(AD43=1,VLOOKUP(AD47,IF(C27="No",$AZ$102:$BD$126,$BE$102:$BI$150),BC97)/100,0) -> 0.21
N49: 0.032 | O49: 0.02 | P49: 0.02115 | Q49: 2046 | R49: 9438.9 | S49: =ROUND(FVSCHEDULE(S$26,O$27:O49),2) -> 1516.93 | T49: =ROUND(FVSCHEDULE(T$26,P$27:P49),2) -> 5031.76 | U49: 0.0655 | AC49: Años jubilación demorada | AD49: =ROUNDDOWN(YEARFRAC(AC60,AB69),0) -> 2 | AZ49: Mujer | BA49: Años
N50: 0.032 | O50: 0.02 | P50: 0.02115 | Q50: 2047 | R50: 9740.94 | S50: =ROUND(FVSCHEDULE(S$26,O$27:O50),2) -> 1547.27 | T50: =ROUND(FVSCHEDULE(T$26,P$27:P50),2) -> 5138.18 | U50: 0.0655 | AC50: Bonificación por año | AD50: =IF(AND(AD43=2,S12=TRUE),0.04,0) -> 0 | AZ50: Edades | BA50: 2022 | BB50: 2023 | BC50: 2024 | BD50: 2025 | BE50: 2026 | BF50: 2027 | BG50: 2028 | BH50: 2029 | BI50: 2030 | BJ50: 2031 | BK50: 2032 | BL50: 2033 | BM50: 2034 | BN50: 2035 | BO50: 2036 | BP50: 2037 | BQ50: 2038 | BR50: 2039 | BS50: 2040 | BT50: 2041 | BU50: 2042 | BV50: 2043 | BW50: 2044 | BX50: 2045 | BY50: 2046 | BZ50: 2047 | CA50: 2048 | CB50: 2049 | CC50: 2050 | CD50: 2051 | CE50: 2052 | CF50: 2053 | CG50: 2054 | CH50: 2055 | CI50: 2056 | CJ50: 2057 | CK50: 2058 | CL50: 2059 | CM50: 2060 | CN50: 2061 | CO50: 2062 | CP50: 2063 | CQ50: 2064 | CR50: 2065 | CS50: 2066 | CT50: 2067 | CU50: 2068 | CV50: 2069 | CW50: 2070 | CX50: 2071
N51: 0.032 | O51: 0.02 | P51: 0.02115 | Q51: 2048 | R51: 10052.65 | S51: =ROUND(FVSCHEDULE(S$26,O$27:O51),2) -> 1578.22 | T51: =ROUND(FVSCHEDULE(T$26,P$27:P51),2) -> 5246.85 | U51: 0.0655 | AZ51: 61 | BA51: 0.9961518455 | BB51: 0.9965665822 | BC51: 0.9966421788 | BD51: 0.9967157774 | BE51: 0.9967874155 | BF51: 0.9968571315 | BG51: 0.9969249625 | BH51: 0.9969909468 | BI51: 0.9970551226 | BJ51: 0.9971175272 | BK51: 0.9971781981 | BL51: 0.9972371734 | BM51: 0.9972944896 | BN51: 0.997350185 | BO51: 0.9974042952 | BP51: 0.9974568572 | BQ51: 0.997507906 | BR51: 0.997557478 | BS51: 0.9976056087 | BT51: 0.9976523322 | BU51: 0.9976988033 | BV51: 0.9977439351 | BW51: 0.9977877616 | BX51: 0.9978303152 | BY51: 0.9978716291 | BZ51: 0.9979117341 | CA51: 0.9979506623 | CB51: 0.9979884432 | CC51: 0.9980251081 | CD51: 0.9980606858 | CE51: 0.9980952065 | CF51: 0.9981286964 | CG51: 0.998161185 | CH51: 0.9981926996 | CI51: 0.9982232658 | CJ51: 0.9982529112 | CK51: 0.9982816596 | CL51: 0.9983095371 | CM51: 0.9983365677 | CN51: 0.998362776 | CO51: 0.9983881842 | CP51: 0.9984128156 | CQ51: 0.9984366925 | CR51: 0.998459836 | CS51: 0.9984822681 | CT51: 0.9985040092 | CU51: 0.9985250779 | CV51: 0.9985454962 | CW51: 0.9985652815 | CX51: 0.9985844529
N52: 0.032 | O52: 0.02 | P52: 0.02115 | Q52: 2049 | R52: 10374.33 | S52: =ROUND(FVSCHEDULE(S$26,O$27:O52),2) -> 1609.78 | T52: =ROUND(FVSCHEDULE(T$26,P$27:P52),2) -> 5357.82 | U52: 0.0655 | AZ52: 62 | BA52: 0.995819866 | BB52: 0.9962792053 | BC52: 0.996359839 | BD52: 0.996438342 | BE52: 0.9965147528 | BF52: 0.996589114 | BG52: 0.9966614641 | BH52: 0.9967318445 | BI52: 0.9968002956 | BJ52: 0.9968668581 | BK52: 0.9969315714 | BL52: 0.9969944754 | BM52: 0.9970556102 | BN52: 0.9971150157 | BO52: 0.997172731 | BP52: 0.9972287939 | BQ52: 0.9972832436 | BR52: 0.9973361185 | BS52: 0.9973874552 | BT52: 0.9974372914 | BU52: 0.9974868578 | BV52: 0.9975349964 | BW52: 0.9975817416 | BX52: 0.9976271305 | BY52: 0.997671196 | BZ52: 0.9977139721 | CA52: 0.9977554935 | CB52: 0.9977957909 | CC52: 0.9978348985 | CD52: 0.9978728462 | CE52: 0.9979096655 | CF52: 0.9979453869 | CG52: 0.9979800394 | CH52: 0.9980136525 | CI52: 0.9980462547 | CJ52: 0.9980778746 | CK52: 0.998108538 | CL52: 0.9981382724 | CM52: 0.9981671035 | CN52: 0.9981950567 | CO52: 0.9982221574 | CP52: 0.9982484292 | CQ52: 0.9982738965 | CR52: 0.9982985815 | CS52: 0.9983225074 | CT52: 0.9983456965 | CU52: 0.9983681686 | CV52: 0.9983899467 | CW52: 0.9984110495 | CX52: 0.9984314977
N53: 0.032 | O53: 0.02 | P53: 0.02115 | Q53: 2050 | R53: 10706.31 | S53: =ROUND(FVSCHEDULE(S$26,O$27:O53),2) -> 1641.98 | T53: =ROUND(FVSCHEDULE(T$26,P$27:P53),2) -> 5471.14 | U53: 0.0655 | AZ53: 63 | BA53: 0.9954931468 | BB53: 0.9959696151 | BC53: 0.9960542845 | BD53: 0.9961367169 | BE53: 0.9962169528 | BF53: 0.9962950356 | BG53: 0.9963710072 | BH53: 0.9964449108 | BI53: 0.9965167882 | BJ53: 0.9965866825 | BK53: 0.9966546352 | BL53: 0.9967206881 | BM53: 0.9967848834 | BN53: 0.9968472625 | BO53: 0.9969078664 | BP53: 0.9969667355 | BQ53: 0.9970239109 | BR53: 0.9970794326 | BS53: 0.997133339 | BT53: 0.9971856701 | BU53: 0.9972377173 | BV53: 0.9972882653 | BW53: 0.9973373509 | BX53: 0.9973850118 | BY53: 0.9974312833 | BZ53: 0.9974762005 | CA53: 0.9975198004 | CB53: 0.9975621155 | CC53: 0.9976031802 | CD53: 0.9976430275 | CE53: 0.9976816895 | CF53: 0.9977191992 | CG53: 0.997755587 | CH53: 0.9977908824 | CI53: 0.9978251169 | CJ53: 0.997858319 | CK53: 0.9978905178 | CL53: 0.9979217407 | CM53: 0.9979520151 | CN53: 0.9979813677 | CO53: 0.9980098249 | CP53: 0.9980374116 | CQ53: 0.9980641539 | CR53: 0.9980900744 | CS53: 0.9981151984 | CT53: 0.9981395479 | CU53: 0.9981631451 | CV53: 0.9981860133 | CW53: 0.9982081726 | CX53: 0.9982296444
N54: 0.032 | O54: 0.02 | P54: =$C$71+3.2%-SUM($P$28:P53)+$C$71*COUNT($P$28:P53) -> 0.0221 | Q54: 2051 | R54: 11048.91 | S54: =ROUND(FVSCHEDULE(S$26,O$27:O54),2) -> 1674.82 | T54: =ROUND(FVSCHEDULE(T$26,P$27:P54),2) -> 5592.05 | U54: 0.0655 | AZ54: 64 | BA54: 0.9951658846 | BB54: 0.9957539357 | BC54: 0.9958370304 | BD54: 0.9959179286 | BE54: 0.9959966713 | BF54: 0.9960733002 | BG54: 0.9961478572 | BH54: 0.9962203843 | BI54: 0.9962909221 | BJ54: 0.9963595136 | BK54: 0.9964261993 | BL54: 0.9964910207 | BM54: 0.9965540189 | BN54: 0.9966152338 | BO54: 0.9966747065 | BP54: 0.9967324775 | BQ54: 0.9967885853 | BR54: 0.9968430699 | BS54: 0.9968959699 | BT54: 0.9969473232 | BU54: 0.9969983984 | BV54: 0.9970480014 | BW54: 0.9970961699 | BX54: 0.9971429397 | BY54: 0.9971883459 | BZ54: 0.9972324235 | CA54: 0.997275208 | CB54: 0.9973167314 | CC54: 0.9973570278 | CD54: 0.9973961296 | CE54: 0.9974340683 | CF54: 0.9974708755 | CG54: 0.9975065821 | CH54: 0.9975412167 | CI54: 0.9975748107 | CJ54: 0.9976073907 | CK54: 0.9976389862 | CL54: 0.9976696241 | CM54: 0.9976993315 | CN54: 0.9977281344 | CO54: 0.9977560583 | CP54: 0.9977831281 | CQ54: 0.9978093695 | CR54: 0.9978348043 | CS54: 0.9978594572 | CT54: 0.99788335 | CU54: 0.9979065048 | CV54: 0.9979289446 | CW54: 0.9979506879 | CX54: 0.9979717572
N55: 0.032 | O55: 0.02 | P55: =$C$71+3.6%-SUM($P$28:P54)+$C$71*COUNT($P$28:P54) -> 0.024 | Q55: 2052 | R55: 11402.48 | S55: =ROUND(FVSCHEDULE(S$26,O$27:O55),2) -> 1708.31 | T55: =ROUND(FVSCHEDULE(T$26,P$27:P55),2) -> 5726.26 | U55: 0.0655 | AB55: Fecha nacimiento | AC55: =IFERROR(DATE(Año,Mes,Día),DATE(1976,1,1)) -> 1975-12-05 | AD55: =YEARFRAC(AC55,TODAY()) -> 48.13888889 | AE55: ¿Edad legal = 65? | AF55: Fecha | AG55: Edad | AH55: Cotizados | AZ55: 65 | BA55: 0.9948326947 | BB55: 0.9954721501 | BC55: 0.99555396 | BD55: 0.9956336079 | BE55: 0.9957111345 | BF55: 0.99578658 | BG55: 0.9958599861 | BH55: 0.9959313941 | BI55: 0.9960008437 | BJ55: 0.9960683771 | BK55: 0.9961340351 | BL55: 0.9961978574 | BM55: 0.9962598846 | BN55: 0.9963201567 | BO55: 0.9963787142 | BP55: 0.9964355955 | BQ55: 0.9964908402 | BR55: 0.9965444867 | BS55: 0.996596573 | BT55: 0.9966471366 | BU55: 0.9966974263 | BV55: 0.9967462673 | BW55: 0.9967936956 | BX55: 0.9968397466 | BY55: 0.9968844554 | BZ55: 0.9969278564 | CA55: 0.9969699837 | CB55: 0.9970108696 | CC55: 0.9970505478 | CD55: 0.9970890502 | CE55: 0.9971264067 | CF55: 0.9971626495 | CG55: 0.9971978079 | CH55: 0.997231912 | CI55: 0.9972649908 | CJ55: 0.9972970717 | CK55: 0.9973281828 | CL55: 0.997358351 | CM55: 0.9973876033 | CN55: 0.9974159648 | CO55: 0.9974434615 | CP55: 0.9974701167 | CQ55: 0.9974959561 | CR55: 0.9975210016 | CS55: 0.9975452767 | CT55: 0.9975688039 | CU55: 0.9975916047 | CV55: 0.9976137006 | CW55: 0.9976351115 | CX55: 0.9976558586
N56: 0.032 | O56: 0.02 | P56: =$C$71+4.1%-SUM($P$28:P55)+$C$71*COUNT($P$28:P55) -> 0.025 | Q56: 2053 | R56: 11767.36 | S56: =ROUND(FVSCHEDULE(S$26,O$27:O56),2) -> 1742.48 | T56: =ROUND(FVSCHEDULE(T$26,P$27:P56),2) -> 5869.42 | U56: 0.0655 | AB56: Fecha inicio cotización | AC56: =EDATE(DATE(YEAR(TODAY()),MONTH(TODAY()),Día),-Años_cotizados*12-Meses_cotizados) -> 2004-07-05 | AE56: =IF(OR(AH56>=VLOOKUP(MAX(AM4-1,YEAR(AF56)),Transitorio,4),AG56>=VLOOKUP(MAX(AM4-1,YEAR(AF56)),Transitorio,3))=TRUE,"si","no") -> no | AF56: =EDATE(AC57,1) -> 2041-01-05 | AG56: =YEARFRAC($AC$55,AF56) -> 65.08333333 | AH56: =INT(YEARFRAC($AC$56,AF56)*12)/12 -> 36.5 | AZ56: 66 | BA56: 0.9943297889 | BB56: 0.995019083 | BC56: 0.9951039883 | BD56: 0.9951866505 | BE56: 0.995267111 | BF56: 0.9953454108 | BG56: 0.9954215944 | BH56: 0.9954957043 | BI56: 0.9955677815 | BJ56: 0.99563787 | BK56: 0.9957060117 | BL56: 0.9957722483 | BM56: 0.9958366215 | BN56: 0.9958991741 | BO56: 0.9959599463 | BP56: 0.9960189788 | BQ56: 0.9960763131 | BR56: 0.996131989 | BS56: 0.9961860452 | BT56: 0.9962385211 | BU56: 0.996290712 | BV56: 0.9963414006 | BW56: 0.9963906224 | BX56: 0.9964384149 | BY56: 0.9964848141 | BZ56: 0.9965298565 | CA56: 0.9965735765 | CB56: 0.9966160087 | CC56: 0.996657187 | CD56: 0.9966971445 | CE56: 0.9967359136 | CF56: 0.9967735269 | CG56: 0.9968100143 | CH56: 0.9968454083 | CI56: 0.996879737 | CJ56: 0.9969130308 | CK56: 0.9969453182 | CL56: 0.9969766272 | CM56: 0.9970069854 | CN56: 0.9970364186 | CO56: 0.997064955 | CP56: 0.9970926179 | CQ56: 0.9971194335 | CR56: 0.9971454256 | CS56: 0.9971706184 | CT56: 0.9971950352 | CU56: 0.9972186982 | CV56: 0.9972416287 | CW56: 0.9972638492 | CX56: 0.9972853804
N57: 0.032 | O57: 0.02 | P57: =$C$71+4.8%-SUM($P$28:P56)+$C$71*COUNT($P$28:P56) -> 0.027 | Q57: 2054 | R57: 12143.92 | S57: =ROUND(FVSCHEDULE(S$26,O$27:O57),2) -> 1777.33 | T57: =ROUND(FVSCHEDULE(T$26,P$27:P57),2) -> 6027.89 | U57: 0.0655 | AB57: Fecha 65 años | AC57: =EDATE($AC$55,65*12) -> 2040-12-05 | AD57: ¿Edad legal = 65? | AE57: no | AF57: =EDATE(AF56,1) -> 2041-02-05 | AG57: 65.16666667 | AH57: 36.58333333 | AZ57: 67 | BA57: 0.9938881095 | BB57: 0.9945772969 | BC57: 0.9946629291 | BD57: 0.9947462984 | BE57: 0.9948274476 | BF57: 0.9949064175 | BG57: 0.9949832531 | BH57: 0.995057997 | BI57: 0.9951306911 | BJ57: 0.995201379 | BK57: 0.9952701036 | BL57: 0.9953369069 | BM57: 0.9954018309 | BN57: 0.9954649187 | BO57: 0.9955262107 | BP57: 0.9955857483 | BQ57: 0.9956435727 | BR57: 0.9956997248 | BS57: 0.995754243 | BT57: 0.9958071674 | BU57: 0.9958598049 | BV57: 0.9959109271 | BW57: 0.9959605694 | BX57: 0.9960087709 | BY57: 0.9960555665 | BZ57: 0.9961009938 | CA57: 0.9961450878 | CB57: 0.9961878829 | CC57: 0.9962294132 | CD57: 0.9962697121 | CE57: 0.9963088126 | CF57: 0.9963467473 | CG57: 0.9963835466 | CH57: 0.996419243 | CI57: 0.9964538651 | CJ57: 0.9964874432 | CK57: 0.996520007 | CL57: 0.9965515834 | CM57: 0.9965822009 | CN57: 0.9966118861 | CO57: 0.9966406658 | CP57: 0.9966685656 | CQ57: 0.99669561 | CR57: 0.9967218246 | CS57: 0.9967472327 | CT57: 0.9967718579 | CU57: 0.9967957231 | CV57: 0.9968188495 | CW57: 0.99684126 | CX57: 0.996862975
N58: 0.032 | O58: 0.02 | P58: =$C$71+5.5%-SUM($P$28:P57)+$C$71*COUNT($P$28:P57) -> 0.027 | Q58: 2055 | R58: 12532.53 | S58: =ROUND(FVSCHEDULE(S$26,O$27:O58),2) -> 1812.87 | T58: =ROUND(FVSCHEDULE(T$26,P$27:P58),2) -> 6190.65 | U58: 0.0655 | Z58: DETERMINACIÓN DE LA EDAD MÍNIMA Y LA EDAD LEGAL DE JUBILACIÓN | AB58: Cotizados con 65 años | AC58: =INT(YEARFRAC($AC$56,AC57)*12)/12 -> 36.41666667 | AD58: =IF(AC58>=VLOOKUP(MAX(AM4-1,YEAR(AC57)),Transitorio,4),"si","no") -> no | AE58: no | AF58: =EDATE(AF57,1) -> 2041-03-05 | AG58: 65.25 | AH58: 36.66666667 | AZ58: 68 | BA58: 0.9934712383 | BB58: 0.9941995008 | BC58: 0.9942813675 | BD58: 0.9943610703 | BE58: 0.9944386502 | BF58: 0.9945141467 | BG58: 0.9945876023 | BH58: 0.9946590576 | BI58: 0.9947285536 | BJ58: 0.9947961309 | BK58: 0.9948618318 | BL58: 0.994925695 | BM58: 0.994987762 | BN58: 0.9950480728 | BO58: 0.9951066674 | BP58: 0.9951635843 | BQ58: 0.9952188631 | BR58: 0.9952725426 | BS58: 0.9953246611 | BT58: 0.9953752554 | BU58: 0.9954255751 | BV58: 0.9954744462 | BW58: 0.9955219022 | BX58: 0.9955679811 | BY58: 0.9956127164 | BZ58: 0.9956561427 | CA58: 0.9956982944 | CB58: 0.9957392045 | CC58: 0.9957789055 | CD58: 0.9958174296 | CE58: 0.9958548075 | CF58: 0.995891071 | CG58: 0.9959262494 | CH58: 0.9959603728 | CI58: 0.9959934696 | CJ58: 0.9960255685 | CK58: 0.9960566973 | CL58: 0.9960868821 | CM58: 0.9961161505 | CN58: 0.9961445278 | CO58: 0.9961720391 | CP58: 0.9961987094 | CQ58: 0.9962245622 | CR58: 0.996249621 | CS58: 0.9962739094 | CT58: 0.9962974492 | CU58: 0.9963202625 | CV58: 0.9963423699 | CW58: 0.9963637928 | CX58: 0.9963845506
N59: 0.032 | O59: 0.02 | P59: =$C$71+6.4%-SUM($P$28:P58)+$C$71*COUNT($P$28:P58) -> 0.029 | Q59: 2056 | R59: 12933.57 | S59: =ROUND(FVSCHEDULE(S$26,O$27:O59),2) -> 1849.13 | T59: =ROUND(FVSCHEDULE(T$26,P$27:P59),2) -> 6370.18 | U59: 0.0655 | AB59: Fecha 67 años | AC59: =EDATE($AC$55,67*12) -> 2042-12-05 | AE59: no | AF59: 2041-04-05 | AG59: 65.33333333 | AH59: 36.75 | AZ59: 69 | BA59: 0.9929175315 | BB59: 0.9936962238 | BC59: 0.9937766288 | BD59: 0.9938549087 | BE59: 0.9939311037 | BF59: 0.9940052534 | BG59: 0.9940773993 | BH59: 0.9941475803 | BI59: 0.9942158374 | BJ59: 0.9942822111 | BK59: 0.9943467414 | BL59: 0.9944094673 | BM59: 0.9944704292 | BN59: 0.9945296666 | BO59: 0.9945872185 | BP59: 0.9946431229 | BQ59: 0.9946974183 | BR59: 0.9947501436 | BS59: 0.9948013353 | BT59: 0.9948510305 | BU59: 0.9949004563 | BV59: 0.994948459 | BW59: 0.994995072 | BX59: 0.9950403325 | BY59: 0.9950842737 | BZ59: 0.9951269293 | CA59: 0.9951683328 | CB59: 0.9952085165 | CC59: 0.9952475131 | CD59: 0.995285354 | CE59: 0.9953220691 | CF59: 0.9953576895 | CG59: 0.9953922442 | CH59: 0.9954257626 | CI59: 0.9954582728 | CJ59: 0.9954898027 | CK59: 0.9955203798 | CL59: 0.9955500301 | CM59: 0.9955787797 | CN59: 0.9956066545 | CO59: 0.9956336784 | CP59: 0.9956598761 | CQ59: 0.9956852714 | CR59: 0.9957098864 | CS59: 0.9957337446 | CT59: 0.995756868 | CU59: 0.9957792775 | CV59: 0.9958009936 | CW59: 0.9958220374 | CX59: 0.9958424279
N60: 0.032 | O60: 0.02 | P60: =$C$71+7.4%-SUM($P$28:P59)+$C$71*COUNT($P$28:P59) -> 0.03 | Q60: 2057 | R60: 13347.44 | S60: =ROUND(FVSCHEDULE(S$26,O$27:O60),2) -> 1886.11 | T60: =ROUND(FVSCHEDULE(T$26,P$27:P60),2) -> 6561.28 | U60: 0.0655 | AB60: Fecha jubilación | AC60: =EDATE($AC$55,Años_edad_jubilación*12+Meses_edad_jubilación) -> 2040-12-05 | AD60: =YEARFRAC(AC60,AC55) -> 65 | AE60: no | AF60: 2041-05-05 | AG60: 65.41666667 | AH60: 36.83333333 | AZ60: 70 | BA60: 0.9922356417 | BB60: 0.9930375041 | BC60: 0.9931194243 | BD60: 0.9931991787 | BE60: 0.9932768088 | BF60: 0.993352355 | BG60: 0.9934258595 | BH60: 0.9934973622 | BI60: 0.993566904 | BJ60: 0.9936345275 | BK60: 0.9937002717 | BL60: 0.9937641782 | BM60: 0.9938262872 | BN60: 0.993886639 | BO60: 0.993945273 | BP60: 0.9940022291 | BQ60: 0.9940575454 | BR60: 0.9941112624 | BS60: 0.994163416 | BT60: 0.9942140454 | BU60: 0.9942644007 | BV60: 0.9943133052 | BW60: 0.9943607944 | BX60: 0.9944069052 | BY60: 0.9944516717 | BZ60: 0.9944951288 | CA60: 0.9945373101 | CB60: 0.9945782491 | CC60: 0.9946179776 | CD60: 0.9946565294 | CE60: 0.9946939337 | CF60: 0.9947302233 | CG60: 0.9947654264 | CH60: 0.9947995742 | CI60: 0.9948326946 | CJ60: 0.9948648166 | CK60: 0.9948959678 | CL60: 0.9949261746 | CM60: 0.9949554635 | CN60: 0.9949838615 | CO60: 0.9950113926 | CP60: 0.9950380818 | CQ60: 0.9950639537 | CR60: 0.9950890311 | CS60: 0.9951133367 | CT60: 0.9951368938 | CU60: 0.9951597236 | CV60: 0.9951818469 | CW60: 0.9952032854 | CX60: 0.9952240584
N61: 0.032 | O61: 0.02 | P61: =$C$71+8.5%-SUM($P$28:P60)+$C$71*COUNT($P$28:P60) -> 0.031 | Q61: 2058 | R61: 13774.56 | S61: =ROUND(FVSCHEDULE(S$26,O$27:O61),2) -> 1923.84 | T61: =ROUND(FVSCHEDULE(T$26,P$27:P61),2) -> 6764.68 | U61: 0.0655 | AB61: Cotizados en la fecha de jubilación | AC61: =INT(YEARFRAC($AC$56,AC60)*12)/12 -> 36.41666667 | AE61: no | AF61: 2041-06-05 | AG61: 65.5 | AH61: 36.91666667 | AZ61: 71 | BA61: 0.9914615654 | BB61: 0.9922567001 | BC61: 0.9923411632 | BD61: 0.9924233944 | BE61: 0.9925034352 | BF61: 0.992581328 | BG61: 0.9926571153 | BH61: 0.9927308397 | BI61: 0.9928025424 | BJ61: 0.9928722671 | BK61: 0.9929400546 | BL61: 0.9930059475 | BM61: 0.9930699872 | BN61: 0.9931322152 | BO61: 0.9931926719 | BP61: 0.9932513994 | BQ61: 0.9933084361 | BR61: 0.9933638234 | BS61: 0.9934175994 | BT61: 0.9934698036 | BU61: 0.9935217255 | BV61: 0.9935721514 | BW61: 0.9936211185 | BX61: 0.9936686641 | BY61: 0.9937148237 | BZ61: 0.9937596328 | CA61: 0.993803127 | CB61: 0.9938453406 | CC61: 0.9938863062 | CD61: 0.9939260577 | CE61: 0.9939646262 | CF61: 0.9940020455 | CG61: 0.9940383453 | CH61: 0.994073556 | CI61: 0.994107708 | CJ61: 0.9941408304 | CK61: 0.9941729517 | CL61: 0.9942040992 | CM61: 0.9942343006 | CN61: 0.9942635828 | CO61: 0.9942919719 | CP61: 0.9943194927 | CQ61: 0.9943461702 | CR61: 0.9943720291 | CS61: 0.9943970917 | CT61: 0.9944213831 | CU61: 0.9944449237 | CV61: 0.9944677365 | CW61: 0.9944898431 | CX61: 0.9945112634
B62: HIPÓTESIS DE CÁLCULO | N62: 0.032 | O62: 0.02 | P62: =$C$71+9.8%-SUM($P$28:P61)+$C$71*COUNT($P$28:P61) -> 0.033 | Q62: 2059 | R62: 14215.35 | S62: =ROUND(FVSCHEDULE(S$26,O$27:O62),2) -> 1962.31 | T62: =ROUND(FVSCHEDULE(T$26,P$27:P62),2) -> 6987.92 | U62: 0.0655 | AE62: no | AF62: 2041-07-05 | AG62: 65.58333333 | AH62: 37 | AZ62: 72 | BA62: 0.9905830556 | BB62: 0.9914208568 | BC62: 0.9915057315 | BD62: 0.9915883629 | BE62: 0.9916687927 | BF62: 0.9917470639 | BG62: 0.9918232184 | BH62: 0.9918972993 | BI62: 0.9919693492 | BJ62: 0.9920394105 | BK62: 0.9921075247 | BL62: 0.9921737354 | BM62: 0.9922380835 | BN62: 0.9923006106 | BO62: 0.9923613582 | BP62: 0.9924203673 | BQ62: 0.9924776779 | BR62: 0.9925333305 | BS62: 0.9925873636 | BT62: 0.9926398177 | BU62: 0.9926919878 | BV62: 0.9927426543 | BW62: 0.992791855 | BX62: 0.9928396271 | BY62: 0.9928860068 | BZ62: 0.9929310296 | CA62: 0.9929747304 | CB62: 0.9930171442 | CC62: 0.9930583047 | CD62: 0.9930982446 | CE62: 0.9931369967 | CF62: 0.9931745928 | CG62: 0.9932110649 | CH62: 0.9932464422 | CI62: 0.993280756 | CJ62: 0.9933140348 | CK62: 0.9933463078 | CL62: 0.9933776028 | CM62: 0.9934079469 | CN62: 0.993437367 | CO62: 0.9934658898 | CP62: 0.9934935406 | CQ62: 0.9935203439 | CR62: 0.9935463244 | CS62: 0.9935715054 | CT62: 0.9935959109 | CU62: 0.9936195626 | CV62: 0.9936424828 | CW62: 0.9936646931 | CX62: 0.9936862139
D63: Hasta qué edad si se elige perfil decreciente | N63: 0.032 | O63: 0.02 | P63: =$C$71+11.2%-SUM($P$28:P62)+$C$71*COUNT($P$28:P62) -> 0.034 | Q63: 2060 | R63: 14670.24 | S63: =ROUND(FVSCHEDULE(S$26,O$27:O63),2) -> 2001.56 | T63: =ROUND(FVSCHEDULE(T$26,P$27:P63),2) -> 7225.5 | U63: 0.0655 | AB63: Fecha | AC63: Edad | AD63: Cotizados | AE63: no | AF63: 2041-08-05 | AG63: 65.66666667 | AH63: 37.08333333 | AZ63: 73 | BA63: 0.9895266895 | BB63: 0.9903750004 | BC63: 0.9904635293 | BD63: 0.9905497183 | BE63: 0.9906336123 | BF63: 0.9907152553 | BG63: 0.9907946911 | BH63: 0.9908719643 | BI63: 0.9909471197 | BJ63: 0.9910202018 | BK63: 0.991091253 | BL63: 0.9911603188 | BM63: 0.9912274432 | BN63: 0.9912926674 | BO63: 0.9913560366 | BP63: 0.9914175922 | BQ63: 0.9914773765 | BR63: 0.9915354316 | BS63: 0.991591798 | BT63: 0.9916465175 | BU63: 0.9917009404 | BV63: 0.9917537953 | BW63: 0.9918051214 | BX63: 0.991854958 | BY63: 0.9919033415 | BZ63: 0.9919503105 | CA63: 0.9919959004 | CB63: 0.9920401477 | CC63: 0.9920830874 | CD63: 0.9921247538 | CE63: 0.9921651821 | CF63: 0.9922044041 | CG63: 0.9922424539 | CH63: 0.9922793613 | CI63: 0.9923151594 | CJ63: 0.9923498782 | CK63: 0.9923835472 | CL63: 0.9924161967 | CM63: 0.9924478538 | CN63: 0.992478547 | CO63: 0.9925083043 | CP63: 0.992537152 | CQ63: 0.9925651158 | CR63: 0.9925922206 | CS63: 0.9926184923 | CT63: 0.9926439545 | CU63: 0.9926686301 | CV63: 0.9926925432 | CW63: 0.9927157146 | CX63: 0.992738168
B64: Rentabilidad del ahorro | N64: 0.032 | O64: 0.02 | P64: =$C$71+12.7%-SUM($P$28:P63)+$C$71*COUNT($P$28:P63) -> 0.035 | Q64: 2061 | R64: 15139.69 | S64: =ROUND(FVSCHEDULE(S$26,O$27:O64),2) -> 2041.59 | T64: =ROUND(FVSCHEDULE(T$26,P$27:P64),2) -> 7478.4 | U64: 0.0655 | AA64: Edad legal según cuadro a continuación | AB64: =IF(AD58="si",AC57,IFERROR(VLOOKUP("si",$AE$56:$AH$79,2,0),AC59)) -> 2042-12-05 | AC64: =YEARFRAC($AC$55,AB64) -> 67 | AD64: =INT(YEARFRAC($AC$56,AB64)*12)/12 -> 38.41666667 | AE64: no | AF64: 2041-09-05 | AG64: 65.75 | AH64: 37.16666667 | AZ64: 74 | BA64: 0.9881713745 | BB64: 0.9890058827 | BC64: 0.9891053132 | BD64: 0.9892021161 | BE64: 0.9892963407 | BF64: 0.989388037 | BG64: 0.9894772539 | BH64: 0.989564042 | BI64: 0.9896484515 | BJ64: 0.9897305316 | BK64: 0.9898103316 | BL64: 0.989887901 | BM64: 0.9899632897 | BN64: 0.9900365447 | BO64: 0.9901077155 | BP64: 0.9901768496 | BQ64: 0.9902439943 | BR64: 0.9903091966 | BS64: 0.9903725025 | BT64: 0.9904339585 | BU64: 0.9904950808 | BV64: 0.9905544426 | BW64: 0.9906120874 | BX64: 0.9906680591 | BY64: 0.9907223987 | BZ64: 0.9907751491 | CA64: 0.9908263515 | CB64: 0.9908760456 | CC64: 0.990924271 | CD64: 0.9909710667 | CE64: 0.9910164706 | CF64: 0.9910605212 | CG64: 0.991103254 | CH64: 0.991144705 | CI64: 0.9911849091 | CJ64: 0.9912239013 | CK64: 0.9912617146 | CL64: 0.9912983825 | CM64: 0.9913339364 | CN64: 0.9913684079 | CO64: 0.9914018279 | CP64: 0.9914342259 | CQ64: 0.9914656314 | CR64: 0.9914960723 | CS64: 0.9915255777 | CT64: 0.9915541736 | CU64: 0.9915818859 | CV64: 0.991608742 | CW64: 0.9916347661 | CX64: 0.991659983
B65: Perfil conservador | C65: 0.02 | N65: 0.032 | O65: 0.02 | P65: =$C$71+14.3%-SUM($P$28:P64)+$C$71*COUNT($P$28:P64) -> 0.036 | Q65: 2062 | R65: 15624.16 | S65: =ROUND(FVSCHEDULE(S$26,O$27:O65),2) -> 2082.42 | T65: =ROUND(FVSCHEDULE(T$26,P$27:P65),2) -> 7747.62 | U65: 0.0655 | AA65: Edad mínima según edad legal | AB65: =EDATE(AB64,IF(C27="Sí",-48,-24)) -> 2040-12-05 | AC65: =YEARFRAC($AC$55,AB65) -> 65 | AD65: =INT(YEARFRAC($AC$56,AB65)*12)/12 -> 36.41666667 | AE65: no | AF65: 2041-10-05 | AG65: 65.83333333 | AH65: 37.25 | AZ65: 75 | BA65: 0.9865542048 | BB65: 0.9876080846 | BC65: 0.9877140514 | BD65: 0.9878172183 | BE65: 0.9879176363 | BF65: 0.9880153604 | BG65: 0.9881104419 | BH65: 0.9882029348 | BI65: 0.9882928927 | BJ65: 0.9883803674 | BK65: 0.9884654124 | BL65: 0.9885480807 | BM65: 0.9886284237 | BN65: 0.988706494 | BO65: 0.9887823419 | BP65: 0.9888560194 | BQ65: 0.988927577 | BR65: 0.9889970642 | BS65: 0.9890645304 | BT65: 0.9891300252 | BU65: 0.9891951647 | BV65: 0.9892584271 | BW65: 0.9893198599 | BX65: 0.9893795097 | BY65: 0.9894374202 | BZ65: 0.9894936372 | CA65: 0.9895482034 | CB65: 0.9896011629 | CC65: 0.9896525572 | CD65: 0.9897024281 | CE65: 0.9897508153 | CF65: 0.9897977607 | CG65: 0.9898433008 | CH65: 0.9898874755 | CI65: 0.9899303213 | CJ65: 0.9899718752 | CK65: 0.9900121732 | CL65: 0.9900512498 | CM65: 0.9900891399 | CN65: 0.9901258766 | CO65: 0.9901614923 | CP65: 0.9901960184 | CQ65: 0.9902294871 | CR65: 0.9902619282 | CS65: 0.9902933722 | CT65: 0.9903238462 | CU65: 0.9903533796 | CV65: 0.990382 | CW65: 0.9904097342 | CX65: 0.9904366073
B66: Perfil moderado | C66: 0.03 | D66: 55 | E66: años | N66: 0.032 | O66: 0.02 | P66: =$C$71+16.1%-SUM($P$28:P65)+$C$71*COUNT($P$28:P65) -> 0.038 | Q66: 2063 | R66: 16124.13 | S66: =ROUND(FVSCHEDULE(S$26,O$27:O66),2) -> 2124.07 | T66: =ROUND(FVSCHEDULE(T$26,P$27:P66),2) -> 8042.03 | U66: 0.0655 | AA66: Fecha 15 cotizados | AB66: =EDATE($AC$56,180) -> 2019-07-05 | AE66: no | AF66: 2041-11-05 | AG66: 65.91666667 | AH66: 37.33333333 | AZ66: 76 | BA66: 0.9848532801 | BB66: 0.9859532468 | BC66: 0.9860684791 | BD66: 0.9861806667 | BE66: 0.986289866 | BF66: 0.9863961353 | BG66: 0.9864995321 | BH66: 0.9866001143 | BI66: 0.9866979393 | BJ66: 0.9867930655 | BK66: 0.9868855488 | BL66: 0.9869754486 | BM66: 0.9870628188 | BN66: 0.9871477184 | BO66: 0.9872302017 | BP66: 0.9873103253 | BQ66: 0.9873881429 | BR66: 0.9874637097 | BS66: 0.9875370788 | BT66: 0.9876083039 | BU66: 0.9876791431 | BV66: 0.9877479411 | BW66: 0.9878147498 | BX66: 0.9878796192 | BY66: 0.9879425972 | BZ66: 0.9880037338 | CA66: 0.9880630754 | CB66: 0.9881206699 | CC66: 0.9881765618 | CD66: 0.9882307976 | CE66: 0.9882834202 | CF66: 0.9883344741 | CG66: 0.9883840002 | CH66: 0.9884320415 | CI66: 0.9884786379 | CJ66: 0.988523829 | CK66: 0.9885676545 | CL66: 0.9886101516 | CM66: 0.9886513587 | CN66: 0.9886913108 | CO66: 0.9887300443 | CP66: 0.9887675932 | CQ66: 0.9888039919 | CR66: 0.988839273 | CS66: 0.9888734694 | CT66: 0.9889066115 | CU66: 0.9889387309 | CV66: 0.988969857 | CW66: 0.9890000189 | CX66: 0.9890292449
B67: Perfil agresivo | C67: 0.04 | D67: 45 | E67: años | N67: 0.032 | O67: 0.02 | P67: =$C$71+18%-SUM($P$28:P66)+$C$71*COUNT($P$28:P66) -> 0.039 | Q67: 2064 | R67: 16640.1 | S67: =ROUND(FVSCHEDULE(S$26,O$27:O67),2) -> 2166.55 | T67: =ROUND(FVSCHEDULE(T$26,P$27:P67),2) -> 8355.67 | U67: 0.0655 | AA67: Fecha 33 o 35 cotizados | AB67: =EDATE($AC$56,IF(C27="Sí",33,35)*12) -> 2039-07-05 | AE67: no | AF67: 2041-12-05 | AG67: 66 | AH67: 37.41666667 | AZ67: 77 | BA67: 0.9828052437 | BB67: 0.984035128 | BC67: 0.9841607198 | BD67: 0.9842829924 | BE67: 0.9844020085 | BF67: 0.9845178302 | BG67: 0.9846305209 | BH67: 0.984740144 | BI67: 0.9848467615 | BJ67: 0.9849504377 | BK67: 0.9850512332 | BL67: 0.9851492123 | BM67: 0.9852444349 | BN67: 0.9853369636 | BO67: 0.9854268598 | BP67: 0.9855141833 | BQ67: 0.9855989937 | BR67: 0.9856813509 | BS67: 0.9857613128 | BT67: 0.9858389379 | BU67: 0.9859161414 | BV67: 0.9859911215 | BW67: 0.9860639331 | BX67: 0.9861346303 | BY67: 0.9862032668 | BZ67: 0.9862698958 | CA67: 0.9863345686 | CB67: 0.9863973372 | CC67: 0.9864582506 | CD67: 0.9865173587 | CE67: 0.9865747085 | CF67: 0.9866303485 | CG67: 0.9866843236 | CH67: 0.9867366807 | CI67: 0.9867874624 | CJ67: 0.9868367131 | CK67: 0.9868844753 | CL67: 0.9869307899 | CM67: 0.986975698 | CN67: 0.9870192385 | CO67: 0.9870614513 | CP67: 0.9871023729 | CQ67: 0.9871420408 | CR67: 0.9871804911 | CS67: 0.9872177585 | CT67: 0.9872538772 | CU67: 0.9872888817 | CV67: 0.9873228033 | CW67: 0.9873556735 | CX67: 0.9873875244
B68: Crecimiento salarial | C68: =D68/10000 -> 0.03 | D68: 300 | N68: 0.032 | O68: 0.02 | P68: =$C$71+20%-SUM($P$28:P67)+$C$71*COUNT($P$28:P67) -> 0.04 | Q68: 2065 | R68: 17172.58 | S68: =ROUND(FVSCHEDULE(S$26,O$27:O68),2) -> 2209.88 | T68: =ROUND(FVSCHEDULE(T$26,P$27:P68),2) -> 8689.89 | U68: 0.0655 | AA68: Edad mínima efectiva | AB68: =MAX(AB66,MIN(AB64,MAX(AB65:AB67))) -> 2040-12-05 | AC68: =IFERROR(ROUNDUP(YEARFRAC($AC$55,AB68)*12,0)/12,67) -> 65 | AD68: =INT(YEARFRAC($AC$56,AB68)*12)/12 -> 36.41666667 | AE68: no | AF68: 2042-01-05 | AG68: 66.08333333 | AH68: 37.5 | AZ68: 78 | BA68: 0.9803984697 | BB68: 0.9817538904 | BC68: 0.9818931617 | BD68: 0.9820287525 | BE68: 0.9821607325 | BF68: 0.9822891719 | BG68: 0.9824141397 | BH68: 0.9825357057 | BI68: 0.9826539401 | BJ68: 0.9827689123 | BK68: 0.9828806918 | BL68: 0.9829893477 | BM68: 0.9830949475 | BN68: 0.9831975604 | BO68: 0.983297254 | BP68: 0.983394095 | BQ68: 0.9834881497 | BR68: 0.9835794842 | BS68: 0.9836681622 | BT68: 0.9837542491 | BU68: 0.9838398695 | BV68: 0.9839230241 | BW68: 0.9840037734 | BX68: 0.9840821787 | BY68: 0.9841582988 | BZ68: 0.9842321928 | CA68: 0.9843039174 | CB68: 0.9843735302 | CC68: 0.9844410865 | CD68: 0.9845066397 | CE68: 0.9845702437 | CF68: 0.9846319516 | CG68: 0.9846918136 | CH68: 0.9847498802 | CI68: 0.9848062009 | CJ68: 0.984860823 | CK68: 0.9849137946 | CL68: 0.9849651609 | CM68: 0.9850149671 | CN68: 0.9850632575 | CO68: 0.9851100745 | CP68: 0.9851554601 | CQ68: 0.9851994548 | CR68: 0.9852420999 | CS68: 0.985283433 | CT68: 0.9853234915 | CU68: 0.9853623148 | CV68: 0.985399937 | CW68: 0.9854363933 | CX68: 0.9854717189
B69: IPC | C69: =D69/10000 -> 0.02 | D69: 200 | N69: 0.032 | O69: 0.02 | P69: =$C$71+22%-SUM($P$28:P68)+$C$71*COUNT($P$28:P68) -> 0.04 | Q69: 2066 | R69: 17722.1 | S69: =ROUND(FVSCHEDULE(S$26,O$27:O69),2) -> 2254.08 | T69: =ROUND(FVSCHEDULE(T$26,P$27:P69),2) -> 9037.49 | U69: 0.0655 | AA69: Edad legal efectiva | AB69: =MAX(AB66,AB64) -> 2042-12-05 | AC69: =IFERROR(ROUNDUP(YEARFRAC($AC$55,AB69)*12,0)/12,0) -> 67 | AD69: =INT(YEARFRAC($AC$56,AB69)*12)/12 -> 38.41666667 | AE69: no | AF69: 2042-02-05 | AG69: 66.16666667 | AH69: 37.58333333 | AZ69: 79 | BA69: 0.9777169123 | BB69: 0.9787536501 | BC69: 0.9789222984 | BD69: 0.9790864914 | BE69: 0.9792463133 | BF69: 0.9794018487 | BG69: 0.9795531812 | BH69: 0.979700395 | BI69: 0.9798435758 | BJ69: 0.9799828061 | BK69: 0.9801181718 | BL69: 0.9802497549 | BM69: 0.9803776382 | BN69: 0.9805019055 | BO69: 0.9806226373 | BP69: 0.9807399155 | BQ69: 0.9808538202 | BR69: 0.9809644308 | BS69: 0.9810718245 | BT69: 0.9811760811 | BU69: 0.9812797737 | BV69: 0.9813804797 | BW69: 0.9814782735 | BX69: 0.9815732294 | BY69: 0.9816654176 | BZ69: 0.9817549099 | CA69: 0.9818417762 | CB69: 0.9819260848 | CC69: 0.9820079025 | CD69: 0.9820872946 | CE69: 0.9821643271 | CF69: 0.9822390622 | CG69: 0.9823115628 | CH69: 0.9823818892 | CI69: 0.9824501008 | CJ69: 0.982516256 | CK69: 0.9825804117 | CL69: 0.9826426241 | CM69: 0.9827029468 | CN69: 0.9827614336 | CO69: 0.9828181364 | CP69: 0.9828731055 | CQ69: 0.9829263904 | CR69: 0.98297804 | CS69: 0.9830281012 | CT69: 0.9830766193 | CU69: 0.9831236409 | CV69: 0.9831692078 | CW69: 0.9832133634 | CX69: 0.9832561487
B70: Crecimiento del gasto en la jubilación | C70: =D70/10000 -> 0.02 | D70: 200 | N70: 0.032 | O70: 0.02 | P70: =$C$71+24%-SUM($P$28:P69)+$C$71*COUNT($P$28:P69) -> 0.04 | Q70: 2067 | R70: 18289.21 | S70: =ROUND(FVSCHEDULE(S$26,O$27:O70),2) -> 2299.16 | T70: =ROUND(FVSCHEDULE(T$26,P$27:P70),2) -> 9398.99 | U70: 0.0655 | AE70: no | AF70: 2042-03-05 | AG70: 66.25 | AH70: 37.66666667 | AZ70: 80 | BA70: 0.9739759516 | BB70: 0.9752251298 | BC70: 0.9754073829 | BD70: 0.9755848174 | BE70: 0.9757575247 | BF70: 0.9759255955 | BG70: 0.9760891216 | BH70: 0.9762481942 | BI70: 0.9764029047 | BJ70: 0.9765533447 | BK70: 0.9766996056 | BL70: 0.9768417765 | BM70: 0.9769799484 | BN70: 0.9771142102 | BO70: 0.9772446504 | BP70: 0.9773713571 | BQ70: 0.9774944172 | BR70: 0.9776139157 | BS70: 0.9777299381 | BT70: 0.9778425694 | BU70: 0.9779545897 | BV70: 0.9780633818 | BW70: 0.9781690272 | BX70: 0.9782716044 | BY70: 0.9783711913 | BZ70: 0.9784678645 | CA70: 0.9785616993 | CB70: 0.9786527709 | CC70: 0.97874115 | CD70: 0.9788269088 | CE70: 0.9789101177 | CF70: 0.9789908437 | CG70: 0.9790691552 | CH70: 0.9791451181 | CI70: 0.9792187956 | CJ70: 0.9792902515 | CK70: 0.9793595468 | CL70: 0.979426743 | CM70: 0.9794918971 | CN70: 0.9795550675 | CO70: 0.9796163112 | CP70: 0.9796756816 | CQ70: 0.9797332328 | CR70: 0.9797890167 | CS70: 0.9798430853 | CT70: 0.9798954871 | CU70: 0.9799462715 | CV70: 0.9799954849 | CW70: 0.980043174 | CX70: 0.9800893826
B71: Revalorización de las pensiones | C71: =D71/10000 -> 0.02 | D71: 200 | AB71: Edad mínima en meses | AC71: =AC68*12 -> 780 | AE71: no | AF71: 2042-04-05 | AG71: 66.33333333 | AH71: 37.75 | AZ71: 81 | BA71: 0.9693352736 | BB71: 0.9711636287 | BC71: 0.9713705828 | BD71: 0.9715720718 | BE71: 0.9717681988 | BF71: 0.9719590666 | BG71: 0.9721447791 | BH71: 0.9723254391 | BI71: 0.9725011498 | BJ71: 0.9726720158 | BK71: 0.9728381388 | BL71: 0.9729996212 | BM71: 0.9731565655 | BN71: 0.9733090717 | BO71: 0.9734572412 | BP71: 0.9736011729 | BQ71: 0.9737409653 | BR71: 0.9738767151 | BS71: 0.9740085191 | BT71: 0.974136473 | BU71: 0.9742637353 | BV71: 0.9743873332 | BW71: 0.9745073578 | BX71: 0.9746238987 | BY71: 0.9747370449 | BZ71: 0.9748468827 | CA71: 0.9749534971 | CB71: 0.9750569738 | CC71: 0.975157393 | CD71: 0.9752548364 | CE71: 0.9753493836 | CF71: 0.9754411118 | CG71: 0.9755300969 | CH71: 0.9756164144 | CI71: 0.9757001371 | CJ71: 0.9757813353 | CK71: 0.9758600802 | CL71: 0.9759364396 | CM71: 0.9760104802 | CN71: 0.9760822679 | CO71: 0.9761518654 | CP71: 0.9762193359 | CQ71: 0.9762847389 | CR71: 0.9763481351 | CS71: 0.9764095824 | CT71: 0.9764691355 | CU71: 0.9765268508 | CV71: 0.9765827816 | CW71: 0.9766369802 | CX71: 0.9766894976
P72: RESULTADOS INTERMEDIOS | AE72: no | AF72: 2042-05-05 | AG72: 66.41666667 | AH72: 37.83333333 | AZ72: 82 | BA72: 0.9643721085 | BB72: 0.9664989748 | BC72: 0.9667688154 | BD72: 0.9670315313 | BE72: 0.9672872566 | BF72: 0.9675361248 | BG72: 0.9677782713 | BH72: 0.9680138303 | BI72: 0.9682429375 | BJ72: 0.9684657273 | BK72: 0.9686823331 | BL72: 0.9688928885 | BM72: 0.9690975272 | BN72: 0.9692963795 | BO72: 0.9694895772 | BP72: 0.9696772495 | BQ72: 0.9698595248 | BR72: 0.9700365294 | BS72: 0.9702083897 | BT72: 0.9703752291 | BU72: 0.9705411673 | BV72: 0.9707023276 | BW72: 0.9708588289 | BX72: 0.9710107882 | BY72: 0.9711583214 | BZ72: 0.9713015402 | CA72: 0.9714405575 | CB72: 0.9715754818 | CC72: 0.9717064207 | CD72: 0.9718334794 | CE72: 0.9719567613 | CF72: 0.9720763681 | CG72: 0.9721923979 | CH72: 0.9723049494 | CI72: 0.9724141176 | CJ72: 0.9725199944 | CK72: 0.9726226722 | CL72: 0.9727222394 | CM72: 0.9728187836 | CN72: 0.9729123895 | CO72: 0.9730031399 | CP72: 0.9730911165 | CQ72: 0.9731763985 | CR72: 0.9732590626 | CS72: 0.9733391857 | CT72: 0.9734168395 | CU72: 0.9734920968 | CV72: 0.9735650269 | CW72: 0.9736356985 | CX72: 0.973704178
AE73: no | AF73: 2042-06-05 | AG73: 66.5 | AH73: 37.91666667 | AZ73: 83 | BA73: 0.9592087891 | BB73: 0.9613941773 | BC73: 0.9617297432 | BD73: 0.9620564503 | BE73: 0.9623744639 | BF73: 0.9626839516 | BG73: 0.9629850806 | BH73: 0.9632780188 | BI73: 0.9635629339 | BJ73: 0.9638399934 | BK73: 0.964109363 | BL73: 0.9643712093 | BM73: 0.9646256978 | BN73: 0.9648729908 | BO73: 0.9651132526 | BP73: 0.9653466425 | BQ73: 0.9655733218 | BR73: 0.9657934467 | BS73: 0.9660071741 | BT73: 0.966214658 | BU73: 0.9664210213 | BV73: 0.9666214432 | BW73: 0.9668160715 | BX73: 0.9670050518 | BY73: 0.9671885276 | BZ73: 0.9673666381 | CA73: 0.9675395239 | CB73: 0.9677073192 | CC73: 0.967870159 | CD73: 0.9680281733 | CE73: 0.9681814909 | CF73: 0.968330238 | CG73: 0.9684745374 | CH73: 0.9686145103 | CI73: 0.9687502762 | CJ73: 0.9688819486 | CK73: 0.9690096431 | CL73: 0.9691334693 | CM73: 0.9692535358 | CN73: 0.9693699478 | CO73: 0.9694828098 | CP73: 0.969592221 | CQ73: 0.9696982822 | CR73: 0.9698010873 | CS73: 0.9699007323 | CT73: 0.9699973067 | CU73: 0.9700909002 | CV73: 0.9701816002 | CW73: 0.9702694913 | CX73: 0.9703546557
R74: Fecha actual | S74: =DATE(YEAR(TODAY()),MONTH(TODAY()),Día) -> 2024-01-05 | T74: Años enteros faltan | U74: Años faltan | V74: Factor actuarial | W74: Factor IRP | AE74: no | AF74: 2042-07-05 | AG74: 66.58333333 | AH74: 38 | AZ74: 84 | BA74: 0.9527814333 | BB74: 0.9551624504 | BC74: 0.9555907116 | BD74: 0.9560076759 | BE74: 0.9564135526 | BF74: 0.956808557 | BG74: 0.957192901 | BH74: 0.9575667978 | BI74: 0.9579304613 | BJ74: 0.9582841037 | BK74: 0.9586279374 | BL74: 0.9589621747 | BM74: 0.9592870245 | BN74: 0.9596026947 | BO74: 0.9599093945 | BP74: 0.9602073271 | BQ74: 0.9604966975 | BR74: 0.9607777057 | BS74: 0.9610505499 | BT74: 0.9613154276 | BU74: 0.9615788785 | BV74: 0.9618347478 | BW74: 0.962083224 | BX74: 0.9623244923 | BY74: 0.9625587353 | BZ74: 0.9627861323 | CA74: 0.9630068605 | CB74: 0.9632210928 | CC74: 0.9634289996 | CD74: 0.9636307473 | CE74: 0.9638265013 | CF74: 0.9640164211 | CG74: 0.9642006644 | CH74: 0.9643793851 | CI74: 0.9645527349 | CJ74: 0.9647208604 | CK74: 0.9648839079 | CL74: 0.965042017 | CM74: 0.965195327 | CN74: 0.9653439717 | CO74: 0.9654880849 | CP74: 0.9656277929 | CQ74: 0.9657632231 | CR74: 0.9658944979 | CS74: 0.9660217372 | CT74: 0.9661450569 | CU74: 0.9662645705 | CV74: 0.9663803905 | CW74: 0.9664926238 | CX74: 0.9666013766
R75: Fecha de jubilación | S75: =AC60 -> 2040-12-05 | T75: =YEAR(S75)-YEAR(S74) -> 16 | U75: =YEARFRAC(S74,S75,1) -> 16.91513688 | V75: =(1-$AG$21+INT($AG$21))*VLOOKUP(INT($AG$21),$V$5:W$24,2)+($AG$21-INT($AG$21))*VLOOKUP(INT($AG$21)+1,$V$5:W$24,2) -> 21.46503822 | W75: =V75 -> 21.46503822 | AE75: no | AF75: 2042-08-05 | AG75: 66.66666667 | AH75: 38.08333333 | AZ75: 85 | BA75: 0.9452243197 | BB75: 0.9476806742 | BC75: 0.9482317751 | BD75: 0.9487683415 | BE75: 0.9492906438 | BF75: 0.9497989577 | BG75: 0.9502935557 | BH75: 0.9507747122 | BI75: 0.9512427025 | BJ75: 0.9516977988 | BK75: 0.9521402751 | BL75: 0.9525704028 | BM75: 0.9529884521 | BN75: 0.9533946911 | BO75: 0.9537893863 | BP75: 0.9541728017 | BQ75: 0.9545451981 | BR75: 0.9549068353 | BS75: 0.955257968 | BT75: 0.955598849 | BU75: 0.9559378952 | BV75: 0.9562671851 | BW75: 0.9565869623 | BX75: 0.9568974634 | BY75: 0.9571989247 | BZ75: 0.9574915764 | CA75: 0.9577756463 | CB75: 0.9580513573 | CC75: 0.9583189279 | CD75: 0.9585785732 | CE75: 0.9588305047 | CF75: 0.9590749286 | CG75: 0.9593120476 | CH75: 0.9595420599 | CI75: 0.9597651598 | CJ75: 0.9599815373 | CK75: 0.9601913792 | CL75: 0.9603948665 | CM75: 0.9605921771 | CN75: 0.9607834841 | CO75: 0.960968959 | CP75: 0.9611487656 | CQ75: 0.9613230663 | CR75: 0.9614920195 | CS75: 0.9616557783 | CT75: 0.9618144934 | CU75: 0.9619683112 | CV75: 0.9621173745 | CW75: 0.9622618221 | CX75: 0.9624017898
S76: Años | T76: Meses | AE76: no | AF76: 2042-09-05 | AG76: 66.75 | AH76: 38.16666667 | AZ76: 86 | BA76: 0.9366899041 | BB76: 0.9395106597 | BC76: 0.9401919453 | BD76: 0.9408552661 | BE76: 0.9415009576 | BF76: 0.9421293577 | BG76: 0.9427408048 | BH76: 0.9433356377 | BI76: 0.9439141962 | BJ76: 0.9444768173 | BK76: 0.9450238386 | BL76: 0.9455555956 | BM76: 0.9460724226 | BN76: 0.9465746507 | BO76: 0.9470626092 | BP76: 0.9475366241 | BQ76: 0.9479970176 | BR76: 0.9484441106 | BS76: 0.9488782193 | BT76: 0.9492996547 | BU76: 0.9497188224 | BV76: 0.9501259301 | BW76: 0.9505212775 | BX76: 0.9509051583 | BY76: 0.9512778644 | BZ76: 0.9516396794 | CA76: 0.9519908852 | CB76: 0.9523317572 | CC76: 0.9526625664 | CD76: 0.9529835779 | CE76: 0.9532950528 | CF76: 0.9535972464 | CG76: 0.9538904094 | CH76: 0.9541747864 | CI76: 0.9544506178 | CJ76: 0.9547181389 | CK76: 0.954977579 | CL76: 0.9552291638 | CM76: 0.9554731122 | CN76: 0.9557096387 | CO76: 0.955938954 | CP76: 0.9561612625 | CQ76: 0.9563767636 | CR76: 0.9565856532 | CS76: 0.9567881213 | CT76: 0.9569843534 | CU76: 0.9571745316 | CV76: 0.9573588311 | CW76: 0.9575374239 | CX76: 0.9577104778
R77: Años cotizados a la jubilación | S77: =INT(AC61) -> 36 | T77: =(AC61-S77)*12 -> 5 | U77: Rentas | AE77: no | AF77: 2042-10-05 | AG77: 66.83333333 | AH77: 38.25 | AZ77: 87 | BA77: 0.9263024846 | BB77: 0.9300827061 | BC77: 0.9309208431 | BD77: 0.9317368986 | BE77: 0.9325312833 | BF77: 0.9333044115 | BG77: 0.9340566997 | BH77: 0.9347885612 | BI77: 0.9355004141 | BJ77: 0.9361926712 | BK77: 0.9368657476 | BL77: 0.9375200542 | BM77: 0.9381560011 | BN77: 0.9387739952 | BO77: 0.9393744409 | BP77: 0.9399577383 | BQ77: 0.9405242837 | BR77: 0.9410744695 | BS77: 0.9416086856 | BT77: 0.9421273132 | BU77: 0.9426431575 | BV77: 0.9431441676 | BW77: 0.9436307109 | BX77: 0.9441031493 | BY77: 0.9445618406 | BZ77: 0.9450071343 | CA77: 0.9454393763 | CB77: 0.9458589044 | CC77: 0.9462660529 | CD77: 0.9466611467 | CE77: 0.9470445075 | CF77: 0.9474164485 | CG77: 0.9477772785 | CH77: 0.948127298 | CI77: 0.948466802 | CJ77: 0.9487960812 | CK77: 0.9491154159 | CL77: 0.9494250844 | CM77: 0.9497253562 | CN77: 0.9500164959 | CO77: 0.95029876 | CP77: 0.9505724024 | CQ77: 0.9508376672 | CR77: 0.9510947958 | CS77: 0.9513440217 | CT77: 0.9515855728 | CU77: 0.9518196728 | CV77: 0.9520465387 | CW77: 0.9522663807 | CX77: 0.9524794066
S78: € de la jubilación | T78: € actuales | U78: € de la jubilación | V78: € actuales | W78: € actuales neto | AE78: no | AF78: 2042-11-05 | AG78: 66.91666667 | AH78: 38.33333333 | AZ78: 88 | BA78: 0.915025506 | BB78: 0.919420002 | BC78: 0.9204392895 | BD78: 0.9214317255 | BE78: 0.9223978099 | BF78: 0.9233380463 | BG78: 0.9242529395 | BH78: 0.9251429938 | BI78: 0.926008716 | BJ78: 0.9268506088 | BK78: 0.9276691767 | BL78: 0.9284649194 | BM78: 0.9292383347 | BN78: 0.9299899188 | BO78: 0.9307201617 | BP78: 0.9314295511 | BQ78: 0.9321185686 | BR78: 0.9327876909 | BS78: 0.9334373916 | BT78: 0.9340681356 | BU78: 0.9346954958 | BV78: 0.9353048156 | BW78: 0.935896542 | BX78: 0.9364711147 | BY78: 0.9370289688 | BZ78: 0.9375705305 | CA78: 0.9380962191 | CB78: 0.9386064458 | CC78: 0.9391016169 | CD78: 0.9395821281 | CE78: 0.9400483697 | CF78: 0.9405007235 | CG78: 0.940939564 | CH78: 0.9413652577 | CI78: 0.9417781631 | CJ78: 0.9421786327 | CK78: 0.9425670084 | CL78: 0.9429436286 | CM78: 0.9433088206 | CN78: 0.9436629062 | CO78: 0.944006198 | CP78: 0.9443390033 | CQ78: 0.944661621 | CR78: 0.9449743432 | CS78: 0.9452774543 | CT78: 0.9455712316 | CU78: 0.9458559462 | CV78: 0.946131863 | CW78: 0.9463992379 | CX78: 0.9466583233
R79: Ingresos anuales previos a la jubilación | U79: =FV(C68,U75,0,-C9) -> 61496.76135 | V79: =U79*(1+$C$69)^(-U75) -> 43992.55263 | W79: =S122 -> 32015.12772 | AE79: si | AF79: 2042-12-05 | AG79: 67 | AH79: 38.41666667 | AZ79: 89 | BA79: 0.9029955843 | BB79: 0.907704177 | BC79: 0.9089197387 | BD79: 0.9101032998 | BE79: 0.9112554567 | BF79: 0.9123768069 | BG79: 0.9134679504 | BH79: 0.9145294887 | BI79: 0.9155620234 | BJ79: 0.9165661536 | BK79: 0.9175424782 | BL79: 0.9184915933 | BM79: 0.9194140907 | BN79: 0.9203105616 | BO79: 0.921181589 | BP79: 0.9220277529 | BQ79: 0.9228496282 | BR79: 0.9236477826 | BS79: 0.9244227783 | BT79: 0.9251751707 | BU79: 0.9259235352 | BV79: 0.9266503878 | BW79: 0.9273562607 | BX79: 0.9280416788 | BY79: 0.9287071595 | BZ79: 0.9293532105 | CA79: 0.9299803314 | CB79: 0.9305890139 | CC79: 0.9311797397 | CD79: 0.9317529819 | CE79: 0.9323092056 | CF79: 0.9328488655 | CG79: 0.9333724081 | CH79: 0.93388027 | CI79: 0.9343728795 | CJ79: 0.9348506557 | CK79: 0.9353140067 | CL79: 0.9357633359 | CM79: 0.9361990334 | CN79: 0.9366214823 | CO79: 0.9370310568 | CP79: 0.9374281221 | CQ79: 0.9378130351 | CR79: 0.9381861432 | CS79: 0.9385477871 | CT79: 0.9388982963 | CU79: 0.9392379949 | CV79: 0.939567197 | CW79: 0.9398862105 | CX79: 0.9401953337
AZ80: 90 | BA80: 0.888502202 | BB80: 0.8935514946 | BC80: 0.8950278005 | BD80: 0.8964653151 | BE80: 0.8978647553 | BF80: 0.8992268431 | BG80: 0.9005523005 | BH80: 0.9018418539 | BI80: 0.9030962281 | BJ80: 0.9043161473 | BK80: 0.9055023346 | BL80: 0.906655509 | BM80: 0.9077763871 | BN80: 0.908865682 | BO80: 0.9099240998 | BP80: 0.9109523408 | BQ80: 0.9119511009 | BR80: 0.9129210671 | BS80: 0.9138629198 | BT80: 0.9147773314 | BU80: 0.9156868754 | BV80: 0.9165702999 | BW80: 0.9174282513 | BX80: 0.9182613642 | BY80: 0.9190702654 | BZ80: 0.9198555701 | CA80: 0.9206178846 | CB80: 0.9213578039 | CC80: 0.9220759118 | CD80: 0.9227727826 | CE80: 0.9234489794 | CF80: 0.9241050543 | CG80: 0.9247415487 | CH80: 0.9253589919 | CI80: 0.9259579034 | CJ80: 0.9265387916 | CK80: 0.9271021532 | CL80: 0.9276484752 | CM80: 0.9281782324 | CN80: 0.9286918898 | CO80: 0.9291899011 | CP80: 0.9296727104 | CQ80: 0.93014075 | CR80: 0.9305944417 | CS80: 0.9310341997 | CT80: 0.931460424 | CU80: 0.9318735085 | CV80: 0.9322738334 | CW80: 0.9326617738 | CX80: 0.933037691
AZ81: 91 | BA81: 0.8729074233 | BB81: 0.8789199965 | BC81: 0.880649079 | BD81: 0.8823326316 | BE81: 0.8839715014 | BF81: 0.8855665406 | BG81: 0.8871186033 | BH81: 0.888628546 | BI81: 0.8900972232 | BJ81: 0.8915254905 | BK81: 0.8929141986 | BL81: 0.8942641965 | BM81: 0.8955763275 | BN81: 0.8968514308 | BO81: 0.8980903386 | BP81: 0.8992938751 | BQ81: 0.900462858 | BR81: 0.9015980961 | BS81: 0.9027003902 | BT81: 0.9037705292 | BU81: 0.904834935 | BV81: 0.9058687384 | BW81: 0.906872698 | BX81: 0.9078475605 | BY81: 0.9087940618 | BZ81: 0.9097129245 | CA81: 0.910604861 | CB81: 0.9114705682 | CC81: 0.9123107329 | CD81: 0.913126029 | CE81: 0.9139171167 | CF81: 0.9146846443 | CG81: 0.9154292461 | CH81: 0.9161515442 | CI81: 0.9168521466 | CJ81: 0.9175316499 | CK81: 0.918190638 | CL81: 0.9188296796 | CM81: 0.9194493329 | CN81: 0.920050142 | CO81: 0.9206326391 | CP81: 0.9211973451 | CQ81: 0.9217447657 | CR81: 0.9222753961 | CS81: 0.9227897202 | CT81: 0.9232882086 | CU81: 0.9237713211 | CV81: 0.9242395044 | CW81: 0.9246931962 | CX81: 0.9251328211
R82: Pensión bruta pública probable | S82: =U82*$W$75 -> 856152.3418 | T82: =S82*(1+$C$69)^(-$U$75) -> 612460.3334 | U82: =IF(R10=TRUE,AC127,AC125) -> 39885.89879 | V82: =U82*(1+$C$69)^(-$U$75) -> 28532.92537 | AZ82: 92 | BA82: 0.8569927008 | BB82: 0.864529018 | BC82: 0.8664700066 | BD82: 0.8683599554 | BE82: 0.8701998097 | BF82: 0.8719905201 | BG82: 0.873733041 | BH82: 0.8754283283 | BI82: 0.8770773375 | BJ82: 0.8786810235 | BK82: 0.8802403383 | BL82: 0.881756231 | BM82: 0.883229645 | BN82: 0.8846615186 | BO82: 0.8860527826 | BP82: 0.8874043601 | BQ82: 0.8887171665 | BR82: 0.8899921063 | BS82: 0.8912300767 | BT82: 0.892431961 | BU82: 0.8936274322 | BV82: 0.894788558 | BW82: 0.8959161877 | BX82: 0.8970111586 | BY82: 0.8980742943 | BZ82: 0.8991064055 | CA82: 0.9001082895 | CB82: 0.9010807291 | CC82: 0.9020244927 | CD82: 0.9029403369 | CE82: 0.9038290012 | CF82: 0.904691213 | CG82: 0.9055276831 | CH82: 0.9063391096 | CI82: 0.9071261751 | CJ82: 0.9078895475 | CK82: 0.9086298825 | CL82: 0.909347818 | CM82: 0.9100439801 | CN82: 0.9107189795 | CO82: 0.9113734141 | CP82: 0.9120078664 | CQ82: 0.9126229058 | CR82: 0.9132190874 | CS82: 0.9137969538 | CT82: 0.9143570338 | CU82: 0.9148998435 | CV82: 0.9154258842 | CW82: 0.9159356473 | CX82: 0.9164296091
R83: Pensión neta | S83: =U83*$W$75 -> 715954.0628 | T83: =S83*(1+$C$69)^(-$U$75) -> 512167.5694 | U83: =V83*(1+$C$69)^$U$75 -> 33354.42758 | V83: =+R122 -> 23860.54776 | AZ83: 93 | BA83: 0.8405264631 | BB83: 0.8486636389 | BC83: 0.8508410258 | BD83: 0.8529611415 | BE83: 0.8550250481 | BF83: 0.8570338139 | BG83: 0.8589885095 | BH83: 0.8608902075 | BI83: 0.8627399825 | BJ83: 0.8645389044 | BK83: 0.8662880444 | BL83: 0.8679884661 | BM83: 0.8696412289 | BN83: 0.8712473867 | BO83: 0.8728079828 | BP83: 0.8743240552 | BQ83: 0.8757966302 | BR83: 0.8772267242 | BS83: 0.8786153417 | BT83: 0.879963477 | BU83: 0.8813044121 | BV83: 0.8826068164 | BW83: 0.8838716446 | BX83: 0.8850998346 | BY83: 0.8862923111 | BZ83: 0.8874499847 | CA83: 0.8885737487 | CB83: 0.8896644825 | CC83: 0.8907230484 | CD83: 0.8917502944 | CE83: 0.8927470513 | CF83: 0.8937141346 | CG83: 0.8946523425 | CH83: 0.8955624573 | CI83: 0.8964452456 | CJ83: 0.8973014575 | CK83: 0.898131827 | CL83: 0.8989370708 | CM83: 0.8997178916 | CN83: 0.9004749738 | CO83: 0.9012089886 | CP83: 0.9019205888 | CQ83: 0.9026104145 | CR83: 0.903279088 | CS83: 0.9039272176 | CT83: 0.9045553965 | CU83: 0.905164204 | CV83: 0.9057542022 | CW83: 0.9063259429 | CX83: 0.9068799601
R84: Gastos deseados iniciales | S84: =U84*$V$75 -> 972186.8865 | T84: =S84*(1+$C$69)^(-$U$75) -> 695467.2382 | U84: =V84*(1+$C$69)^$U$75 -> 45291.6448 | V84: =C36*12 -> 32400 | AZ84: 94 | BA84: 0.8239866054 | BB84: 0.8326780369 | BC84: 0.8350633358 | BD84: 0.8373858593 | BE84: 0.8396467743 | BF84: 0.8418472523 | BG84: 0.84398847 | BH84: 0.8460716053 | BI84: 0.8480978359 | BJ84: 0.8500683377 | BK84: 0.8519842848 | BL84: 0.8538468452 | BM84: 0.8556571806 | BN84: 0.857416447 | BO84: 0.8591257903 | BP84: 0.8607863477 | BQ84: 0.8623992454 | BR84: 0.8639655984 | BS84: 0.8654865075 | BT84: 0.8669630631 | BU84: 0.868431719 | BV84: 0.8698581615 | BW84: 0.8712434361 | BX84: 0.8725885722 | BY84: 0.8738945828 | BZ84: 0.8751624665 | CA84: 0.8763932029 | CB84: 0.8775877548 | CC84: 0.8787470694 | CD84: 0.879872074 | CE84: 0.8809636813 | CF84: 0.8820227831 | CG84: 0.8830502555 | CH84: 0.8840469556 | CI84: 0.885013723 | CJ84: 0.8859513809 | CK84: 0.8868607317 | CL84: 0.887742563 | CM84: 0.8885976428 | CN84: 0.8894267223 | CO84: 0.8902305361 | CP84: 0.8910098007 | CQ84: 0.8917652162 | CR84: 0.892497465 | CS84: 0.8932072135 | CT84: 0.8938951114 | CU84: 0.8945617926 | CV84: 0.8952078749 | CW84: 0.8958339611 | CX84: 0.8964406368
S85: Primero | T85: Segundo | U85: Tercero | AZ85: 95 | BA85: 0.8046012641 | BB85: 0.8151993777 | BC85: 0.817811561 | BD85: 0.820355139 | BE85: 0.8228313778 | BF85: 0.8252415487 | BG85: 0.8275869307 | BH85: 0.8298688036 | BI85: 0.8320884472 | BJ85: 0.8342471424 | BK85: 0.8363461645 | BL85: 0.8383867863 | BM85: 0.8403702728 | BN85: 0.842297883 | BO85: 0.8441708669 | BP85: 0.845990462 | BQ85: 0.8477578977 | BR85: 0.8494743884 | BS85: 0.8511411377 | BT85: 0.8527593337 | BU85: 0.8543689239 | BV85: 0.8559322996 | BW85: 0.8574506019 | BX85: 0.858924955 | BY85: 0.8603564655 | BZ85: 0.8617462241 | CA85: 0.8630953007 | CB85: 0.8644047479 | CC85: 0.8656756004 | CD85: 0.8669088731 | CE85: 0.8681055616 | CF85: 0.8692666426 | CG85: 0.8703930735 | CH85: 0.8714857923 | CI85: 0.8725457168 | CJ85: 0.8735737473 | CK85: 0.8745707615 | CL85: 0.8755376221 | CM85: 0.876475168 | CN85: 0.8773842228 | CO85: 0.87826559 | CP85: 0.8791200533 | CQ85: 0.8799483792 | CR85: 0.8807513144 | CS85: 0.8815295899 | CT85: 0.8822839155 | CU85: 0.8830149859 | CV85: 0.8837234783 | CW85: 0.8844100509 | CX85: 0.8850753469
R86: Años en cada tramo de ahorro | S86: =MAX(0,V142-YEARFRAC(AC55,S74,1)) -> 0 | T86: =MAX(0,W142-YEARFRAC(AC55,S74,1))-S86 -> 6.916443082 | U86: =YEARFRAC(S74,S75,1)-S86-T86 -> 9.998693794 | V86: Con capital inicial | AZ86: 96 | BA86: 0.7862351332 | BB86: 0.7965204324 | BC86: 0.7993719835 | BD86: 0.8021485208 | BE86: 0.8048514366 | BF86: 0.8074821287 | BG86: 0.8100420013 | BH86: 0.8125324596 | BI86: 0.8149549093 | BJ86: 0.8173107553 | BK86: 0.8196013975 | BL86: 0.8218282318 | BM86: 0.8239926442 | BN86: 0.8260960163 | BO86: 0.8281397162 | BP86: 0.8301251012 | BQ86: 0.8320535173 | BR86: 0.833926295 | BS86: 0.8357447521 | BT86: 0.8375101892 | BU86: 0.8392661917 | BV86: 0.8409717311 | BW86: 0.842628057 | BX86: 0.8442363999 | BY86: 0.8457979698 | BZ86: 0.8473139598 | CA86: 0.8487855399 | CB86: 0.8502138623 | CC86: 0.8516000567 | CD86: 0.8529452344 | CE86: 0.854250482 | CF86: 0.8555168683 | CG86: 0.8567454396 | CH86: 0.8579372207 | CI86: 0.8590932148 | CJ86: 0.8602144046 | CK86: 0.861301751 | CL86: 0.8623561945 | CM86: 0.8633786531 | CN86: 0.8643700257 | CO86: 0.8653311895 | CP86: 0.8662630007 | CQ86: 0.8671662969 | CR86: 0.8680418924 | CS86: 0.8688905865 | CT86: 0.8697131538 | CU86: 0.8705103531 | CV86: 0.8712829227 | CW86: 0.8720315824 | CX86: 0.8727570332
R87: Proceso de formación del capital | S87: =IF(U$143=$C$17,S$86*(1+U$143)^(S$86-1),((1+U$143)^S$86-(1+$C$17)^S$86)/(U$143-$C$17))*(U$143*(1+U$143)^(1/12))/S$101 -> 0 | T87: =S87*(1+V$143)^T$86+(1+$C$17)^S$86*IF(V$143=$C$17,T$86*(1+V$143)^(T$86-1),((1+V$143)^T$86-(1+$C$17)^T$86)/(V$143-$C$17))*(V$143*(1+V$143)^(1/12))/T$101 -> 8.09180703 | U87: =T87*(1+W$143)^U$86+(1+$C$17)^(S$86+T$86)*IF(W$143=$C$17,U$86*(1+W$143)^(U$86-1),((1+W$143)^U$86-(1+$C$17)^U$86)/(W$143-$C$17))*(W$143*(1+W$143)^(1/12))/U$101 -> 25.35254248 | V87: =$C$16*U87+$C$18*(1+U$143)^S$86*(1+V$143)^T$86*(1+W$143)^U$86 -> 0 | Z87: DETERMINACIÓN DE LA PENSIÓN PÚBLICA | AZ87: 97 | BA87: 0.7687183711 | BB87: 0.7792910537 | BC87: 0.7822921402 | BD87: 0.7852141186 | BE87: 0.7880584685 | BF87: 0.790826674 | BG87: 0.7935202227 | BH87: 0.7961406063 | BI87: 0.7986893139 | BJ87: 0.8011678335 | BK87: 0.8035776489 | BL87: 0.8059202365 | BM87: 0.8081970642 | BN87: 0.8104095924 | BO87: 0.8125592678 | BP87: 0.8146475272 | BQ87: 0.8166757919 | BR87: 0.8186454687 | BS87: 0.8205579485 | BT87: 0.8224146055 | BU87: 0.8242612815 | BV87: 0.8260548314 | BW87: 0.8277965753 | BX87: 0.829487811 | BY87: 0.8311298163 | BZ87: 0.8327238488 | CA87: 0.8342711442 | CB87: 0.8357729162 | CC87: 0.837230358 | CD87: 0.8386446394 | CE87: 0.8400169074 | CF87: 0.8413482875 | CG87: 0.8426398838 | CH87: 0.8438927749 | CI87: 0.8451080189 | CJ87: 0.8462866507 | CK87: 0.8474296833 | CL87: 0.8485381065 | CM87: 0.8496128885 | CN87: 0.8506549743 | CO87: 0.8516652887 | CP87: 0.8526447335 | CQ87: 0.8535941903 | CR87: 0.8545145169 | CS87: 0.8554065533 | CT87: 0.8562711169 | CU87: 0.8571090051 | CV87: 0.8579209953 | CW87: 0.8587078457 | CX87: 0.8594702927
AZ88: 98 | BA88: 0.7510512097 | BB88: 0.7653042879 | BC88: 0.7683010863 | BD88: 0.771218437 | BE88: 0.7740578548 | BF88: 0.7768208575 | BG88: 0.779508965 | BH88: 0.7821236977 | BI88: 0.7846665723 | BJ88: 0.7871391032 | BK88: 0.7895427975 | BL88: 0.7918791535 | BM88: 0.7941496613 | BN88: 0.7963557995 | BO88: 0.7984990326 | BP88: 0.8005808149 | BQ88: 0.8026025815 | BR88: 0.8045657538 | BS88: 0.8064717358 | BT88: 0.8083219134 | BU88: 0.8101619777 | BV88: 0.8119489478 | BW88: 0.8136841527 | BX88: 0.8153688982 | BY88: 0.817004471 | BZ88: 0.8185921343 | CA88: 0.8201331312 | CB88: 0.8216286803 | CC88: 0.8230799804 | CD88: 0.8244882051 | CE88: 0.8258545056 | CF88: 0.8271800112 | CG88: 0.8284658279 | CH88: 0.8297130376 | CI88: 0.830922701 | CJ88: 0.8320958539 | CK88: 0.8332335106 | CL88: 0.8343366629 | CM88: 0.835406279 | CN88: 0.8364433042 | CO88: 0.8374486644 | CP88: 0.8384232614 | CQ88: 0.8393679758 | CR88: 0.8402836669 | CS88: 0.8411711719 | CT88: 0.842031309 | CU88: 0.8428648743 | CV88: 0.8436726448 | CW88: 0.8444553764 | CX88: 0.8452138061
R89: Ahorro preexistente para la jubilación | S89: =V87 -> 0 | T89: =S89*(1+$C$69)^(-$U$75) -> 0 | U89: =S89/W75 -> 0 | V89: =U89*(1+$C$69)^(-$U$75) -> 0 | W89: Pérdida pode adquisitivo | Z89: Situación aplicable | AA89: =AD43 -> 1 | AZ89: 99 | BA89: 0.7377042968 | BB89: 0.753992129 | BC89: 0.7568428818 | BD89: 0.7596180459 | BE89: 0.7623190624 | BF89: 0.7649473763 | BG89: 0.7675044346 | BH89: 0.7699916846 | BI89: 0.7724105697 | BJ89: 0.7747625319 | BK89: 0.7770490051 | BL89: 0.7792714151 | BM89: 0.7814311806 | BN89: 0.7835297084 | BO89: 0.7855683925 | BP89: 0.7875486163 | BQ89: 0.7894717457 | BR89: 0.7913391339 | BS89: 0.7931521168 | BT89: 0.7949120125 | BU89: 0.7966622831 | BV89: 0.7983620454 | BW89: 0.8000125643 | BX89: 0.8016150822 | BY89: 0.8031708231 | BZ89: 0.8046809895 | CA89: 0.8061467629 | CB89: 0.8075693045 | CC89: 0.8089497531 | CD89: 0.8102892262 | CE89: 0.8115888194 | CF89: 0.8128496069 | CG89: 0.8140726407 | CH89: 0.81525895 | CI89: 0.816409544 | CJ89: 0.8175254087 | CK89: 0.8186075081 | CL89: 0.8196567863 | CM89: 0.8206741644 | CN89: 0.8216605419 | CO89: 0.8226167993 | CP89: 0.8235437946 | CQ89: 0.824442365 | CR89: 0.8253133288 | CS89: 0.826157482 | CT89: 0.826975603 | CU89: 0.8277684493 | CV89: 0.8285367597 | CW89: 0.829281253 | CX89: 0.8300026318
R90: Ahorro neto para complemento inicial | S90: =S89*(1-$R$115) -> 0 | T90: =S90*(1+$C$69)^(-$U$75) -> 0 | U90: =U89*(1-$R$115) -> 0 | V90: =V89*(1-$R$115) -> 0 | Z90: Tramo Nº hijos | AA90: =HLOOKUP(D5,Z91:AD92,2,0) -> 2 | AZ90: 100 | BA90: 1.545762473 | BB90: 1.63798184 | BC90: 1.724404024 | BD90: 1.80018265 | BE90: 1.88055029 | BF90: 1.941593139 | BG90: 2.012208117 | BH90: 2.077620772 | BI90: 2.148564582 | BJ90: 2.212419179 | BK90: 2.294487666 | BL90: 2.358334839 | BM90: 2.429766773 | BN90: 2.478700473 | BO90: 2.558223472 | BP90: 2.599231281 | BQ90: 2.631893847 | BR90: 2.702501218 | BS90: 2.745720946 | BT90: 2.692533411 | BU90: 2.631368847 | BV90: 2.838940223 | BW90: 3.066432737 | BX90: 2.944761794 | BY90: 3.119405729 | BZ90: 3.248290623 | CA90: 3.279304891 | CB90: 3.294865868 | CC90: 3.276579971 | CD90: 3.377751997 | CE90: 3.436634315 | CF90: 3.371651962 | CG90: 3.368819298 | CH90: 3.458891852 | CI90: 3.538272144 | CJ90: 3.553559227 | CK90: 3.594362968 | CL90: 3.660422904 | CM90: 3.734147866 | CN90: 3.803254126 | CO90: 3.817372599 | CP90: 3.840849268 | CQ90: 3.847838803 | CR90: 3.844964322 | CS90: 3.879443943 | CT90: 3.943123742 | CU90: 3.969635164 | CV90: 3.94175159 | CW90: 3.963832959 | CX90: 3.979680835
Z91: Ninguno | AA91: Uno | AB91: Dos | AC91: Tres | AD91: Cuatro o más
R92: Pensión + rentas del ahorro (neto) | U92: =V92*(1+$C$69)^$U$75 -> 33354.42758 | V92: =V83+V90 -> 23860.54776 | Y92: Tramo Nº hijos | Z92: 0 | AA92: 1 | AB92: 2 | AC92: 3 | AD92: 4 | AF92: DATOS GRÁFICO | AM92: BASE REGULADORA
R93: Ingreso anual adicional necesario | U93: =MAX(0,U84-U92) -> 11937.21722 | V93: =MAX(0,V84-V92) -> 8539.452244 | W93: =S84-S83-S90-S97 -> 0 | X93: =W93*(1+$C$69)^(-$U$75) -> 0 | Y93: Porcentaje por hijos | Z93: =$R$11*Z92 -> 0 | AA93: =$R$11*AA92 -> 33.2 | AB93: 66.4 | AC93: 99.6 | AD93: 132.8
R94: Fondo privado que es necesario constituir | S94: =S97/(1-$R$115) -> 366046.8911 | T94: =T95/(1-$R$115) -> 261856.6697 | AF94: Año | AG94: Pensión pública probable | AH94: Rentas del ahorro privado | AI94: Gastos previstos | AJ94: Diferencia | AK94: Necesidad de ingresos adicionales
R95: Neto | T95: =V93*$W$75 -> 183299.6688 | AC95: € año jubilación | AF95: =+C24+1 -> 66 | AG95: =+V83 -> 23860.54776 | AH95: =+V90 -> 0 | AI95: =+H7 -> 32400 | AJ95: =AI95-AH95-AG95 -> 8539.452244 | AK95: =MAX(0,AI95-AG95-AH95) -> 8539.452244 | AM95: Base reguladora normativa | AN95: =MAX(VLOOKUP(AA30,AQ6:AV27,5)/(VLOOKUP(AA30,AQ6:AV27,2)*7/6),VLOOKUP(AA30,AQ6:AV27,6))/((VLOOKUP(AA30,AQ6:AV27,3)*7/6)) -> 3652.33944 | AO95: Actual
R96: Aportación anual necesaria creciente para constituirlo | T96: =S94/U87 -> 14438.27148 | X96: =W93/U87/(1-$R$115) -> 0 | AB96: Base reg. | AC96: =AN96 -> 51132.75216 | AF96: =AF95+1 -> 67 | AG96: =AG95*(1+$C$71) -> 24337.75871 | AH96: =AH95*(1+$C$71) -> 0 | AI96: =AI95*(1+$C$70) -> 33048 | AJ96: 8710.241289 | AK96: 8710.241289 | AM96: Base anual | AN96: =AN95*14 -> 51132.75216 | AO96: =AN96*(1+C69)^(-U75) -> 36578.51635 | AP96: Meses cotizados | AQ96: idem+48 | AZ96: Coef. Reductor (anticipadas)
R97: Aumento del ahorro preexistente. Neto | S97: =U93*$W$75 -> 256232.8238 | T97: =MAX($S$97,0)/((1+U143)^S86*(1+V143)^T86*(1+W143)^ U86) -> 183299.6688 | V97: Neto necesario | W97: =W93 -> 0 | X97: =MAX($W$93,0)/((1+U143)^S86*(1+V143)^T86*(1+W143)^U86) -> 0 | AB97: TS Base | AC97: =0.5+MIN(AE30,AG26)*AF30+MAX(0,MIN(AG26,AG30)-AE30)*AH30 -> 0.9874 | AF97: =AF96+1 -> 68 | AG97: 24824.51388 | AH97: 0 | AI97: 33708.96 | AJ97: 8884.446115 | AK97: 8884.446115 | AM97: =S75 -> 2040-12-05 | AN97: =IF(AND(AP97>=0,AQ97>=0),IF($R$6=TRUE,MIN(Ingresos/12*(1+$C$68)^(YEAR(AM97)-YEAR($S$74)),VLOOKUP(YEAR(AM97),$Q$26:$R$70,2)),MIN(Base*(1+$C$68)^(YEAR(AM97)-YEAR($S$74)),VLOOKUP(YEAR(AM97),$Q$26:$R$70,2))),IF($R$6=TRUE,IF(AQ97>=0,$R$20,0.5*$R$20),0)*(1+$C$68)^(YEAR(AM97)-YEAR($S$74))) -> 4987.962515 | AO97: 0 | AP97: =AC61*12+1 -> 438 | AQ97: =AP97+48 -> 486 | AZ97: Años cotizados | BA97: Coeficiente | BC97: =HLOOKUP(INT(AC61*12),BA99:BD100,2) -> 2
R98: % tributa | S98: =VLOOKUP(MAX(65,$AD$60),$P$128:$Q$133,2) -> 0.24 | V98: % tributa | W98: =VLOOKUP(MAX(65,$AD$60),$P$128:$Q$133,2) -> 0.24 | AB98: Reductor | AC98: =AD48 -> 0.21 | AF98: 69 | AG98: 25321.00416 | AH98: 0 | AI98: 34383.1392 | AJ98: 9062.135037 | AK98: 9062.135037 | AM98: =EDATE(AM97,-1) -> 2040-11-05 | AN98: =IF(AND(AP98>=0,AQ98>=0),IF($R$6=TRUE,MIN(Ingresos/12*(1+$C$68)^(YEAR(AM98)-YEAR($S$74)),VLOOKUP(YEAR(AM98),$Q$26:$R$70,2)),MIN(Base*(1+$C$68)^(YEAR(AM98)-YEAR($S$74)),VLOOKUP(YEAR(AM98),$Q$26:$R$70,2))),IF($R$6=TRUE,IF(AQ98>=0,$R$20,0.5*$R$20),0)*(1+$C$68)^(YEAR(AM98)-YEAR($S$74))) -> 4987.962515 | AO98: 0 | AP98: =AP97-1 -> 437 | AQ98: =AP98+48 -> 485 | BK98: Transición coeficiente reductor cuando la pensión pasa de la máxima | BR98: Coeficiente aplicable | BS98: =IF(AA89<>1,1,VLOOKUP(AG23,IF(BC97=2,$BJ$102:$BT$126,IF(BC97=3,$BJ$130:$BT$154,IF(BC97=4,$BJ$158:$BT$182,$BJ$186:$BT$210))),MIN(11,AA30-2022))) -> 0.21
R99: Bruto | S99: =S97/(1-S98*$T$128) -> 268475.2973 | T99: =S97/((1-S98*$T$128)*(1+V101*(1-$T$128))) -> 203037.9644 | V99: Bruto | W99: =W97/(1-W98*$T$128) -> 0 | X99: =W97/((1-W98*$T$128)*(1+V101*(1-$T$128))) -> 0 | AB99: Sostenibilidad | AC99: 1 | AF99: 70 | AG99: 25827.42425 | AH99: 0 | AI99: 35070.80198 | AJ99: 9243.377738 | AK99: 9243.377738 | AM99: =EDATE(AM98,-1) -> 2040-10-05 | AN99: 4987.962515 | AO99: =AN99 -> 4987.962515 | AP99: =AP98-1 -> 436 | AQ99: 484 | AZ99: Voluntarias | BA99: 0 | BB99: 462 | BC99: 498 | BD99: 534 | BE99: Involuntarias | BF99: 0 | BG99: 462 | BH99: 498 | BI99: 534
AB100: Tasa antes incentivo | AC100: =AC97*(1-AC98)*AC99 -> 0.780046 | AF100: 71 | AG100: 26343.97273 | AH100: 0 | AI100: 35772.21802 | AJ100: 9428.245293 | AK100: 9428.245293 | AM100: 2040-09-05 | AN100: 4987.962515 | AO100: =AN100 -> 4987.962515 | AP100: 435 | AQ100: 483 | BA100: 2 | BB100: 3 | BC100: 4 | BD100: 5 | BF100: 2 | BG100: 3 | BH100: 4 | BI100: 5 | BK100: Menos de 38,5 cotizados
R101: Interés nominal | S101: =NOMINAL(U143,12) -> 0.01981897562 | T101: =NOMINAL(V143,12) -> 0.01981897562 | U101: =NOMINAL(W143,12) -> 0.01981897562 | V101: =+(1+$U$143)^$S$86*(1+$V$143)^$T$86*(1+$W$143)^$U$86-1 -> 0.3978902717 | AB101: Incentivo | AC101: =AD50*AG22 -> 0 | AF101: 72 | AG101: 26870.85219 | AH101: 0 | AI101: 36487.66238 | AJ101: 9616.810199 | AK101: 9616.810199 | AM101: 2040-08-05 | AN101: 4987.962515 | AO101: 4987.962515 | AP101: 434 | AQ101: 482 | AZ101: Meses | BA101: Menos 38,5 | BB101: Menos 41,5 | BC101: Menos 44,5 | BD101: 44,5+ | BE101: Meses | BF101: Menos 38,5 | BG101: Menos 41,5 | BH101: Menos 44,5 | BI101: 44,5+ | BK101: 2024 | BL101: 2025 | BM101: 2026 | BN101: 2027 | BO101: 2028 | BP101: 2029 | BQ101: 2030 | BR101: 2031 | BS101: 2032 | BT101: 2033
P102: Fuente: | Q102: http://www.irpf.eu/2016.html | AB102: Tasa aplicable | AC102: =AC101+AC100 -> 0.780046 | AF102: 73 | AG102: 27408.26923 | AH102: 0 | AI102: 37217.41563 | AJ102: 9809.146403 | AK102: 9809.146403 | AM102: 2040-07-05 | AN102: 4987.962515 | AO102: 4987.962515 | AP102: 433 | AQ102: 481 | AZ102: 0 | BA102: 0 | BB102: 0 | BC102: 0 | BD102: 0 | BE102: 0 | BF102: 0 | BG102: 0 | BH102: 0 | BI102: 0 | BJ102: 0 | BK102: 0 | BL102: 0 | BM102: 0 | BN102: 0 | BO102: 0 | BP102: 0 | BQ102: 0 | BR102: 0 | BS102: 0 | BT102: 0
P103: TARIFA IRPF 2024 | AB103: Mínima | AC103: =14*VLOOKUP(YEAR(S75),Q27:S70,3) -> 18857.86 | AF103: 74 | AG103: 27956.43461 | AH103: 0 | AI103: 37961.76394 | AJ103: 10005.32933 | AK103: 10005.32933 | AM103: 2040-06-05 | AN103: 4987.962515 | AO103: 4987.962515 | AP103: 432 | AQ103: 480 | AZ103: 1 | BA103: 3.26 | BB103: 3.11 | BC103: 2.96 | BD103: 2.81 | BE103: 1 | BF103: 0.63 | BG103: 0.58 | BH103: 0.54 | BI103: 0.5 | BJ103: 1 | BK103: 0.0078 | BL103: 0.0105 | BM103: 0.0133 | BN103: 0.016 | BO103: 0.0188 | BP103: 0.0216 | BQ103: 0.0243 | BR103: 0.0271 | BS103: 0.0298 | BT103: 0.0326
R104: Pensión | S104: Último sal. | AB104: Complemento por hijos | AC104: =IF(S4=TRUE,HLOOKUP(AA90,Z92:AD93,2),0) -> 0 | AF104: 75 | AG104: 28515.56331 | AH104: 0 | AI104: 38720.99922 | AJ104: 10205.43592 | AK104: 10205.43592 | AM104: 2040-05-05 | AN104: 4987.962515 | AO104: 4987.962515 | AP104: 431 | AQ104: 479 | AZ104: 2 | BA104: 3.38 | BB104: 3.23 | BC104: 3.08 | BD104: 2.92 | BE104: 2 | BF104: 1.25 | BG104: 1.17 | BH104: 1.08 | BI104: 1 | BJ104: 2 | BK104: 0.0079 | BL104: 0.0108 | BM104: 0.0136 | BN104: 0.0165 | BO104: 0.0194 | BP104: 0.0223 | BQ104: 0.0252 | BR104: 0.028 | BS104: 0.0309 | BT104: 0.0338
P105: Ingresos brutos | R105: =V82 -> 28532.92537 | S105: =V79 -> 43992.55263 | T105: TABLA TRAMOS IRPF | AB105: Pensión sin complemento ni incentivos (sin límites) | AC105: =AC100*AC96 -> 39885.89879 | AF105: 76 | AG105: 29085.87457 | AH105: 0 | AI105: 39495.41921 | AJ105: 10409.54464 | AK105: 10409.54464 | AM105: 2040-04-05 | AN105: 4987.962515 | AO105: 4987.962515 | AP105: 430 | AQ105: 478 | AZ105: 3 | BA105: 3.52 | BB105: 3.36 | BC105: 3.2 | BD105: 3.04 | BE105: 3 | BF105: 1.88 | BG105: 1.75 | BH105: 1.63 | BI105: 1.5 | BJ105: 3 | BK105: 0.008 | BL105: 0.011 | BM105: 0.0141 | BN105: 0.0171 | BO105: 0.0201 | BP105: 0.0231 | BQ105: 0.0261 | BR105: 0.0292 | BS105: 0.0322 | BT105: 0.0352
T106: de | U106: a | V106: Cuota | W106: Tipo marginal | AB106: Pensión con incentivo y sin complemento | AC106: =AC102*AC96 -> 39885.89879 | AF106: 77 | AG106: 29667.59206 | AH106: 0 | AI106: 40285.32759 | AJ106: 10617.73553 | AK106: 10617.73553 | AM106: 2040-03-05 | AN106: 4987.962515 | AO106: 4987.962515 | AP106: 429 | AQ106: 477 | AZ106: 4 | BA106: 3.67 | BB106: 3.5 | BC106: 3.33 | BD106: 3.17 | BE106: 4 | BF106: 2.5 | BG106: 2.33 | BH106: 2.17 | BI106: 2 | BJ106: 4 | BK106: 0.0127 | BL106: 0.0153 | BM106: 0.018 | BN106: 0.0207 | BO106: 0.0234 | BP106: 0.026 | BQ106: 0.0287 | BR106: 0.0314 | BS106: 0.034 | BT106: 0.0367
P107: TOTAL Ingresos | R107: =SUM(R105:R106) -> 28532.92537 | S107: =SUM(S105:S106) -> 43992.55263 | T107: 0 | U107: 12450 | V107: 0 | W107: 0.19 | AB107: Pensión con incentivo y complemento | AC107: =AC106+AC104*14 -> 39885.89879 | AF107: 78 | AG107: 30260.9439 | AH107: 0 | AI107: 41091.03414 | AJ107: 10830.09024 | AK107: 10830.09024 | AM107: 2040-02-05 | AN107: 4987.962515 | AO107: 4987.962515 | AP107: 428 | AQ107: 476 | AZ107: 5 | BA107: 3.83 | BB107: 3.65 | BC107: 3.48 | BD107: 3.3 | BE107: 5 | BF107: 3.13 | BG107: 2.92 | BH107: 2.71 | BI107: 2.5 | BJ107: 5 | BK107: 0.0128 | BL107: 0.0157 | BM107: 0.0185 | BN107: 0.0213 | BO107: 0.0242 | BP107: 0.027 | BQ107: 0.0298 | BR107: 0.0326 | BS107: 0.0355 | BT107: 0.0383
T108: 12450 | U108: 20200 | V108: =T108*W107 -> 2365.5 | W108: 0.24 | AB108: Pensión hombre (si no llega a la mínima) | AC108: =IF(AND(AC106<AC103,R4=TRUE)=TRUE,AC103,0) -> 0 | AF108: 79 | AG108: 30866.16278 | AH108: 0 | AI108: 41912.85483 | AJ108: 11046.69204 | AK108: 11046.69204 | AM108: 2040-01-05 | AN108: 4987.962515 | AO108: 4987.962515 | AP108: 427 | AQ108: 475 | AZ108: 6 | BA108: 4 | BB108: 3.82 | BC108: 3.64 | BD108: 3.45 | BE108: 6 | BF108: 3.75 | BG108: 3.5 | BH108: 3.25 | BI108: 3 | BJ108: 6 | BK108: 0.013 | BL108: 0.016 | BM108: 0.019 | BN108: 0.022 | BO108: 0.025 | BP108: 0.028 | BQ108: 0.031 | BR108: 0.034 | BS108: 0.037 | BT108: 0.04
P109: MINIMO PERSONAL | R109: =U115+IF(R9/12>=65,U116,0) -> 6700 | S109: =U115+IF((R9-12)/12>=65,U116,0) -> 5550 | T109: 20200 | U109: 35200 | V109: =V108+(U108-T108)*W108 -> 4225.5 | W109: 0.3 | AB109: Pensión mujer (si no llega a la mínima) | AC109: =IF(AND(S4=TRUE,AC106<AC103)=TRUE,AC103+AC104*14,0) -> 0 | AF109: 80 | AG109: 31483.48604 | AH109: 0 | AI109: 42751.11192 | AJ109: 11267.62588 | AK109: 11267.62588 | AM109: 2039-12-05 | AN109: =IFERROR(IF(AND(AP109>=0,AQ109>=0),IF($R$6=TRUE,MIN(Ingresos/12*(1+$C$68)^(YEAR(AM109)-YEAR($S$74)),VLOOKUP(YEAR(AM109),$Q$26:$R$70,2)),MIN(Base*(1+$C$68)^(YEAR(AM109)-YEAR($S$74)),VLOOKUP(YEAR(AM109),$Q$26:$R$70,2))),IF($R$6=TRUE,IF(AQ109>=0,$R$20,0.5*$R$20),0)*(1+$C$68)^(YEAR(AM109)-YEAR($S$74))),AN97/(1+$C$68)) -> 4842.682053 | AO109: 4842.682053 | AP109: 426 | AQ109: 474 | AZ109: 7 | BA109: 4.19 | BB109: 4 | BC109: 3.81 | BD109: 3.62 | BE109: 7 | BF109: 4.19 | BG109: 4 | BH109: 3.81 | BI109: 3.62 | BJ109: 7 | BK109: 0.0177 | BL109: 0.0204 | BM109: 0.0231 | BN109: 0.0258 | BO109: 0.0285 | BP109: 0.0311 | BQ109: 0.0338 | BR109: 0.0365 | BS109: 0.0392 | BT109: 0.0419
P110: GENERAL + RTOS TRABAJO | R110: =V120+IF(R105*(1-R111)<$T$118,$U$118,IF(R105*(1-R111)>$T$119,0,$U$118-$U$119*(R105*(1-R111)-$T$118))) -> 2600 | S110: =W120+IF(S105*(1-S111)<$T$118,$U$118,IF(S105*(1-S111)>$T$119,0,$U$118-$U$119*(S105*(1-S111)-$T$118))) -> 2000 | T110: 35200 | U110: 60000 | V110: =V109+(U109-T109)*W109 -> 8725.5 | W110: 0.37 | AB110: Máxima normal (en su caso anticipada) | AC110: =14*VLOOKUP(YEAR(S75),Q27:T70,4)*IF(AA89<>1,1,(1-BS98)) -> 49083.727 | AF110: 81 | AG110: 32113.15576 | AH110: 0 | AI110: 43606.13416 | AJ110: 11492.9784 | AK110: 11492.9784 | AM110: 2039-11-05 | AN110: 4842.682053 | AO110: 4842.682053 | AP110: 425 | AQ110: 473 | AZ110: 8 | BA110: 4.4 | BB110: 4.2 | BC110: 4 | BD110: 3.81 | BE110: 8 | BF110: 4.4 | BG110: 4.2 | BH110: 4 | BI110: 3.8 | BJ110: 8 | BK110: 0.0179 | BL110: 0.0208 | BM110: 0.0237 | BN110: 0.0266 | BO110: 0.0295 | BP110: 0.0324 | BQ110: 0.0353 | BR110: 0.0382 | BS110: 0.0411 | BT110: 0.044
P111: Cotización SS | R111: =V121 -> 0 | S111: =W121 -> 0.0647 | T111: 60000 | U111: 300000 | V111: =V110+(U110-T110)*W110 -> 17901.5 | W111: 0.45 | AB111: Base máxima | AC111: =+R26*12*(1+C68)^T75 -> 86567.49356 | AF111: 82 | AG111: 32755.41887 | AH111: 0 | AI111: 44478.25684 | AJ111: 11722.83797 | AK111: 11722.83797 | AM111: 2039-10-05 | AN111: 4842.682053 | AO111: 4842.682053 | AP111: 424 | AQ111: 472 | AZ111: 9 | BA111: 4.63 | BB111: 4.42 | BC111: 4.21 | BD111: 4 | BE111: 9 | BF111: 4.63 | BG111: 4.42 | BH111: 4.21 | BI111: 4 | BJ111: 9 | BK111: 0.0181 | BL111: 0.0213 | BM111: 0.0244 | BN111: 0.0275 | BO111: 0.0307 | BP111: 0.0338 | BQ111: 0.0369 | BR111: 0.04 | BS111: 0.0432 | BT111: 0.0463
P112: TOTAL DEDUCCIONES | R112: =R110+R111*IF($R$6=TRUE,MAX($R$20*12,MIN($R$26*12,R105)),FV($C$68,$U$75,0,-Base*12)*(1+$C$69)^(-$U$75)) -> 2600 | S112: =S110+S111*IF($R$6=TRUE,MAX($R$20*12,MIN($R$26*12,S105)),FV($C$68,$U$75,0,-Base*12)*(1+$C$69)^(-$U$75)) -> 4846.318155 | T112: 300000 | V112: 125901.5 | W112: 0.47 | AB112: Pensión hombre (si no llega a la máxima) | AC112: =IF(AND(R4=TRUE,AC106<AC110,AC108=0)=TRUE,AC106,0) -> 39885.89879 | AF112: 83 | AG112: 33410.52725 | AH112: 0 | AI112: 45367.82198 | AJ112: 11957.29473 | AK112: 11957.29473 | AM112: 2039-09-05 | AN112: 4842.682053 | AO112: 4842.682053 | AP112: 423 | AQ112: 471 | AZ112: 10 | BA112: 4.89 | BB112: 4.67 | BC112: 4.44 | BD112: 4.22 | BE112: 10 | BF112: 4.89 | BG112: 4.67 | BH112: 4.44 | BI112: 4.22 | BJ112: 10 | BK112: 0.0229 | BL112: 0.0258 | BM112: 0.0287 | BN112: 0.0316 | BO112: 0.0345 | BP112: 0.0373 | BQ112: 0.0402 | BR112: 0.0431 | BS112: 0.046 | BT112: 0.0489
P113: BASE IRPF | R113: =R107-R112 -> 25932.92537 | S113: =S107-S112 -> 39146.23448 | T113: Datos cálculo de la retención | AB113: Porcentaje pendiente de utilizar | AC113: =ROUNDUP(MIN((AC101-AC110/AC105+1),AC101)*100,0)/100 -> -0.24 | AF113: 84 | AG113: 34078.7378 | AH113: 0 | AI113: 46275.17842 | AJ113: 12196.44062 | AK113: 12196.44062 | AM113: 2039-08-05 | AN113: 4842.682053 | AO113: 4842.682053 | AP113: 422 | AQ113: 470 | AZ113: 11 | BA113: 5.18 | BB113: 4.94 | BC113: 4.71 | BD113: 4.47 | BE113: 11 | BF113: 5.18 | BG113: 4.94 | BH113: 4.71 | BI113: 4.47 | BJ113: 11 | BK113: 0.0232 | BL113: 0.0264 | BM113: 0.0295 | BN113: 0.0327 | BO113: 0.0359 | BP113: 0.0391 | BQ113: 0.0423 | BR113: 0.0454 | BS113: 0.0486 | BT113: 0.0518
T114: Mínimo personal | AB114: Pensión hombre (si llega a la máxima) | AC114: =IF(AND(R4=TRUE,AC108=0,AC112=0)=TRUE,MIN(AC110*(1+AC113),AC111),0) -> 0 | AF114: 85 | AG114: 34760.31255 | AH114: 0 | AI114: 47200.68199 | AJ114: 12440.36944 | AK114: 12440.36944 | AM114: 2039-07-05 | AN114: 4842.682053 | AO114: 4842.682053 | AP114: 421 | AQ114: 469 | AZ114: 12 | BA114: 5.5 | BB114: 5.25 | BC114: 5 | BD114: 4.75 | BE114: 12 | BF114: 5.5 | BG114: 5.25 | BH114: 5 | BI114: 4.75 | BJ114: 12 | BK114: 0.0235 | BL114: 0.027 | BM114: 0.0305 | BN114: 0.034 | BO114: 0.0375 | BP114: 0.041 | BQ114: 0.0445 | BR114: 0.048 | BS114: 0.0515 | BT114: 0.055
P115: TIPO marginal IRPF | R115: =VLOOKUP($R$113,$T$107:$W$112,4) -> 0.3 | S115: =VLOOKUP(S113,$T$107:$W$112,4) -> 0.37 | T115: Base | U115: 5550 | AB115: Pensión mujer (si no llega a la máxima) | AC115: =IF(AND(S4=TRUE,AC107<AC110,AC109=0)=TRUE,AC107,0) -> 0 | AF115: 86 | AG115: 35455.5188 | AH115: 0 | AI115: 48144.69563 | AJ115: 12689.17683 | AK115: 12689.17683 | AM115: 2039-06-05 | AN115: 4842.682053 | AO115: 4842.682053 | AP115: 420 | AQ115: 468 | AZ115: 13 | BA115: 5.87 | BB115: 5.6 | BC115: 5.33 | BD115: 5.07 | BE115: 13 | BF115: 5.87 | BG115: 5.6 | BH115: 5.33 | BI115: 5.07 | BJ115: 13 | BK115: 0.0284 | BL115: 0.0317 | BM115: 0.0351 | BN115: 0.0385 | BO115: 0.0419 | BP115: 0.0452 | BQ115: 0.0486 | BR115: 0.052 | BS115: 0.0553 | BT115: 0.0587
P116: Tramo inferior | R116: =VLOOKUP($R$113,$T$107:$W$112,1) -> 20200 | S116: =VLOOKUP(S113,$T$107:$W$112,1) -> 35200 | T116: Adicional 65+ | U116: 1150 | AB116: Máxima sin incentivo y con complemento | AC116: =AC110+AC104*14 -> 49083.727 | AF116: 87 | AG116: 36164.62918 | AH116: 0 | AI116: 49107.58954 | AJ116: 12942.96036 | AK116: 12942.96036 | AM116: 2039-05-05 | AN116: 4842.682053 | AO116: 4842.682053 | AP116: 419 | AQ116: 467 | AZ116: 14 | BA116: 6.29 | BB116: 6 | BC116: 5.71 | BD116: 5.43 | BE116: 14 | BF116: 6.29 | BG116: 6 | BH116: 5.71 | BI116: 5.43 | BJ116: 14 | BK116: 0.0288 | BL116: 0.0326 | BM116: 0.0364 | BN116: 0.0402 | BO116: 0.044 | BP116: 0.0477 | BQ116: 0.0515 | BR116: 0.0553 | BS116: 0.0591 | BT116: 0.0629
P117: Resto | R117: =R113-R116 -> 5732.925365 | S117: =S113-S116 -> 3946.234477 | T117: Por rendimiento del trabajo | AB117: Pensión mujer sin incentivo (si llega a la máxima totalmente) | AC117: =IF(AND(S4=TRUE,AC109=0,AC115=0,AC101=0,AC105>AC110)=TRUE,MIN(AC107,AC116),0) -> 0 | AF117: 88 | AG117: 36887.92176 | AH117: 0 | AI117: 50089.74133 | AJ117: 13201.81957 | AK117: 13201.81957 | AM117: 2039-04-05 | AN117: 4842.682053 | AO117: 4842.682053 | AP117: 418 | AQ117: 466 | AZ117: 15 | BA117: 6.77 | BB117: 6.46 | BC117: 6.15 | BD117: 5.85 | BE117: 15 | BF117: 6.77 | BG117: 6.46 | BH117: 6.15 | BI117: 5.85 | BJ117: 15 | BK117: 0.0293 | BL117: 0.0335 | BM117: 0.0378 | BN117: 0.0421 | BO117: 0.0464 | BP117: 0.0506 | BQ117: 0.0549 | BR117: 0.0592 | BS117: 0.0634 | BT117: 0.0677
P118: Cuota tramo inferior | R118: =VLOOKUP($R$113,$T$107:$W$112,3) -> 4225.5 | S118: =VLOOKUP(S113,$T$107:$W$112,3) -> 8725.5 | T118: 13115 | U118: 5565 | AB118: Complemento no aplicado | AC118: =MAX(0,AC104*14/AC106-AC110/AC105+1) -> 0 | AF118: =AF117+1 -> 89 | AG118: 37625.6802 | AH118: 0 | AI118: 51091.53616 | AJ118: 13465.85596 | AK118: 13465.85596 | AM118: 2039-03-05 | AN118: 4842.682053 | AO118: 4842.682053 | AP118: 417 | AQ118: 465 | AZ118: 16 | BA118: 7.33 | BB118: 7 | BC118: 6.67 | BD118: 6.33 | BE118: 16 | BF118: 7.33 | BG118: 7 | BH118: 6.67 | BI118: 6.33 | BJ118: 16 | BK118: 0.0343 | BL118: 0.0387 | BM118: 0.043 | BN118: 0.0473 | BO118: 0.0517 | BP118: 0.056 | BQ118: 0.0603 | BR118: 0.0646 | BS118: 0.069 | BT118: 0.0733
P119: Cuota resto | R119: =R117*R115 -> 1719.87761 | S119: =S117*S115 -> 1460.106757 | T119: 16825 | U119: =U118/(T119-T118) -> 1.5 | V119: Pensionista | W119: Activo | AB119: Pensión mujer sin incentivo (si llega a la máxima parcialmente) | AC119: =IF(AND(S4=TRUE,AC109=0,AC115=0,AC117=0,AC101=0)=TRUE,AC110+AC118*AC105,0) -> 0 | AF119: 90 | AG119: 38378.1938 | AH119: 0 | AI119: 52113.36688 | AJ119: 13735.17308 | AK119: 13735.17308 | AM119: 2039-02-05 | AN119: 4842.682053 | AO119: 4842.682053 | AP119: 416 | AQ119: 464 | AZ119: 17 | BA119: 8 | BB119: 7.64 | BC119: 7.27 | BD119: 6.91 | BE119: 17 | BF119: 8 | BG119: 7.64 | BH119: 7.27 | BI119: 6.91 | BJ119: 17 | BK119: 0.035 | BL119: 0.04 | BM119: 0.045 | BN119: 0.05 | BO119: 0.055 | BP119: 0.06 | BQ119: 0.065 | BR119: 0.07 | BS119: 0.075 | BT119: 0.08
P120: Mínimo personal | R120: =R109*W107 -> 1273 | S120: =S109*W107 -> 1054.5 | U120: Gasto deducible general | V120: 2600 | W120: 2000 | AB120: Máxima con incentivo | AC120: =AC110*(1+AC113) -> 37303.63252 | AF120: 91 | AG120: 39145.75768 | AH120: 0 | AI120: 53155.63422 | AJ120: 14009.87654 | AK120: 14009.87654 | AM120: 2039-01-05 | AN120: 4842.682053 | AO120: 4842.682053 | AP120: 415 | AQ120: 463 | AZ120: 18 | BA120: 8.8 | BB120: 8.4 | BC120: 8 | BD120: 7.6 | BE120: 18 | BF120: 8.8 | BG120: 8.4 | BH120: 8 | BI120: 7.6 | BJ120: 18 | BK120: 0.0358 | BL120: 0.0416 | BM120: 0.0474 | BN120: 0.0532 | BO120: 0.059 | BP120: 0.0648 | BQ120: 0.0706 | BR120: 0.0764 | BS120: 0.0822 | BT120: 0.088
P121: Total cuota | R121: =MAX(MIN(R119+R118-R120,V122*(R105-V123)),0) -> 4672.37761 | S121: =MAX(MIN(S119+S118-S120,W122*(S105-W123)),0) -> 9131.106757 | U121: Cotización SS | V121: 0 | W121: 0.0647 | AB121: Máxima con incentivo y complemento | AC121: =AC120+AC104*14 -> 37303.63252 | AM121: 2038-12-05 | AN121: 4701.633061 | AO121: 4701.633061 | AP121: 414 | AQ121: 462 | AZ121: 19 | BA121: 9.78 | BB121: 9.33 | BC121: 8.89 | BD121: 8.4 | BE121: 19 | BF121: 9.78 | BG121: 9.33 | BH121: 8.89 | BI121: 8.4 | BJ121: 19 | BK121: 0.0413 | BL121: 0.0476 | BM121: 0.0538 | BN121: 0.0601 | BO121: 0.0664 | BP121: 0.0727 | BQ121: 0.079 | BR121: 0.0852 | BS121: 0.0915 | BT121: 0.0978
P122: Ingresos netos | R122: =R107-R121-R111*R105 -> 23860.54776 | S122: =S107-S121-S111*IF($R$6=TRUE,MAX($R$20*12,MIN($R$26*12,S105)),FV($C$68,$U$75,0,-Base*12)*(1+$C$69)^(-$U$75)) -> 32015.12772 | U122: Límite cuota | V122: 0.43 | W122: 0.43 | AB122: Pensión mujer con incentivo (si llega a la máxima totalmente) | AC122: =IF(AND(S4=TRUE,AC109=0,AC115=0,AC119=0,AC101>0,AC106>AC120)=TRUE,MIN(AC107,AC121,AC111),0) -> 0 | AM122: 2038-11-05 | AN122: 4701.633061 | AO122: 4701.633061 | AP122: 413 | AQ122: 461 | AZ122: 20 | BA122: 11 | BB122: 10.5 | BC122: 10 | BD122: 9.2 | BE122: 20 | BF122: 11 | BG122: 10.5 | BH122: 10 | BI122: 9.2 | BJ122: 20 | BK122: 0.0425 | BL122: 0.05 | BM122: 0.0575 | BN122: 0.065 | BO122: 0.0725 | BP122: 0.08 | BQ122: 0.0875 | BR122: 0.095 | BS122: 0.1025 | BT122: 0.11
P123: Tipo medio | R123: =R121/R107 -> 0.1637538931 | S123: =S121/S107 -> 0.2075602849 | U123: Mínimo excluido | V123: 15000 | W123: 15000 | AB123: Complemento no aplicado | AC123: =MAX(0,AC104*14/AC106-AC120/AC106+1) -> 0.06474133336 | AM123: 2038-10-05 | AN123: 4701.633061 | AO123: =AN123 -> 4701.633061 | AP123: 412 | AQ123: 460 | AZ123: 21 | BA123: 12.57 | BB123: 12 | BC123: 11.43 | BD123: 10 | BE123: 21 | BF123: 12.57 | BG123: 12 | BH123: 11.38 | BI123: 10 | BJ123: 21 | BK123: 0.0441 | BL123: 0.0531 | BM123: 0.0622 | BN123: 0.0713 | BO123: 0.0804 | BP123: 0.0894 | BQ123: 0.0985 | BR123: 0.1076 | BS123: 0.1166 | BT123: 0.1257
AB124: Pensión mujer con incentivo (si llega a la máxima parcialmente) | AC124: =IF(AND(S4=TRUE,AC109=0,AC115=0,AC117=0,AC119=0,AC122=0,AC101>0)=TRUE,MIN(AC120+AC123*AC106,AC111),0) -> 0 | AM124: 2038-09-05 | AN124: 4701.633061 | AO124: =AN124*(1+NOMINAL($C$69,12)/12)^(ROW()-ROW($AM$123))+AR124 -> 4709.398878 | AP124: 411 | AQ124: 459 | AR124: 0.0006871295545 | AZ124: 22 | BA124: 14.67 | BB124: 14 | BC124: 13.33 | BD124: 11 | BE124: 22 | BF124: 13.75 | BG124: 12.83 | BH124: 11.92 | BI124: 11 | BJ124: 22 | BK124: 0.0507 | BL124: 0.0613 | BM124: 0.072 | BN124: 0.0827 | BO124: 0.0934 | BP124: 0.104 | BQ124: 0.1147 | BR124: 0.1254 | BS124: 0.136 | BT124: 0.1467
P125: TRATAMIENTO FISCAL RENTA VITALICIA | AB125: Importe de la pensión | AC125: =SUM(AC124,AC122,AC119,AC117,AC115,AC114,AC112,AC109,AC108) -> 39885.89879 | AM125: 2038-08-05 | AN125: 4701.633061 | AO125: =AN125*(1+NOMINAL($C$69,12)/12)^(ROW()-ROW($AM$123))+AR125 -> 4717.176359 | AP125: 410 | AQ125: 458 | AR125: 0.0002145142732 | AZ125: 23 | BA125: 17.6 | BB125: 16.5 | BC125: 15 | BD125: 12 | BE125: 23 | BF125: 14.38 | BG125: 13.42 | BH125: 12.46 | BI125: 11.5 | BJ125: 23 | BK125: 0.0536 | BL125: 0.0672 | BM125: 0.0808 | BN125: 0.0944 | BO125: 0.108 | BP125: 0.1216 | BQ125: 0.1352 | BR125: 0.1488 | BS125: 0.1624 | BT125: 0.176
AB126: Importe de la SS | AC126: =D29 -> 5000 | AM126: 2038-07-05 | AN126: 4701.633061 | AO126: 4724.967331 | AP126: 409 | AQ126: 457 | AR126: 0.0003862845526 | AZ126: 24 | BA126: 21 | BB126: 19 | BC126: 17 | BD126: 13 | BE126: 24 | BF126: 15 | BG126: 14 | BH126: 13 | BI126: 12 | BJ126: 24 | BK126: 0.057 | BL126: 0.074 | BM126: 0.091 | BN126: 0.108 | BO126: 0.125 | BP126: 0.142 | BQ126: 0.159 | BR126: 0.176 | BS126: 0.193 | BT126: 0.21
P127: Edad contratación | Q127: % que tributa | S127: Importe renta | T127: Tipo gravamen 2016 | AB127: Anual | AC127: =AC126*14 -> 70000 | AM127: 2038-06-05 | AN127: 4701.633061 | AO127: 4732.770738 | AP127: 408 | AQ127: 456 | AR127: 0.0001262341936 | AZ127: 25 | BA127: 21.67 | BB127: 19.63 | BC127: 17.58 | BD127: 13.54 | BE127: 25 | BF127: 15.63 | BG127: 14.58 | BH127: 13.54 | BI127: 12.5
P128: 0 | Q128: 0.4 | S128: 0 | T128: 0.19 | AM128: 2038-05-05 | AN128: 4701.633061 | AO128: 4740.587409 | AP128: 407 | AQ128: 455 | AR128: 0.0002423168574 | AZ128: 26 | BA128: 22.33 | BB128: 20.25 | BC128: 18.17 | BD128: 14.08 | BE128: 26 | BF128: 16.25 | BG128: 15.17 | BH128: 14.08 | BI128: 13 | BK128: 38,5 cotizados hasta menos de 41,5
P129: 40 | Q129: 0.35 | S129: 6000 | T129: 0.21 | AM129: 2038-04-05 | AN129: 4701.633061 | AO129: 4748.417487 | AP129: 406 | AQ129: 454 | AR129: 0.0008543912414 | AZ129: 27 | BA129: 23 | BB129: 20.88 | BC129: 18.75 | BD129: 14.63 | BE129: 27 | BF129: 16.88 | BG129: 15.75 | BH129: 14.63 | BI129: 13.5 | BK129: 2024 | BL129: 2025 | BM129: 2026 | BN129: 2027 | BO129: 2028 | BP129: 2029 | BQ129: 2030 | BR129: 2031 | BS129: 2032 | BT129: 2033
P130: 50 | Q130: 0.28 | S130: 50000 | T130: 0.23 | AM130: 2038-03-05 | AN130: 4701.633061 | AO130: 4756.259177 | AP130: 405 | AQ130: 453 | AR130: 0.0001490937389 | AZ130: 28 | BA130: 23.67 | BB130: 21.5 | BC130: 19.33 | BD130: 15.17 | BE130: 28 | BF130: 17.5 | BG130: 16.33 | BH130: 15.17 | BI130: 14 | BJ130: 0 | BK130: 0 | BL130: 0 | BM130: 0 | BN130: 0 | BO130: 0 | BP130: 0 | BQ130: 0 | BR130: 0 | BS130: 0 | BT130: 0
P131: 60 | Q131: 0.24 | AM131: 2038-02-05 | AN131: 4701.633061 | AO131: 4764.114867 | AP131: 404 | AQ131: 452 | AR131: 0.0004897780749 | AZ131: 29 | BA131: 24.33 | BB131: 22.13 | BC131: 19.92 | BD131: 15.71 | BE131: 29 | BF131: 18.13 | BG131: 16.92 | BH131: 15.71 | BI131: 14.5 | BJ131: 1 | BK131: 0.0076 | BL131: 0.0102 | BM131: 0.0128 | BN131: 0.0154 | BO131: 0.0181 | BP131: 0.0207 | BQ131: 0.0233 | BR131: 0.0259 | BS131: 0.0285 | BT131: 0.0311
P132: 66 | Q132: 0.2 | AM132: 2038-01-05 | AN132: 4701.633061 | AO132: 4771.982735 | AP132: 403 | AQ132: 451 | AR132: 3.588953887e-05 | AZ132: 30 | BA132: 25 | BB132: 22.75 | BC132: 20.5 | BD132: 16.25 | BE132: 30 | BF132: 18.75 | BG132: 17.5 | BH132: 16.25 | BI132: 15 | BJ132: 2 | BK132: 0.0077 | BL132: 0.0105 | BM132: 0.0132 | BN132: 0.0159 | BO132: 0.0187 | BP132: 0.0214 | BQ132: 0.0241 | BR132: 0.0268 | BS132: 0.0296 | BT132: 0.0323
P133: 70 | Q133: 0.08 | AM133: 2037-12-05 | AN133: 4564.692293 | AO133: 4640.645254 | AP133: 402 | AQ133: 450 | AR133: 0.0005774744732 | AZ133: 31 | BA133: 25.67 | BB133: 23.38 | BC133: 21.08 | BD133: 16.79 | BE133: 31 | BF133: 19.38 | BG133: 18.08 | BH133: 16.79 | BI133: 15.5 | BJ133: 3 | BK133: 0.0079 | BL133: 0.0107 | BM133: 0.0136 | BN133: 0.0164 | BO133: 0.0193 | BP133: 0.0222 | BQ133: 0.025 | BR133: 0.0279 | BS133: 0.0307 | BT133: 0.0336
AM134: 2037-11-05 | AN134: 4564.692293 | AO134: 4648.309531 | AP134: 401 | AQ134: 449 | AR134: 0.0004523663888 | AZ134: 32 | BA134: 26.33 | BB134: 24 | BC134: 21.67 | BD134: 17.33 | BE134: 32 | BF134: 20 | BG134: 18.67 | BH134: 17.33 | BI134: 16 | BJ134: 4 | BK134: 0.0125 | BL134: 0.015 | BM134: 0.0175 | BN134: 0.02 | BO134: 0.0225 | BP134: 0.025 | BQ134: 0.0275 | BR134: 0.03 | BS134: 0.0325 | BT134: 0.035
U135: PERFIL DE RIESGO | AM135: 2037-10-05 | AN135: 4564.692293 | AO135: 4655.987042 | AP135: 400 | AQ135: 448 | AR135: 0.0009037117644 | AZ135: 33 | BA135: 27 | BB135: 24.63 | BC135: 22.25 | BD135: 17.88 | BE135: 33 | BF135: 20.63 | BG135: 19.25 | BH135: 17.88 | BI135: 16.5 | BJ135: 5 | BK135: 0.0127 | BL135: 0.0153 | BM135: 0.018 | BN135: 0.0206 | BO135: 0.0233 | BP135: 0.0259 | BQ135: 0.0286 | BR135: 0.0312 | BS135: 0.0339 | BT135: 0.0365
AM136: 2037-09-05 | AN136: 4564.692293 | AO136: 4663.676619 | AP136: 399 | AQ136: 447 | AR136: 0.0007412083837 | AZ136: 34 | BA136: 27.67 | BB136: 25.25 | BC136: 22.83 | BD136: 18.42 | BE136: 34 | BF136: 21.25 | BG136: 19.83 | BH136: 18.42 | BI136: 17 | BJ136: 6 | BK136: 0.0128 | BL136: 0.0156 | BM136: 0.0185 | BN136: 0.0213 | BO136: 0.0241 | BP136: 0.0269 | BQ136: 0.0297 | BR136: 0.0326 | BS136: 0.0354 | BT136: 0.0382
U137: Conservador | V137: =C65 -> 0.02 | AM137: 2037-08-05 | AN137: 4564.692293 | AO137: 4671.37871 | AP137: 398 | AQ137: 446 | AR137: 0.0003917379346 | AZ137: 35 | BA137: 28.33 | BB137: 25.88 | BC137: 23.42 | BD137: 18.96 | BE137: 35 | BF137: 21.88 | BG137: 20.42 | BH137: 18.96 | BI137: 17.5 | BJ137: 7 | BK137: 0.0175 | BL137: 0.02 | BM137: 0.0225 | BN137: 0.025 | BO137: 0.0275 | BP137: 0.03 | BQ137: 0.0325 | BR137: 0.035 | BS137: 0.0375 | BT137: 0.04
U138: Moderado | V138: =C66 -> 0.03 | AM138: 2037-07-05 | AN138: 4564.692293 | AO138: 4679.094028 | AP138: 397 | AQ138: 445 | AR138: 0.0005491715423 | AZ138: 36 | BA138: 29 | BB138: 26.5 | BC138: 24 | BD138: 19.5 | BE138: 36 | BF138: 22.5 | BG138: 21 | BH138: 19.5 | BI138: 18 | BJ138: 8 | BK138: 0.0177 | BL138: 0.0204 | BM138: 0.0231 | BN138: 0.0258 | BO138: 0.0285 | BP138: 0.0312 | BQ138: 0.0339 | BR138: 0.0366 | BS138: 0.0393 | BT138: 0.042
U139: Agresivo | V139: =C67 -> 0.04 | AM139: 2037-06-05 | AN139: 4564.692293 | AO139: 4686.821872 | AP139: 396 | AQ139: 444 | AR139: 0.0004892418953 | BE139: 37 | BF139: 23.13 | BG139: 21.58 | BH139: 20.04 | BI139: 18.5 | BJ139: 9 | BK139: 0.0179 | BL139: 0.0208 | BM139: 0.0238 | BN139: 0.0267 | BO139: 0.0296 | BP139: 0.0325 | BQ139: 0.0354 | BR139: 0.0384 | BS139: 0.0413 | BT139: 0.0442
U140: Decreciente con la edad | AM140: 2037-05-05 | AN140: 4564.692293 | AO140: 4694.562991 | AP140: 395 | AQ140: 443 | AR140: 0.0009421817987 | BE140: 38 | BF140: 23.75 | BG140: 22.17 | BH140: 20.58 | BI140: 19 | BJ140: 10 | BK140: 0.0227 | BL140: 0.0253 | BM140: 0.028 | BN140: 0.0307 | BO140: 0.0334 | BP140: 0.036 | BQ140: 0.0387 | BR140: 0.0414 | BS140: 0.044 | BT140: 0.0467
AM141: 2037-04-05 | AN141: 4564.692293 | AO141: 4702.316491 | AP141: 394 | AQ141: 442 | AR141: 0.0009911224759 | BE141: 39 | BF141: 24.38 | BG141: 22.75 | BH141: 21.13 | BI141: 19.5 | BJ141: 11 | BK141: 0.0229 | BL141: 0.0259 | BM141: 0.0288 | BN141: 0.0318 | BO141: 0.0347 | BP141: 0.0376 | BQ141: 0.0406 | BR141: 0.0435 | BS141: 0.0465 | BT141: 0.0494
U142: 0 | V142: =D67 -> 45 | W142: =D66 -> 55 | AM142: 2037-03-05 | AN142: 4564.692293 | AO142: 4710.082349 | AP142: 393 | AQ142: 441 | AR142: 0.0005928447449 | BE142: 40 | BF142: 25 | BG142: 23.33 | BH142: 21.67 | BI142: 20 | BJ142: 12 | BK142: 0.0233 | BL142: 0.0265 | BM142: 0.0298 | BN142: 0.033 | BO142: 0.0363 | BP142: 0.0395 | BQ142: 0.0428 | BR142: 0.046 | BS142: 0.0493 | BT142: 0.0525
U143: =IF($R$8=$U$140,$V$139,VLOOKUP($R$8,$U$137:$V$139,2,0)) -> 0.02 | V143: =IF($R$8=$U$140,$V$138,VLOOKUP($R$8,$U$137:$V$139,2,0)) -> 0.02 | W143: =IF($R$8=$U$140,$V$137,VLOOKUP($R$8,$U$137:$V$139,2,0)) -> 0.02 | AM143: 2037-02-05 | AN143: 4564.692293 | AO143: 4717.861804 | AP143: 392 | AQ143: 440 | AR143: 0.0009653046001 | BE143: 41 | BF143: 25.63 | BG143: 23.92 | BH143: 22.21 | BI143: 20.5 | BJ143: 13 | BK143: 0.0281 | BL143: 0.0312 | BM143: 0.0343 | BN143: 0.0374 | BO143: 0.0405 | BP143: 0.0436 | BQ143: 0.0467 | BR143: 0.0498 | BS143: 0.0529 | BT143: 0.056
AM144: 2037-01-05 | AN144: 4564.692293 | AO144: 4725.652875 | AP144: 391 | AQ144: 439 | AR144: 0.0001053301665 | BE144: 42 | BF144: 26.25 | BG144: 24.5 | BH144: 22.75 | BI144: 21 | BJ144: 14 | BK144: 0.0285 | BL144: 0.032 | BM144: 0.0355 | BN144: 0.039 | BO144: 0.0425 | BP144: 0.046 | BQ144: 0.0495 | BR144: 0.053 | BS144: 0.0565 | BT144: 0.06
AM145: 2036-12-05 | AN145: 4431.74009 | AO145: 4595.589885 | AP145: 390 | AQ145: 438 | AR145: 1.147793607e-05 | BE145: 43 | BF145: 26.88 | BG145: 25.08 | BH145: 23.29 | BI145: 21.5 | BJ145: 15 | BK145: 0.029 | BL145: 0.0329 | BM145: 0.0369 | BN145: 0.0408 | BO145: 0.0448 | BP145: 0.0488 | BQ145: 0.0527 | BR145: 0.0567 | BS145: 0.0606 | BT145: 0.0646
AM146: 2036-11-05 | AN146: 4431.74009 | AO146: 4603.180045 | AP146: 389 | AQ146: 437 | AR146: 0.0001807304275 | BE146: 44 | BF146: 27.5 | BG146: 25.67 | BH146: 23.83 | BI146: 22 | BJ146: 16 | BK146: 0.034 | BL146: 0.038 | BM146: 0.042 | BN146: 0.046 | BO146: 0.05 | BP146: 0.054 | BQ146: 0.058 | BR146: 0.062 | BS146: 0.066 | BT146: 0.07
AM147: 2036-10-05 | AN147: 4431.74009 | AO147: 4610.782846 | AP147: 388 | AQ147: 436 | AR147: 0.0004568560912 | BE147: 45 | BF147: 28.13 | BG147: 26.25 | BH147: 24.38 | BI147: 22.5 | BJ147: 17 | BK147: 0.0346 | BL147: 0.0393 | BM147: 0.0439 | BN147: 0.0486 | BO147: 0.0532 | BP147: 0.0578 | BQ147: 0.0625 | BR147: 0.0671 | BS147: 0.0718 | BT147: 0.0764
AM148: 2036-09-05 | AN148: 4431.74009 | AO148: 4618.397589 | AP148: 387 | AQ148: 435 | AR148: 0.0001173847753 | BE148: 46 | BF148: 28.75 | BG148: 26.83 | BH148: 24.92 | BI148: 23 | BJ148: 18 | BK148: 0.0354 | BL148: 0.0408 | BM148: 0.0462 | BN148: 0.0516 | BO148: 0.057 | BP148: 0.0624 | BQ148: 0.0678 | BR148: 0.0732 | BS148: 0.0786 | BT148: 0.084
AM149: 2036-08-05 | AN149: 4431.74009 | AO149: 4626.025144 | AP149: 386 | AQ149: 434 | AR149: 1.357705388e-05 | BE149: 47 | BF149: 29.38 | BG149: 27.42 | BH149: 25.46 | BI149: 23.5 | BJ149: 19 | BK149: 0.0408 | BL149: 0.0467 | BM149: 0.0525 | BN149: 0.0583 | BO149: 0.0642 | BP149: 0.07 | BQ149: 0.0758 | BR149: 0.0816 | BS149: 0.0875 | BT149: 0.0933
AM150: 2036-07-05 | AN150: 4431.74009 | AO150: 4633.666265 | AP150: 385 | AQ150: 433 | AR150: 0.0008777697753 | BE150: 48 | BF150: 30 | BG150: 28 | BH150: 26 | BI150: 24 | BJ150: 20 | BK150: 0.042 | BL150: 0.049 | BM150: 0.056 | BN150: 0.063 | BO150: 0.07 | BP150: 0.077 | BQ150: 0.084 | BR150: 0.091 | BS150: 0.098 | BT150: 0.105
AM151: 2036-06-05 | AN151: 4431.74009 | AO151: 4641.3192 | AP151: 384 | AQ151: 432 | AR151: 0.0009375802046 | BE151: 49 | BF151: 30.63 | BG151: 28.58 | BH151: 26.54 | BI151: 24.5 | BJ151: 21 | BK151: 0.0435 | BL151: 0.052 | BM151: 0.0605 | BN151: 0.069 | BO151: 0.0775 | BP151: 0.086 | BQ151: 0.0945 | BR151: 0.103 | BS151: 0.1115 | BT151: 0.12
B152: Calculadora básica de ahorro para la jubilación (cuantías brutas, sin fiscalidad) | AM152: 2036-05-05 | AN152: 4431.74009 | AO152: 4648.984392 | AP152: 383 | AQ152: 431 | AR152: 0.0006157836553 | BE152: 50 | BF152: 31.25 | BG152: 29.17 | BH152: 27.08 | BI152: 25 | BJ152: 22 | BK152: 0.05 | BL152: 0.06 | BM152: 0.07 | BN152: 0.08 | BO152: 0.09 | BP152: 0.1 | BQ152: 0.11 | BR152: 0.12 | BS152: 0.13 | BT152: 0.14
AM153: 2036-04-05 | AN153: 4431.74009 | AO153: 4656.662482 | AP153: 382 | AQ153: 430 | AR153: 0.0005309815855 | BE153: 51 | BF153: 31.88 | BG153: 29.75 | BH153: 27.63 | BI153: 25.5 | BJ153: 23 | BK153: 0.0525 | BL153: 0.065 | BM153: 0.0775 | BN153: 0.09 | BO153: 0.1025 | BP153: 0.115 | BQ153: 0.1275 | BR153: 0.14 | BS153: 0.1525 | BT153: 0.165
B154: ¿Cuánto capital conseguiré conociendo la aportación? | AM154: 2036-03-05 | AN154: 4431.74009 | AO154: 4664.353023 | AP154: 381 | AQ154: 429 | AR154: 0.0002157680662 | BE154: 52 | BF154: 32.5 | BG154: 30.33 | BH154: 28.17 | BI154: 26 | BJ154: 24 | BK154: 0.055 | BL154: 0.07 | BM154: 0.085 | BN154: 0.1 | BO154: 0.115 | BP154: 0.13 | BQ154: 0.145 | BR154: 0.16 | BS154: 0.175 | BT154: 0.19
AM155: 2036-02-05 | AN155: 4431.74009 | AO155: 4672.056737 | AP155: 380 | AQ155: 428 | AR155: 0.000371596432 | BE155: 53 | BF155: 33.13 | BG155: 30.92 | BH155: 28.71 | BI155: 26.5
B156: Aportación inicial mensual | C156: 230 | AM156: 2036-01-05 | AN156: 4431.74009 | AO156: 4679.773483 | AP156: 379 | AQ156: 427 | AR156: 0.0008368535517 | BE156: 54 | BF156: 33.75 | BG156: 31.5 | BH156: 29.25 | BI156: 27 | BK156: 41,5 cotizados hasta menos de 44,5
B157: Incremento anual de las aportaciones | C157: 0.01 | AM157: 2035-12-05 | AN157: 4302.660282 | AO157: 4550.97269 | AP157: 378 | AQ157: 426 | AR157: 0.0001942529007 | BE157: 55 | BF157: 34.38 | BG157: 32.08 | BH157: 29.79 | BI157: 27.5 | BK157: 2024 | BL157: 2025 | BM157: 2026 | BN157: 2027 | BO157: 2028 | BP157: 2029 | BQ157: 2030 | BR157: 2031 | BS157: 2032 | BT157: 2033
B158: Años que quedan hasta la jubilación | C158: 25 | AM158: 2035-11-05 | AN158: 4302.660282 | AO158: 4558.489426 | AP158: 377 | AQ158: 425 | AR158: 0.0006292661287 | BE158: 56 | BF158: 35 | BG158: 32.67 | BH158: 30.33 | BI158: 28 | BJ158: 0 | BK158: 0 | BL158: 0 | BM158: 0 | BN158: 0 | BO158: 0 | BP158: 0 | BQ158: 0 | BR158: 0 | BS158: 0 | BT158: 0
B159: Rentabilidad del ahorro | C159: 0.02 | AM159: 2035-10-05 | AN159: 4302.660282 | AO159: 4566.018326 | AP159: 376 | AQ159: 424 | AR159: 0.0008136440301 | BE159: 57 | BF159: 35.63 | BG159: 33.25 | BH159: 30.88 | BI159: 28.5 | BJ159: 1 | BK159: 0.0075 | BL159: 0.0099 | BM159: 0.0124 | BN159: 0.0148 | BO159: 0.0173 | BP159: 0.0198 | BQ159: 0.0222 | BR159: 0.0247 | BS159: 0.0271 | BT159: 0.0296
B160: Capital acumulado a la jubilación (€ brutos de la jubilación) | C160: =IFERROR(C156*12*IF(C157=C159,C158*(1+C157)^(C158-1),(((1+C159)^C158-(1+C157)^C158)/(C159-C157)))*C159*(1+C159)^(1/12)/NOMINAL(C159,12),0) -> 99923.7241 | AM160: 2035-09-05 | AN160: 4302.660282 | AO160: 4573.558925 | AP160: 375 | AQ160: 423 | AR160: 0.000264000542 | BE160: 58 | BF160: 36.25 | BG160: 33.83 | BH160: 31.42 | BI160: 29 | BJ160: 2 | BK160: 0.0076 | BL160: 0.0102 | BM160: 0.0127 | BN160: 0.0153 | BO160: 0.0179 | BP160: 0.0205 | BQ160: 0.0231 | BR160: 0.0256 | BS160: 0.0282 | BT160: 0.0308
AM161: 2035-08-05 | AN161: 4302.660282 | AO161: 4581.11311 | AP161: 374 | AQ161: 422 | AR161: 0.000844425819 | BE161: 59 | BF161: 36.88 | BG161: 34.42 | BH161: 31.96 | BI161: 29.5 | BJ161: 3 | BK161: 0.0077 | BL161: 0.0104 | BM161: 0.0131 | BN161: 0.0158 | BO161: 0.0185 | BP161: 0.0212 | BQ161: 0.0239 | BR161: 0.0266 | BS161: 0.0293 | BT161: 0.032
B162: ¿Cuánto debo ahorrar para conseguir un capital deseado? | AM162: 2035-07-05 | AN162: 4302.660282 | AO162: 4588.678354 | AP162: 373 | AQ162: =AP162+48 -> 421 | AR162: 9.237210646e-06 | BE162: 60 | BF162: 37.5 | BG162: 35 | BH162: 32.5 | BI162: 30 | BJ162: 4 | BK162: 0.0123 | BL162: 0.0147 | BM162: 0.017 | BN162: 0.0193 | BO162: 0.0217 | BP162: 0.024 | BQ162: 0.0263 | BR162: 0.0286 | BS162: 0.031 | BT162: 0.0333
AM163: =EDATE(AM162,-1) -> 2035-06-05 | AN163: 4302.660282 | AO163: 4596.25732 | AP163: =AP162-1 -> 372 | AQ163: 420 | AR163: 0.0004002420056 | BJ163: 5 | BK163: 0.0125 | BL163: 0.015 | BM163: 0.0174 | BN163: 0.0199 | BO163: 0.0224 | BP163: 0.0249 | BQ163: 0.0274 | BR163: 0.0298 | BS163: 0.0323 | BT163: 0.0348
B164: Capital que deseo acumular a la jubilación (€ brutos de la jubilación) | C164: 100000 | AM164: 2035-05-05 | AN164: 4302.660282 | AO164: 4603.84851 | AP164: 371 | AQ164: 419 | AR164: 0.000498366106 | BJ164: 6 | BK164: 0.0126 | BL164: 0.0153 | BM164: 0.0179 | BN164: 0.0206 | BO164: 0.0232 | BP164: 0.0258 | BQ164: 0.0285 | BR164: 0.0311 | BS164: 0.0338 | BT164: 0.0364
B165: Incremento anual de las aportaciones | C165: 0.01 | AM165: 2035-04-05 | AN165: 4302.660282 | AO165: 4611.452377 | AP165: 370 | AQ165: 418 | AR165: 0.0007355060524 | BJ165: 7 | BK165: 0.0173 | BL165: 0.0196 | BM165: 0.0219 | BN165: 0.0242 | BO165: 0.0266 | BP165: 0.0289 | BQ165: 0.0312 | BR165: 0.0335 | BS165: 0.0358 | BT165: 0.0381
B166: Años que quedan hasta la jubilación | C166: 25 | AM166: 2035-03-05 | AN166: 4302.660282 | AO166: 4619.068612 | AP166: 369 | AQ166: 417 | AR166: 0.000783157664 | BJ166: 8 | BK166: 0.0175 | BL166: 0.02 | BM166: 0.0225 | BN166: 0.025 | BO166: 0.0275 | BP166: 0.03 | BQ166: 0.0325 | BR166: 0.035 | BS166: 0.0375 | BT166: 0.04
B167: Rentabilidad del ahorro | C167: 0.02 | AM167: 2035-02-05 | AN167: 4302.660282 | AO167: 4626.697183 | AP167: 368 | AQ167: 416 | AR167: 0.0005883055463 | BJ167: 9 | BK167: 0.0177 | BL167: 0.0204 | BM167: 0.0231 | BN167: 0.0258 | BO167: 0.0286 | BP167: 0.0313 | BQ167: 0.034 | BR167: 0.0367 | BS167: 0.0394 | BT167: 0.0421
B168: Aportación inicial mensual | C168: =IFERROR(C164/(IF(C165=C167,(C166*(1+C165)^(C166-1)),((1+C167)^C166-(1+C165)^C166)/(C167-C165))*C167*(1+C167)^(1/12)/NOMINAL(C167,12))/12,0) -> 230.1755685 | AM168: 2035-01-05 | AN168: 4302.660282 | AO168: 4634.338753 | AP168: 367 | AQ168: 415 | AR168: 0.0007931058243 | BJ168: 10 | BK168: 0.0224 | BL168: 0.0249 | BM168: 0.0273 | BN168: 0.0298 | BO168: 0.0322 | BP168: 0.0346 | BQ168: 0.0371 | BR168: 0.0395 | BS168: 0.042 | BT168: 0.0444
AM169: 2034-12-05 | AN169: 4177.340079 | AO169: 4506.789202 | AP169: 366 | AQ169: 414 | AR169: 0.0009050347533 | BJ169: 11 | BK169: 0.0227 | BL169: 0.0254 | BM169: 0.0281 | BN169: 0.0308 | BO169: 0.0336 | BP169: 0.0363 | BQ169: 0.039 | BR169: 0.0417 | BS169: 0.0444 | BT169: 0.0471
AM170: 2034-11-05 | AN170: 4177.340079 | AO170: 4514.232315 | AP170: 365 | AQ170: 413 | AR170: 0.0006903586315 | BJ170: 12 | BK170: 0.023 | BL170: 0.026 | BM170: 0.029 | BN170: 0.032 | BO170: 0.035 | BP170: 0.038 | BQ170: 0.041 | BR170: 0.044 | BS170: 0.047 | BT170: 0.05
AM171: 2034-10-05 | AN171: 4177.340079 | AO171: 4521.688049 | AP171: 364 | AQ171: 412 | AR171: 0.000804316016 | BJ171: 13 | BK171: 0.0278 | BL171: 0.0307 | BM171: 0.0335 | BN171: 0.0363 | BO171: 0.0392 | BP171: 0.042 | BQ171: 0.0448 | BR171: 0.0476 | BS171: 0.0505 | BT171: 0.0533
AM172: 2034-09-05 | AN172: 4177.340079 | AO172: 4529.155818 | AP172: 363 | AQ172: 411 | AR172: 0.0006394522218 | BJ172: 14 | BK172: 0.0282 | BL172: 0.0314 | BM172: 0.0346 | BN172: 0.0378 | BO172: 0.0411 | BP172: 0.0443 | BQ172: 0.0475 | BR172: 0.0507 | BS172: 0.0539 | BT172: 0.0571
AM173: 2034-08-05 | AN173: =IFERROR(IF(AND(AP173>=0,AQ173>=0),IF($R$6=TRUE,MIN(Ingresos/12*(1+$C$68)^(YEAR(AM173)-YEAR($S$74)),VLOOKUP(YEAR(AM173),$Q$26:$R$70,2)),MIN(Base*(1+$C$68)^(YEAR(AM173)-YEAR($S$74)),VLOOKUP(YEAR(AM173),$Q$26:$R$70,2))),IF($R$6=TRUE,IF(AQ173>=0,$R$20,0.5*$R$20),0)*(1+$C$68)^(YEAR(AM173)-YEAR($S$74))),AN161/(1+$C$68)) -> 4177.340079 | AO173: 4536.635771 | AP173: 362 | AQ173: 410 | AR173: 0.0003240494362 | BJ173: 15 | BK173: 0.0287 | BL173: 0.0323 | BM173: 0.036 | BN173: 0.0396 | BO173: 0.0433 | BP173: 0.0469 | BQ173: 0.0506 | BR173: 0.0542 | BS173: 0.0579 | BT173: 0.0615
AM174: 2034-07-05 | AN174: 4177.340079 | AO174: 4544.128731 | AP174: 361 | AQ174: 409 | AR174: 0.0006613580682 | BJ174: 16 | BK174: 0.0337 | BL174: 0.0373 | BM174: 0.041 | BN174: 0.0447 | BO174: 0.0484 | BP174: 0.052 | BQ174: 0.0557 | BR174: 0.0594 | BS174: 0.063 | BT174: 0.0667
AM175: 2034-06-05 | AN175: 4177.340079 | AO175: 4551.633789 | AP175: 360 | AQ175: 408 | AR175: 0.0007228673988 | BJ175: 17 | BK175: 0.0343 | BL175: 0.0385 | BM175: 0.0428 | BN175: 0.0471 | BO175: 0.0514 | BP175: 0.0556 | BQ175: 0.0599 | BR175: 0.0642 | BS175: 0.0684 | BT175: 0.0727
AM176: 2034-05-05 | AN176: 4177.340079 | AO176: 4559.150685 | AP176: 359 | AQ176: 407 | AR176: 0.0002263252355 | BJ176: 18 | BK176: 0.035 | BL176: 0.04 | BM176: 0.045 | BN176: 0.05 | BO176: 0.055 | BP176: 0.06 | BQ176: 0.065 | BR176: 0.07 | BS176: 0.075 | BT176: 0.08
AM177: 2034-04-05 | AN177: 4177.340079 | AO177: 4566.68082 | AP177: 358 | AQ177: 406 | AR177: 0.0005539551903 | BJ177: 19 | BK177: 0.0404 | BL177: 0.0458 | BM177: 0.0512 | BN177: 0.0566 | BO177: 0.062 | BP177: 0.0673 | BQ177: 0.0727 | BR177: 0.0781 | BS177: 0.0835 | BT177: 0.0889
AM178: 2034-03-05 | AN178: 4177.340079 | AO178: 4574.222783 | AP178: 357 | AQ178: 405 | AR178: 0.0002729013247 | BJ178: 20 | BK178: 0.0415 | BL178: 0.048 | BM178: 0.0545 | BN178: 0.061 | BO178: 0.0675 | BP178: 0.074 | BQ178: 0.0805 | BR178: 0.087 | BS178: 0.0935 | BT178: 0.1
AM179: 2034-02-05 | AN179: 4177.340079 | AO179: 4581.777391 | AP179: 356 | AQ179: 404 | AR179: 0.0001812082355 | BJ179: 21 | BK179: 0.0429 | BL179: 0.0509 | BM179: 0.0588 | BN179: 0.0667 | BO179: 0.0747 | BP179: 0.0826 | BQ179: 0.0905 | BR179: 0.0984 | BS179: 0.1064 | BT179: 0.1143
AM180: 2034-01-05 | AN180: 4177.340079 | AO180: 4589.345365 | AP180: 355 | AQ180: 403 | AR180: 0.0009775635757 | BJ180: 22 | BK180: 0.0493 | BL180: 0.0587 | BM180: 0.068 | BN180: 0.0773 | BO180: 0.0867 | BP180: 0.096 | BQ180: 0.1053 | BR180: 0.1146 | BS180: 0.124 | BT180: 0.1333
AM181: 2033-12-05 | AN181: 4055.66998 | AO181: 4463.033731 | AP181: 354 | AQ181: 402 | AR181: 0.0006603261063 | BJ181: 23 | BK181: 0.051 | BL181: 0.062 | BM181: 0.073 | BN181: 0.084 | BO181: 0.095 | BP181: 0.106 | BQ181: 0.117 | BR181: 0.128 | BS181: 0.139 | BT181: 0.15
AM182: 2033-11-05 | AN182: 4055.66998 | AO182: 4470.404691 | AP182: 353 | AQ182: 401 | AR182: 0.0005586195364 | BJ182: 24 | BK182: 0.053 | BL182: 0.066 | BM182: 0.079 | BN182: 0.092 | BO182: 0.105 | BP182: 0.118 | BQ182: 0.131 | BR182: 0.144 | BS182: 0.157 | BT182: 0.17
AM183: 2033-10-05 | AN183: 4055.66998 | AO183: 4477.788063 | AP183: 352 | AQ183: 400 | AR183: 0.0006945743009
AM184: 2033-09-05 | AN184: 4055.66998 | AO184: 4485.183782 | AP184: 351 | AQ184: 399 | AR184: 0.0009833270166 | BK184: 44,5 cotizados o más
AM185: 2033-08-05 | AN185: 4055.66998 | AO185: 4492.591232 | AP185: 350 | AQ185: 398 | AR185: 0.0007894587068 | BK185: 2024 | BL185: 2025 | BM185: 2026 | BN185: 2027 | BO185: 2028 | BP185: 2029 | BQ185: 2030 | BR185: 2031 | BS185: 2032 | BT185: 2033
AM186: 2033-07-05 | AN186: 4055.66998 | AO186: 4500.010326 | AP186: 349 | AQ186: 397 | AR186: 4.465578335e-06 | BJ186: 0 | BK186: 0 | BL186: 0 | BM186: 0 | BN186: 0 | BO186: 0 | BP186: 0 | BQ186: 0 | BR186: 0 | BS186: 0 | BT186: 0
AM187: 2033-06-05 | AN187: 4055.66998 | AO187: 4507.443074 | AP187: 348 | AQ187: 396 | AR187: 0.0006196770343 | BJ187: 1 | BK187: 0.0073 | BL187: 0.0096 | BM187: 0.0119 | BN187: 0.0142 | BO187: 0.0166 | BP187: 0.0189 | BQ187: 0.0212 | BR187: 0.0235 | BS187: 0.0258 | BT187: 0.0281
AM188: 2033-05-05 | AN188: 4055.66998 | AO188: 4514.887216 | AP188: 347 | AQ188: 395 | AR188: 0.0003543426817 | BJ188: 2 | BK188: 0.0074 | BL188: 0.0098 | BM188: 0.0123 | BN188: 0.0147 | BO188: 0.0171 | BP188: 0.0195 | BQ188: 0.0219 | BR188: 0.0244 | BS188: 0.0268 | BT188: 0.0292
AM189: 2033-04-05 | AN189: 4055.66998 | AO189: =AN189*(1+NOMINAL($C$69,12)/12)^(ROW()-ROW($AM$123))+AR189 -> 4522.343971 | AP189: 346 | AQ189: 394 | AR189: 0.0004069019793 | BJ189: 3 | BK189: 0.0075 | BL189: 0.0101 | BM189: 0.0126 | BN189: 0.0152 | BO189: 0.0177 | BP189: 0.0202 | BQ189: 0.0228 | BR189: 0.0253 | BS189: 0.0279 | BT189: 0.0304
AM190: 2033-03-05 | AN190: 4055.66998 | AO190: 4529.813493 | AP190: 345 | AQ190: 393 | AR190: 0.0009104178623 | BJ190: 4 | BK190: 0.0122 | BL190: 0.0143 | BM190: 0.0165 | BN190: 0.0187 | BO190: 0.0209 | BP190: 0.023 | BQ190: 0.0252 | BR190: 0.0274 | BS190: 0.0295 | BT190: 0.0317
AM191: 2033-02-05 | AN191: 4055.66998 | AO191: 4537.294574 | AP191: 344 | AQ191: 392 | AR191: 0.0006373750546 | BJ191: 5 | BK191: 0.0123 | BL191: 0.0146 | BM191: 0.0169 | BN191: 0.0192 | BO191: 0.0215 | BP191: 0.0238 | BQ191: 0.0261 | BR191: 0.0284 | BS191: 0.0307 | BT191: 0.033
AM192: 2033-01-05 | AN192: 4055.66998 | AO192: 4544.788012 | AP192: 343 | AQ192: 391 | AR192: 0.0003662139085 | BJ192: 6 | BK192: 0.0125 | BL192: 0.0149 | BM192: 0.0174 | BN192: 0.0198 | BO192: 0.0223 | BP192: 0.0247 | BQ192: 0.0272 | BR192: 0.0296 | BS192: 0.0321 | BT192: 0.0345
AM193: 2032-12-05 | AN193: 3937.54367 | AO193: 4419.703078 | AP193: 342 | AQ193: 390 | AR193: 0.0004250928294 | BJ193: 7 | BK193: 0.0171 | BL193: 0.0192 | BM193: 0.0214 | BN193: 0.0235 | BO193: 0.0256 | BP193: 0.0277 | BQ193: 0.0298 | BR193: 0.032 | BS193: 0.0341 | BT193: 0.0362
AM194: 2032-11-05 | AN194: 3937.54367 | AO194: 4427.003076 | AP194: 341 | AQ194: 389 | AR194: 0.0009254051358 | BJ194: 8 | BK194: 0.0173 | BL194: 0.0196 | BM194: 0.0219 | BN194: 0.0242 | BO194: 0.0265 | BP194: 0.0288 | BQ194: 0.0311 | BR194: 0.0334 | BS194: 0.0357 | BT194: 0.038
AM195: 2032-10-05 | AN195: 3937.54367 | AO195: 4434.314335 | AP195: 340 | AQ195: 388 | AR195: 0.0006301702428 | BJ195: 9 | BK195: 0.0175 | BL195: 0.02 | BM195: 0.0225 | BN195: 0.025 | BO195: 0.0275 | BP195: 0.03 | BQ195: 0.0325 | BR195: 0.035 | BS195: 0.0375 | BT195: 0.04
AM196: 2032-09-05 | AN196: 3937.54367 | AO196: 4441.637991 | AP196: 339 | AQ196: 387 | AR196: 0.0006566758711 | BJ196: 10 | BK196: 0.0222 | BL196: 0.0244 | BM196: 0.0267 | BN196: 0.0289 | BO196: 0.0311 | BP196: 0.0333 | BQ196: 0.0355 | BR196: 0.0378 | BS196: 0.04 | BT196: 0.0422
G197: Detalle de la obtención de la pensión pública mensual | AM197: 2032-08-05 | AN197: 3937.54367 | AO197: 4448.973806 | AP197: 338 | AQ197: 386 | AR197: 0.0007458231614 | BJ197: 11 | BK197: 0.0225 | BL197: 0.0249 | BM197: 0.0274 | BN197: 0.0299 | BO197: 0.0324 | BP197: 0.0348 | BQ197: 0.0373 | BR197: 0.0398 | BS197: 0.0422 | BT197: 0.0447
H198: € año jubilación | I198: € actuales | J198: € actuales tras impuestos | AM198: 2032-07-05 | AN198: 3937.54367 | AO198: 4456.321364 | AP198: 337 | AQ198: 385 | AR198: 0.0004634013798 | BJ198: 12 | BK198: 0.0228 | BL198: 0.0255 | BM198: 0.0283 | BN198: 0.031 | BO198: 0.0338 | BP198: 0.0365 | BQ198: 0.0393 | BR198: 0.042 | BS198: 0.0448 | BT198: 0.0475
G199: Base reguladora | H199: =AC96/14 -> 3652.33944 | I199: =H199*(1+$C$69)^(-$U$75) -> 2612.751168 | AM199: 2032-06-05 | AN199: 3937.54367 | AO199: 4463.681784 | AP199: 336 | AQ199: 384 | AR199: 0.0009073110555 | BJ199: 13 | BK199: 0.0276 | BL199: 0.0301 | BM199: 0.0327 | BN199: 0.0353 | BO199: 0.0379 | BP199: 0.0404 | BQ199: 0.043 | BR199: 0.0456 | BS199: 0.0481 | BT199: 0.0507
G200: Porcentaje por años cotizados | H200: =AC97 -> 0.9874 | AM200: 2032-05-05 | AN200: 3937.54367 | AO200: 4471.053659 | AP200: 335 | AQ200: 383 | AR200: 0.000650474796 | BJ200: 14 | BK200: 0.0279 | BL200: 0.0309 | BM200: 0.0338 | BN200: 0.0367 | BO200: 0.0397 | BP200: 0.0426 | BQ200: 0.0455 | BR200: 0.0484 | BS200: 0.0514 | BT200: 0.0543
G201: Coeficiente reductor por jubilación anticipada | H201: =AC98 -> 0.21 | AM201: 2032-04-05 | AN201: 3937.54367 | AO201: 4478.437455 | AP201: 334 | AQ201: 382 | AR201: 0.0001383700046 | BJ201: 15 | BK201: 0.0284 | BL201: 0.0317 | BM201: 0.0351 | BN201: 0.0384 | BO201: 0.0418 | BP201: 0.0451 | BQ201: 0.0485 | BR201: 0.0518 | BS201: 0.0552 | BT201: 0.0585
... 245 more rows
